Service Area Categorisation,Service Division Categorisation,Responsible Unit,Expenses Type,Expenses Sub-Type,Detailed Expenses Type,Date,Transaction number,Amount,Capital/Revenue,Supplier name
CS -Oth Operating Inc & Expend,Trading A/c Surpluses/Deficits,Transport-Operations,Transport Related Expenditure,Contract Hire and Op Leasing,Vehicle Hire for LB Sutton,9/29/2011,1,618.00,Revenue,KINGSTON ACCESSIBILITY TRAN LT
CS -Oth Operating Inc & Expend,Trading A/c Surpluses/Deficits,Transport-Operations,Transport Related Expenditure,Contract Hire and Op Leasing,Mini Cab Hire -Soc Serv -Adult,9/29/2011,2,899.00,Revenue,KINGSTON ACCESSIBILITY TRAN LT
CS -Oth Operating Inc & Expend,Trading A/c Surpluses/Deficits,Transport-Operations,Transport Related Expenditure,Contract Hire and Op Leasing,Vehicle Hire Special Projects,9/29/2011,3,"1,079.00",Revenue,KINGSTON ACCESSIBILITY TRAN LT
CS -Oth Operating Inc & Expend,Trading A/c Surpluses/Deficits,Transport-Operations,Transport Related Expenditure,Contract Hire and Op Leasing,Mini Cab Hire -Soc Serv -Child,9/29/2011,4,"1,430.00",Revenue,KINGSTON ACCESSIBILITY TRAN LT
CS -Oth Operating Inc & Expend,Trading A/c Surpluses/Deficits,Transport-Operations,Transport Related Expenditure,Contract Hire and Op Leasing,Mini Cab Hire for Education,9/29/2011,5,"7,585.00",Revenue,KINGSTON ACCESSIBILITY TRAN LT
CS -Oth Operating Inc & Expend,Trading A/c Surpluses/Deficits,Transport-Operations,Transport Related Expenditure,Contract Hire and Op Leasing,Vehicle Hire for LB Sutton,9/29/2011,6,618.00,Revenue,KINGSTON ACCESSIBILITY TRAN LT
CS -Oth Operating Inc & Expend,Trading A/c Surpluses/Deficits,Transport-Operations,Transport Related Expenditure,Contract Hire and Op Leasing,Mini Cab Hire -Soc Serv -Adult,9/29/2011,7,899.00,Revenue,KINGSTON ACCESSIBILITY TRAN LT
CS -Oth Operating Inc & Expend,Trading A/c Surpluses/Deficits,Transport-Operations,Transport Related Expenditure,Contract Hire and Op Leasing,Vehicle Hire Special Projects,9/29/2011,8,"1,114.00",Revenue,KINGSTON ACCESSIBILITY TRAN LT
CS -Oth Operating Inc & Expend,Trading A/c Surpluses/Deficits,Transport-Operations,Transport Related Expenditure,Contract Hire and Op Leasing,Mini Cab Hire -Soc Serv -Child,9/29/2011,9,"1,663.00",Revenue,KINGSTON ACCESSIBILITY TRAN LT
CS -Oth Operating Inc & Expend,Trading A/c Surpluses/Deficits,Transport-Operations,Transport Related Expenditure,Contract Hire and Op Leasing,Mini Cab Hire for Education,9/29/2011,10,"6,917.50",Revenue,KINGSTON ACCESSIBILITY TRAN LT
,No FE Detail,Tiffin Boys,Fund Balances,,Other Deductions,9/29/2011,11,"96,397.85",Revenue,THE COLLECTOR OF TAXES
,No FE Detail,Ursuline  - Payroll Contract,Fund Balances,,Other Deductions,9/29/2011,12,"120,724.14",Revenue,THE COLLECTOR OF TAXES
,No FE Detail,Payroll Summary Account,Fund Balances,Funded by Other grants & contr,Extl Payees Monthly,9/29/2011,13,"3,380,096.64",Revenue,THE COLLECTOR OF TAXES
,No FE Detail,Tiffin Boys,Fund Balances,,Other Deductions,9/29/2011,14,"96,615.54",Revenue,THE COLLECTOR OF TAXES
,No FE Detail,Ursuline  - Payroll Contract,Fund Balances,,Other Deductions,9/29/2011,15,"121,715.40",Revenue,THE COLLECTOR OF TAXES
,No FE Detail,Payroll Summary Account,Fund Balances,Funded by Other grants & contr,Extl Payees Monthly,9/29/2011,16,"3,375,674.62",Revenue,THE COLLECTOR OF TAXES
Adult Social Care,Older People 65&Over inc OP-MH,OP West - Home Care External,Third Party Payments,Private Contractors,Miscellaneous Agency Services,9/29/2011,17,"23,104.47",Revenue,BELGRAVIA NURS. & CARE BUREAU
,No FE Detail,Annual Season Ticket Loans,Fund Balances,,Payments X,9/1/2011,18,912.00,Revenue,SOUTH WEST TRAINS
,No FE Detail,Payroll Summary Account,Fund Balances,Funded by Other grants & contr,Extl Payees Monthly,9/1/2011,19,"2,072.40",Revenue,REDACTED
,No FE Detail,Payroll Summary Account,Fund Balances,Funded by Other grants & contr,Extl Payees Monthly,9/1/2011,20,888.90,Revenue,REDACTED
,No FE Detail,Payroll Summary Account,Fund Balances,Funded by Other grants & contr,Extl Payees Monthly,9/1/2011,21,"2,666.41",Revenue,REDACTED
,No FE Detail,Payroll Summary Account,Fund Balances,Funded by Other grants & contr,Extl Payees Monthly,9/1/2011,22,"12,444.00",Revenue,REDACTED
,No FE Detail,Tiffin Boys,Fund Balances,,Other Deductions,9/1/2011,23,"17,898.56",Revenue,LONDON BOROUGH OF KINGSTON
,No FE Detail,Payroll Summary Account,Fund Balances,Funded by Other grants & contr,Extl Payees Monthly,9/1/2011,24,"1,360.14",Revenue,REDACTED
,No FE Detail,Payroll Summary Account,Fund Balances,Funded by Other grants & contr,Extl Payees Monthly,9/1/2011,25,"5,134.29",Revenue,REDACTED
,No FE Detail,Payroll Summary Account,Fund Balances,Funded by Other grants & contr,Extl Payees Monthly,9/1/2011,26,881.22,Revenue,REDACTED
,No FE Detail,Payroll Summary Account,Fund Balances,Funded by Other grants & contr,Extl Payees Monthly,9/1/2011,27,"8,223.79",Revenue,REDACTED
,No FE Detail,Annual Season Ticket Loans,Fund Balances,,Payments X,9/1/2011,28,"1,576.00",Revenue,LONDON UNDERGROUND LTD
,No FE Detail,Payroll Summary Account,Fund Balances,Funded by Other grants & contr,Extl Payees Monthly,9/1/2011,29,"8,828.88",Revenue,REDACTED
,No FE Detail,Ursuline  - Payroll Contract,Fund Balances,,Other Deductions,9/1/2011,30,"1,004.93",Revenue,PRUDENTIAL (TEACHERS)
,No FE Detail,Payroll Summary Account,Fund Balances,Funded by Other grants & contr,Extl Payees Monthly,9/1/2011,31,"1,323.19",Revenue,REDACTED
,No FE Detail,Tiffin Boys,Fund Balances,,Other Deductions,9/1/2011,32,695.86,Revenue,PRUDENTIAL (TEACHERS)
,No FE Detail,Payroll Summary Account,Fund Balances,Funded by Other grants & contr,Extl Payees Monthly,9/1/2011,33,"9,250.41",Revenue,REDACTED
Central Services,Retiremt Benefit -Curtailments,Pension and Redundancy Costs,Employees,Indirect Employee Expenses,Severance-Creditors,9/2/2011,34,"6,861.12",Revenue,REDACTED
Central Services,Retiremt Benefit -Curtailments,Pension and Redundancy Costs,Employees,Indirect Employee Expenses,Severance-Creditors,9/2/2011,35,"3,820.32",Revenue,REDACTED
Central Services,Retiremt Benefit -Curtailments,Pension and Redundancy Costs,Employees,Indirect Employee Expenses,Severance-Creditors,9/2/2011,36,"8,576.40",Revenue,REDACTED
Central Services,Retiremt Benefit -Curtailments,Pension and Redundancy Costs,Employees,Indirect Employee Expenses,Severance-Creditors,9/2/2011,37,"4,109.82",Revenue,REDACTED
Central Services,Retiremt Benefit -Curtailments,Pension and Redundancy Costs,Employees,Indirect Employee Expenses,Severance-Creditors,9/2/2011,38,"6,974.64",Revenue,REDACTED
Central Services,Retiremt Benefit -Curtailments,Pension and Redundancy Costs,Employees,Indirect Employee Expenses,Severance-Creditors,9/2/2011,39,"14,501.34",Revenue,REDACTED
Central Services,Retiremt Benefit -Curtailments,Pension and Redundancy Costs,Employees,Indirect Employee Expenses,Severance-Creditors,9/2/2011,40,"12,398.75",Revenue,REDACTED
Central Services,Local Tax Collection,Local Taxation Services,Supplies and Services,Services,Bailiffs' Fees,9/2/2011,41,500.00,Revenue,REDACTED
,No FE Detail,Precepts,Fund Balances,,Greate London Authority S,9/6/2011,42,"2,359,782.25",Revenue,GREATER LONDON AUTHORITY
CS -Oth Operating Inc & Expend,Precepts and Levies,Flood Defence,Corporate Items,,Expenditure,9/23/2011,43,"36,648.00",Revenue,ENVIRONMENT AGENCY
,No FE Detail,Crossrail BRS,Fund Balances,,Payments X,9/23/2011,44,"186,733.00",Revenue,GREATER LONDON AUTHORITY
CS -Oth Operating Inc & Expend,Precepts and Levies,Lee Valley Regional Park,Corporate Items,,Expenditure,9/16/2011,45,"18,350.46",Revenue,LEE VALLEY REGIONAL PARK AUTH.
CS -Oth Operating Inc & Expend,Precepts and Levies,London Pens Fund Auth,Corporate Items,,Expenditure,9/6/2011,46,"25,433.20",Revenue,LONDON PENSIONS FUND AUTHORITY
CS -Oth Operating Inc & Expend,Precepts and Levies,WPCC,Corporate Items,,Expenditure,9/6/2011,47,"26,664.74",Revenue,WPCC
Central Services,Fully rechargeable Overheads,Legal Services,Supplies and Services,Services,Court Fees,9/2/2011,48,"2,225.00",Revenue,REDACTED
,No FE Detail,Exceptnl ItemCash prior yr adj,Corporate Items,,Income   S,9/23/2011,49,"49,654.71",Revenue,LONDON BOROUGH MERTON
,No FE Detail,Exceptnl ItemCash prior yr adj,Corporate Items,,Income   S,9/22/2011,50,"12,834.46",Revenue,GOLDSBOROUGH HOMECARE
,No FE Detail,Exceptnl ItemCash prior yr adj,Corporate Items,,Income   S,9/23/2011,51,"6,117.00",Revenue,SCALABLE COMMUNICATIONS PLC
Childrens & Education Services,Family Support Services,CL CLA Team 1 - Sec 17,Transfer Payments,Adult Soc Servs Clients,Childr Act 1989 S17,9/2/2011,52,548.65,Revenue,REDACTED
Childrens & Education Services,Children Looked After (24hrs+),CL Fostering Services,Supplies and Services,Services,Task Based Fostering,9/2/2011,53,747.04,Revenue,REDACTED
Childrens & Education Services,Other Ch's & Family Services,CL Setting Up Home Allowance,Third Party Payments,Private Contractors,Miscellaneous Agency Services,9/2/2011,54,943.36,Revenue,REDACTED
CS -Oth Operating Inc & Expend,Trading A/c Surpluses/Deficits,Transport-Workshop,Transport Related Expenditure,Direct Transport Costs,Vehicle MOTs,9/2/2011,55,"1,500.00",Revenue,V.O.S.A
Housing Services,Homelessness,Homelessness Prevention,Transfer Payments,Housing Benefits,Rent Deposits,9/2/2011,56,"3,224.00",Revenue,REDACTED
,No FE Detail,Tiffin Boys,Fund Balances,,Other Deductions,9/29/2011,57,"99,297.85",Revenue,THE COLLECTOR OF TAXES
,No FE Detail,Ursuline  - Payroll Contract,Fund Balances,,Other Deductions,9/29/2011,58,"118,954.54",Revenue,THE COLLECTOR OF TAXES
,No FE Detail,Payroll Summary Account,Fund Balances,Funded by Other grants & contr,Extl Payees Monthly,9/29/2011,59,"3,371,079.28",Revenue,THE COLLECTOR OF TAXES
,No FE Detail,Exceptnl ItemCash prior yr adj,Corporate Items,,Income   S,9/23/2011,60,"1,878.95",Revenue,NORTHGATE INFORMATION SOLUTION
Cultural Env Reg&Plan Services,SMSS (Env),ES Business Systems,Supplies and Services,Equip Furniture/Materials,Application Licenses,9/6/2011,61,660.00,Revenue,DOTTED EYES LTD
Housing Services,Homelessness,Homelessness Prevention,Transfer Payments,Housing Benefits,Sanctuary Scheme Rent Rescue,9/6/2011,62,"2,300.00",Revenue,MERTON PRIORY HOMES
,No FE Detail,Exceptnl ItemCash prior yr adj,Corporate Items,,Income   S,9/22/2011,63,"7,293.10",Revenue,STH WST LON & ST GEORGES NHS
Housing Services,Homelessness,Homelessness Prevention,Transfer Payments,Housing Benefits,Rent Deposits,9/7/2011,64,"1,699.96",Revenue,ANDREWS LETTINGS & MGMT LTD
,No FE Detail,Tiffin Boys,Fund Balances,,Other Deductions,9/29/2011,65,"48,291.98",Revenue,TEACHERS PENSIONS AGENCY
,No FE Detail,Ursuline  - Payroll Contract,Fund Balances,,Other Deductions,9/29/2011,66,"54,241.32",Revenue,TEACHERS PENSIONS AGENCY
,No FE Detail,Wimbledon College,Fund Balances,Funded by Other grants & contr,Extl Payees Monthly,9/29/2011,67,"58,413.92",Revenue,TEACHERS PENSIONS AGENCY
,No FE Detail,Payroll Summary Account,Fund Balances,Funded by Other grants & contr,Extl Payees Monthly,9/29/2011,68,"730,028.28",Revenue,TEACHERS PENSIONS AGENCY
,No FE Detail,Marathon Trust BMX Track,Construct Conversn Renovatn,Consultants Fees D&S Structure,Consultants Fees D&S Structure,9/9/2011,69,"2,203.00",Capital,MATERIALS SCIENCE CONS. LTD
Adult Social Care,Asylum seekers,AS Child - Discret Pay (Grant),Third Party Payments,Private Contractors,Miscellaneous Agency Services,9/14/2011,70,671.95,Revenue,REDACTED
Childrens & Education Services,Other Ch's & Family Services,CL Setting Up Home Allowance,Third Party Payments,Private Contractors,Miscellaneous Agency Services,9/14/2011,71,"1,482.78",Revenue,REDACTED
,No FE Detail,Bldng Sub-Cntrctrs Tax Acc,Fund Balances,,Payments X,9/9/2011,72,"3,472.20",Revenue,HM REVENUE & CUSTOMS
CS -Oth Operating Inc & Expend,Trading A/c Surpluses/Deficits,Transport-Workshop,Transport Related Expenditure,Direct Transport Costs,Specialist Maint. (Off Site),9/9/2011,73,"1,750.00",Revenue,GRV
,No FE Detail,Payroll Summary Account,Fund Balances,Funded by Other grants & contr,Salary Sacrifice,9/14/2011,74,559.83,Revenue,ACCOR SERVICES
,No FE Detail,Payroll Summary Account,Fund Balances,Funded by Other grants & contr,Salary Sacrifice,9/14/2011,75,"10,178.81",Revenue,ACCOR SERVICES
Adult Social Care,Older People 65&Over inc OP-MH,OP Hosp - Residential Care Ext,Customer and client receipts,Charges,Miscellaneous Charges X,9/14/2011,76,"-1,643.80",Revenue,REDACTED
Adult Social Care,Older People 65&Over inc OP-MH,OP Hosp - Residential Care Ext,Third Party Payments,Private Contractors,Miscellaneous Agency Services,9/14/2011,77,"5,437.20",Revenue,REDACTED
Adult Social Care,Older People 65&Over inc OP-MH,OP East - Residential Care Ext,Customer and client receipts,Charges,Miscellaneous Charges X,9/14/2011,78,"-1,868.52",Revenue,REDACTED
Adult Social Care,Older People 65&Over inc OP-MH,OP East - Residential Care Ext,Third Party Payments,Private Contractors,Miscellaneous Agency Services,9/14/2011,79,"6,860.44",Revenue,REDACTED
Housing Services,Homelessness,Homelessness Prevention,Transfer Payments,Housing Benefits,Rent Deposits,9/14/2011,80,"1,300.00",Revenue,REDACTED
Housing Services,Homelessness,Homelessness Prevention,Transfer Payments,Housing Benefits,Rent Deposits,9/14/2011,81,849.89,Revenue,REDACTED
Housing Services,Homelessness,Homelessness Prevention,Transfer Payments,Housing Benefits,Rent Deposits,9/14/2011,82,"1,733.32",Revenue,WONDERQUEST
,No FE Detail,Parks Investment,Construct Conversn Renovatn,Contractor - Site works,Contractor - Site works,9/22/2011,83,"1,391.00",Capital,TAYLOR BUILDING COMPANY LTD
Cultural Env Reg&Plan Services,Open Spaces,E & R Buildings,Premises Related Expenditure,RepairsAlterations&MtceOfBldgs,Repairs & Maintenance General,9/22/2011,84,"1,987.00",Revenue,TAYLOR BUILDING COMPANY LTD
,No FE Detail,Social Workers Mitcham,Fund Balances,,Payments X,9/16/2011,85,"1,066.00",Revenue,REDACTED
Cultural Env Reg&Plan Services,Development Control,Development Control,Supplies and Services,Services,Counsel's Fees,9/16/2011,86,"4,581.50",Revenue,REDACTED
Housing Services,Housing Benefit Administration,Benefits Administration,Supplies and Services,Services,Miscellaneous Expenses,9/16/2011,87,990.00,Revenue,REDACTED
,No FE Detail,Payroll Summary Account,Fund Balances,Funded by Other grants & contr,Advances- Chqs Drawn,9/16/2011,88,872.81,Revenue,REDACTED
Adult Social Care,Older People 65&Over inc OP-MH,OP West - Misc services,Third Party Payments,Private Contractors,Miscellaneous Agency Services,9/16/2011,89,"27,037.40",Revenue,INDEPENDENT LIVING FUND
Adult Social Care,Older People 65&Over inc OP-MH,OP East - Home Care External,Third Party Payments,Private Contractors,Miscellaneous Agency Services,9/16/2011,90,"4,241.86",Revenue,TENDER LOVING CARERS DOMICILIA
Adult Social Care,Asylum seekers,AS Child - Discret Pay (Grant),Third Party Payments,Private Contractors,Miscellaneous Agency Services,9/21/2011,91,573.42,Revenue,REDACTED
Childrens & Education Services,Other Ch's & Family Services,CL Setting Up Home Allowance,Third Party Payments,Private Contractors,Miscellaneous Agency Services,9/21/2011,92,"1,061.96",Revenue,REDACTED
CS -Oth Operating Inc & Expend,Trading A/c Surpluses/Deficits,Transport-Contract Hire,Transport Related Expenditure,Contract Hire and Op Leasing,Vehicle Hire Special Projects,9/29/2011,93,760.00,Revenue,KINGSTON ACCESSIBILITY TRAN LT
CS -Oth Operating Inc & Expend,Trading A/c Surpluses/Deficits,Transport-Contract Hire,Transport Related Expenditure,Contract Hire and Op Leasing,Mini Cab Hire -Soc Serv -Child,9/29/2011,94,"1,048.00",Revenue,KINGSTON ACCESSIBILITY TRAN LT
CS -Oth Operating Inc & Expend,Trading A/c Surpluses/Deficits,Transport-Contract Hire,Transport Related Expenditure,Contract Hire and Op Leasing,Mini Cab Hire for Education,9/29/2011,95,"5,738.00",Revenue,KINGSTON ACCESSIBILITY TRAN LT
Childrens & Education Services,Family Support Services,CS Day Care CWD,Third Party Payments,Private Contractors,Miscellaneous Agency Services,9/21/2011,96,"1,200.00",Revenue,PRIORS COURT FOUNDATION
Housing Services,Homelessness,Overcrowding - Grant,Transfer Payments,Housing Benefits,Under Occupation Payments,9/21/2011,97,"4,538.00",Revenue,REDACTED
Housing Services,Homelessness,Overcrowding - Grant,Transfer Payments,Housing Benefits,Under Occupation Payments,9/21/2011,98,"5,000.00",Revenue,REDACTED
Housing Services,Homelessness,Homelessness Prevention,Transfer Payments,Housing Benefits,Rent Deposits,9/21/2011,99,849.98,Revenue,REDACTED
,No FE Detail,Tiffin Boys,Fund Balances,,Other Deductions,9/29/2011,100,"96,412.46",Revenue,THE COLLECTOR OF TAXES
,No FE Detail,Ursuline  - Payroll Contract,Fund Balances,,Other Deductions,9/29/2011,101,"119,826.58",Revenue,THE COLLECTOR OF TAXES
,No FE Detail,Payroll Summary Account,Fund Balances,Funded by Other grants & contr,Extl Payees Monthly,9/29/2011,102,"3,427,627.65",Revenue,THE COLLECTOR OF TAXES
Adult Social Care,Asylum seekers,AS Child Res Care  (No Grant),Third Party Payments,Private Contractors,Private Tenant/Landlord,9/29/2011,103,"3,060.00",Revenue,REDACTED
Childrens & Education Services,Other Ch's & Family Services,CL Setting Up Home Allowance,Third Party Payments,Private Contractors,Miscellaneous Agency Services,9/23/2011,104,"1,643.13",Revenue,REDACTED
Central Services,Retiremt Benefit -Curtailments,Pension and Redundancy Costs,Employees,Indirect Employee Expenses,Severance-Creditors,9/28/2011,105,"3,000.00",Revenue,REDACTED
Central Services,Fully rechargeable Overheads,Democratic Services,Transport Related Expenditure,Direct Transport Costs,Mayoral Exps Car,9/28/2011,106,960.00,Revenue,MORDEN TYRE SERVICES LTD
Central Services,Fully rechargeable Overheads,Legal Services,Supplies and Services,Services,Court Fees,9/29/2011,107,"4,450.00",Revenue,REDACTED
Central Services,Fully rechargeable Overheads,Legal Services,Supplies and Services,Services,Court Fees,9/29/2011,108,"1,900.00",Revenue,REDACTED
Cultural Env Reg&Plan Services,Economic Development,(LABGI)-BUSINESS SUPPORT,Supplies and Services,Grants and Subscriptions,Contributions,9/30/2011,109,"1,800.00",Revenue,REDACTED
Childrens & Education Services,Other Ch's & Family Services,CL Permanency,Supplies and Services,Services,Panel Member Expenses,9/29/2011,110,"2,000.00",Revenue,THE CHANGE AGENCY
Cultural Env Reg&Plan Services,SMSS (Env),Senior Mgt. - E.S.C.,Supplies and Services,Services,Miscellaneous Expenses,9/30/2011,111,"20,000.00",Revenue,MOHINDRA MAINI LLP SOLICITORS
Childrens & Education Services,Other Ch's & Family Services,CL Setting Up Home Allowance,Third Party Payments,Private Contractors,Miscellaneous Agency Services,9/30/2011,112,"1,183.39",Revenue,REDACTED
CS -Oth Operating Inc & Expend,Trading A/c Surpluses/Deficits,Transport-Workshop,Transport Related Expenditure,Direct Transport Costs,Specialist Maint. (Off Site),9/30/2011,113,"1,200.00",Revenue,GRV
Childrens & Education Services,Family Support Services,CS Referral & Assessment Sec17,Transfer Payments,Adult Soc Servs Clients,Childr Act 1989 S17,9/23/2011,114,-863.20,Revenue,LONDON BOROUGH MERTON
Adult Social Care,Older People 65&Over inc OP-MH,OP East - Residential Care Ext,Third Party Payments,Private Contractors,Miscellaneous Agency Services,9/1/2011,115,"11,544.16",Revenue,WOODLANDS
Adult Social Care,Adult u65 Phys/Sensory Impair,PD EAST TEAM-Homecare,Third Party Payments,Private Contractors,Miscellaneous Agency Services,9/1/2011,116,"1,329.24",Revenue,BELGRAVIA NURS. & CARE BUREAU
Adult Social Care,Adult u65 Phys/Sensory Impair,PD WEST TEAM-Homecare,Third Party Payments,Private Contractors,Miscellaneous Agency Services,9/1/2011,117,"1,700.00",Revenue,BELGRAVIA NURS. & CARE BUREAU
Adult Social Care,Adlt u65 Learning Disabilities,LD Comm -Home Care-Orch Hill,Third Party Payments,Private Contractors,Miscellaneous Agency Services,9/1/2011,118,"27,658.24",Revenue,CHOICE SUPPORT
Adult Social Care,Adlt u65 Learning Disabilities,LD Comm -Home Care-Campus Hm,Third Party Payments,Private Contractors,Miscellaneous Agency Services,9/1/2011,119,"84,828.16",Revenue,CHOICE SUPPORT
Adult Social Care,Adlt u65 Learning Disabilities,LD Comm -Home Care-Campus Hm,Third Party Payments,Private Contractors,Miscellaneous Agency Services,9/1/2011,120,"11,547.84",Revenue,CHOICE SUPPORT
Adult Social Care,Adult u65 Phys/Sensory Impair,PD EAST TEAM-Homecare,Third Party Payments,Private Contractors,Miscellaneous Agency Services,9/1/2011,121,867.60,Revenue,RNIB REDHILL COLLEGE
Adult Social Care,Adult u65 Mental Health Needs,MH Home Care External - Wim,Third Party Payments,Private Contractors,Miscellaneous Agency Services,9/1/2011,122,"1,966.80",Revenue,RNIB REDHILL COLLEGE
Adult Social Care,Adult u65 Phys/Sensory Impair,PD EAST TEAM-Homecare,Third Party Payments,Private Contractors,Miscellaneous Agency Services,9/1/2011,123,800.00,Revenue,RNIB REDHILL COLLEGE
Adult Social Care,Adlt u65 Learning Disabilities,LD Comm -Day Care-Surrey Oak,Third Party Payments,Private Contractors,Miscellaneous Agency Services,9/1/2011,124,"1,313.92",Revenue,SURREY & BORDERS PARTNERSHIP
Adult Social Care,Adult u65 Phys/Sensory Impair,PS Home Care External - NRTPF,Third Party Payments,Private Contractors,Miscellaneous Agency Services,9/1/2011,125,"4,680.00",Revenue,SUTTON COURT CARE CENTRE
Adult Social Care,Older People 65&Over inc OP-MH,OP West - Daycare,Third Party Payments,Private Contractors,Miscellaneous Agency Services,9/1/2011,126,"4,203.58",Revenue,WOODLANDS
Adult Social Care,Older People 65&Over inc OP-MH,OP - Hosp - Daycare,Third Party Payments,Private Contractors,Miscellaneous Agency Services,9/1/2011,127,"6,023.04",Revenue,WOODLANDS
Adult Social Care,Older People 65&Over inc OP-MH,OP East - Daycare,Third Party Payments,Private Contractors,Miscellaneous Agency Services,9/1/2011,128,"12,077.45",Revenue,WOODLANDS
Adult Social Care,Adlt u65 Learning Disabilities,LD Home Care External,Third Party Payments,Private Contractors,Miscellaneous Agency Services,9/1/2011,129,655.30,Revenue,BEECH HOME CARE SERVICES
Adult Social Care,Adlt u65 Learning Disabilities,LD Day Care Agency,Third Party Payments,Private Contractors,Miscellaneous Agency Services,9/1/2011,130,954.10,Revenue,GRACE EYRE FOUNDATION
Adult Social Care,Older People 65&Over inc OP-MH,OP East - Carer Services,Third Party Payments,Private Contractors,Miscellaneous Agency Services,9/1/2011,131,556.07,Revenue,HOLISTIC COMMUNITY CARE LTD
Adult Social Care,Adult u65 Phys/Sensory Impair,PD EAST TEAM-Homecare,Third Party Payments,Private Contractors,Miscellaneous Agency Services,9/1/2011,132,776.38,Revenue,HOLISTIC COMMUNITY CARE LTD
Adult Social Care,Older People 65&Over inc OP-MH,OP West - Carer Services,Third Party Payments,Private Contractors,Miscellaneous Agency Services,9/1/2011,133,983.15,Revenue,HOLISTIC COMMUNITY CARE LTD
Adult Social Care,Adult u65 Phys/Sensory Impair,PS Home Care External - NRTPF,Third Party Payments,Private Contractors,Miscellaneous Agency Services,9/1/2011,134,990.46,Revenue,HOLISTIC COMMUNITY CARE LTD
Adult Social Care,Adult u65 Phys/Sensory Impair,PD WEST TEAM-Homecare,Third Party Payments,Private Contractors,Miscellaneous Agency Services,9/1/2011,135,"1,806.63",Revenue,HOLISTIC COMMUNITY CARE LTD
Adult Social Care,Older People 65&Over inc OP-MH,OP East - Home Care External,Third Party Payments,Private Contractors,Miscellaneous Agency Services,9/1/2011,136,"5,984.11",Revenue,HOLISTIC COMMUNITY CARE LTD
Adult Social Care,Older People 65&Over inc OP-MH,OP West - Home Care External,Third Party Payments,Private Contractors,Miscellaneous Agency Services,9/1/2011,137,"7,463.27",Revenue,HOLISTIC COMMUNITY CARE LTD
Adult Social Care,Adult u65 Phys/Sensory Impair,PD WEST TEAM-Day Care,Third Party Payments,Private Contractors,Miscellaneous Agency Services,9/1/2011,138,631.88,Revenue,GENEVA ROAD LIMITED
Adult Social Care,Adlt u65 Learning Disabilities,LD Home Care External,Third Party Payments,Private Contractors,Miscellaneous Agency Services,9/1/2011,139,"3,140.08",Revenue,ODYSSEY CARE SOLUTIONS
Adult Social Care,Adult u65 Phys/Sensory Impair,PD EAST TEAM-Homecare,Third Party Payments,Private Contractors,Miscellaneous Agency Services,9/1/2011,140,672.00,Revenue,REDACTED
Childrens & Education Services,Other Ch's & Family Services,CL Leaving Care/Supp Lodgings,Third Party Payments,Private Contractors,Supported Lodgings,9/1/2011,141,857.10,Revenue,REDACTED
Adult Social Care,Older People 65&Over inc OP-MH,OP Hosp - Residential Care Ext,Third Party Payments,Private Contractors,Miscellaneous Agency Services,9/1/2011,142,"1,941.90",Revenue,ASLOCKTON HALL
Adult Social Care,Older People 65&Over inc OP-MH,OP West - Nursing Care,Third Party Payments,Private Contractors,Miscellaneous Agency Services,9/1/2011,143,"2,294.12",Revenue,BEACH LAWNS
Adult Social Care,Adlt u65 Learning Disabilities,LD Residential Care External,Third Party Payments,Private Contractors,Miscellaneous Agency Services,9/1/2011,144,"4,688.88",Revenue,CRAEGMOOR FACILITIES CO LTD
Adult Social Care,Adlt u65 Learning Disabilities,LD Residential Care External,Third Party Payments,Private Contractors,Miscellaneous Agency Services,9/1/2011,145,"4,113.72",Revenue,ESTHER CARE HOMES LIMITED
Adult Social Care,Adult u65 Phys/Sensory Impair,PD WEST TEAM-Residential Care,Third Party Payments,Private Contractors,Miscellaneous Agency Services,9/1/2011,146,"3,399.76",Revenue,THE FRANCES TAYLOR FOUNDATION
Adult Social Care,Older People 65&Over inc OP-MH,OP West - Nursing Care,Third Party Payments,Private Contractors,Miscellaneous Agency Services,9/1/2011,147,"2,341.84",Revenue,LYNTON HALL NURSING HOME
Adult Social Care,Older People 65&Over inc OP-MH,OP Hosp - Nursing Care,Third Party Payments,Private Contractors,Miscellaneous Agency Services,9/1/2011,148,"1,756.38",Revenue,LYNTON HALL NURSING HOME
Adult Social Care,Older People 65&Over inc OP-MH,OP West - Nursing Care,Third Party Payments,Private Contractors,Miscellaneous Agency Services,9/1/2011,149,"2,341.84",Revenue,LYNTON HALL NURSING HOME
Adult Social Care,Older People 65&Over inc OP-MH,OP Hosp - Nursing Care,Third Party Payments,Private Contractors,Miscellaneous Agency Services,9/1/2011,150,"2,341.84",Revenue,LYNTON HALL NURSING HOME
Adult Social Care,Adult u65 Phys/Sensory Impair,PD WEST TEAM-Nursing,Third Party Payments,Private Contractors,Miscellaneous Agency Services,9/1/2011,151,"4,800.00",Revenue,HAVERING COURT NURSING HOME
Adult Social Care,Adlt u65 Learning Disabilities,LD Residential Care External,Third Party Payments,Private Contractors,Miscellaneous Agency Services,9/1/2011,152,"4,330.44",Revenue,HUNTERS' LODGE
Adult Social Care,Older People 65&Over inc OP-MH,OP East - Residential Care Ext,Third Party Payments,Private Contractors,Miscellaneous Agency Services,9/1/2011,153,"1,386.08",Revenue,REDACTED
Adult Social Care,Older People 65&Over inc OP-MH,OP West - Nursing Care,Third Party Payments,Private Contractors,Miscellaneous Agency Services,9/1/2011,154,"2,233.00",Revenue,MOWBRAY NURSING HOME
Adult Social Care,Adlt u65 Learning Disabilities,LD Nursing Care,Third Party Payments,Private Contractors,Miscellaneous Agency Services,9/1/2011,155,"3,000.00",Revenue,SUTTON NURSING HOMES LTD
Adult Social Care,Older People 65&Over inc OP-MH,OP West - Nursing Care,Third Party Payments,Private Contractors,Miscellaneous Agency Services,9/1/2011,156,"2,255.16",Revenue,SUTTON NURSING HOMES LTD
Adult Social Care,Older People 65&Over inc OP-MH,OP East - Nursing Care,Third Party Payments,Private Contractors,Miscellaneous Agency Services,9/1/2011,157,"2,341.84",Revenue,SUTTON NURSING HOMES LTD
Adult Social Care,Older People 65&Over inc OP-MH,OP East - Nursing Care,Third Party Payments,Private Contractors,Miscellaneous Agency Services,9/1/2011,158,"2,767.04",Revenue,SUTTON NURSING HOMES LTD
Adult Social Care,Older People 65&Over inc OP-MH,OP Hosp - Nursing Care,Third Party Payments,Private Contractors,Miscellaneous Agency Services,9/1/2011,159,952.22,Revenue,SUTTON NURSING HOMES LTD
Adult Social Care,Adlt u65 Learning Disabilities,LD Comm -Residential-Orch Hill,Third Party Payments,Private Contractors,Miscellaneous Agency Services,9/1/2011,160,"5,984.08",Revenue,PROSPECT HOUSING & SUPPORT SER
Adult Social Care,Adlt u65 Learning Disabilities,LD Residential Care External,Third Party Payments,Private Contractors,Miscellaneous Agency Services,9/1/2011,161,"7,957.60",Revenue,SOLAR CARE GROUP LTD - ROBINIA
Adult Social Care,Adlt u65 Learning Disabilities,LD Comm-Residential-Surrey Oak,Third Party Payments,Private Contractors,Miscellaneous Agency Services,9/1/2011,162,"11,448.74",Revenue,SURREY & BORDERS PARTNERSHIP
Adult Social Care,Adlt u65 Learning Disabilities,LD Comm-Residential-Surrey Oak,Third Party Payments,Private Contractors,Miscellaneous Agency Services,9/1/2011,163,"11,448.74",Revenue,SURREY & BORDERS PARTNERSHIP
Adult Social Care,Adlt u65 Learning Disabilities,LD Residential Care External,Third Party Payments,Private Contractors,Miscellaneous Agency Services,9/1/2011,164,"5,022.82",Revenue,SURREY & BORDERS PARTNERSHIP
Adult Social Care,Adlt u65 Learning Disabilities,LD Residential Care External,Third Party Payments,Private Contractors,Miscellaneous Agency Services,9/1/2011,165,"5,022.82",Revenue,SURREY & BORDERS PARTNERSHIP
Adult Social Care,Adult u65 Phys/Sensory Impair,PS Nursing Care - NRTPF,Third Party Payments,Private Contractors,Miscellaneous Agency Services,9/1/2011,166,"1,923.65",Revenue,SUTTON COURT CARE CENTRE
Adult Social Care,Older People 65&Over inc OP-MH,OP West - Nursing Care,Third Party Payments,Private Contractors,Miscellaneous Agency Services,9/1/2011,167,"2,312.36",Revenue,WESTMINSTER HEALTHCARE LTD
Adult Social Care,Older People 65&Over inc OP-MH,OP West - Residential Care Ext,Third Party Payments,Private Contractors,Miscellaneous Agency Services,9/1/2011,168,"2,552.88",Revenue,WESTMINSTER HEALTHCARE LTD
Childrens & Education Services,Children Looked After (24hrs+),ART Independent Agency Foster,Supplies and Services,Services,Long Term Fostering,9/1/2011,169,"1,719.36",Revenue,FOSTER CARE ASSOCIATES LTD
Adult Social Care,Older People 65&Over inc OP-MH,OP East - Residential Care Ext,Third Party Payments,Private Contractors,Miscellaneous Agency Services,9/9/2011,170,"1,827.00",Revenue,ABBEYGATE RESIDENTIAL HOME
Adult Social Care,Adult u65 Phys/Sensory Impair,PD WEST TEAM-Residential Care,Third Party Payments,Private Contractors,Miscellaneous Agency Services,9/1/2011,171,"3,310.72",Revenue,ABBEY HOUSE RESIDENTIAL HOMES
Adult Social Care,Adult u65 Mental Health Needs,MH ResidentialCare Ext-Morden,Third Party Payments,Private Contractors,Miscellaneous Agency Services,9/1/2011,172,"4,650.00",Revenue,ABBEY HOUSE RESIDENTIAL HOMES
Adult Social Care,Older People 65&Over inc OP-MH,OP West - Residential Care Ext,Third Party Payments,Private Contractors,Miscellaneous Agency Services,9/1/2011,173,"5,152.09",Revenue,ABBEY HOUSE RESIDENTIAL HOMES
Adult Social Care,Older People 65&Over inc OP-MH,OP Hosp - Residential Care Ext,Third Party Payments,Private Contractors,Miscellaneous Agency Services,9/1/2011,174,"6,582.40",Revenue,ABBEY HOUSE RESIDENTIAL HOMES
Adult Social Care,Older People 65&Over inc OP-MH,OP East - Residential Care Ext,Third Party Payments,Private Contractors,Miscellaneous Agency Services,9/1/2011,175,"3,860.00",Revenue,ATHOL HOUSE
Adult Social Care,Older People 65&Over inc OP-MH,OP East - Nursing Care,Third Party Payments,Private Contractors,Miscellaneous Agency Services,9/1/2011,176,"3,353.84",Revenue,BRENDON CARE FOUNDATION
Adult Social Care,Older People 65&Over inc OP-MH,OP Hosp - Nursing Care,Customer and client receipts,Charges,Miscellaneous Charges X,9/1/2011,177,-760.90,Revenue,CLARENDON LS
Adult Social Care,Older People 65&Over inc OP-MH,OP Hosp - Nursing Care,Third Party Payments,Private Contractors,Miscellaneous Agency Services,9/1/2011,178,"2,337.20",Revenue,CLARENDON LS
Adult Social Care,Older People 65&Over inc OP-MH,OP Hosp - Residential Care Ext,Third Party Payments,Private Contractors,Miscellaneous Agency Services,9/1/2011,179,"2,614.29",Revenue,AVERY HOMES LEEDS
Adult Social Care,Adult u65 Phys/Sensory Impair,PD EAST TEAM-Residential,Third Party Payments,Private Contractors,Miscellaneous Agency Services,9/1/2011,180,"5,142.60",Revenue,HIGHVIEW CARE SERVICES LTD
Adult Social Care,Adult u65 Mental Health Needs,MH Res Care Ext- Mitcham West,Third Party Payments,Private Contractors,Miscellaneous Agency Services,9/1/2011,181,"1,399.96",Revenue,HILLDALE AND NORTHVIEW
Adult Social Care,Older People 65&Over inc OP-MH,OP West - Nursing Care,Third Party Payments,Private Contractors,Miscellaneous Agency Services,9/1/2011,182,"2,134.60",Revenue,KELSTONE COURT NURSING HOME
Adult Social Care,Older People 65&Over inc OP-MH,OP Hosp - Nursing Care,Third Party Payments,Private Contractors,Miscellaneous Agency Services,9/1/2011,183,"2,341.84",Revenue,KELSTONE COURT NURSING HOME
Adult Social Care,Older People 65&Over inc OP-MH,OP Hosp - Nursing Care,Third Party Payments,Private Contractors,Miscellaneous Agency Services,9/1/2011,184,"2,380.00",Revenue,KELSTONE COURT NURSING HOME
Adult Social Care,Older People 65&Over inc OP-MH,OP West - Nursing Care,Third Party Payments,Private Contractors,Miscellaneous Agency Services,9/1/2011,185,"2,173.96",Revenue,KELSTONE COURT NURSING HOME
Adult Social Care,Older People 65&Over inc OP-MH,OP Hosp - Nursing Care,Third Party Payments,Private Contractors,Miscellaneous Agency Services,9/1/2011,186,"2,341.84",Revenue,KELSTONE COURT NURSING HOME
Adult Social Care,Older People 65&Over inc OP-MH,OP East - Nursing Care,Third Party Payments,Private Contractors,Miscellaneous Agency Services,9/1/2011,187,"2,341.84",Revenue,KELSTONE COURT NURSING HOME
Adult Social Care,Older People 65&Over inc OP-MH,OP East - Residential Care Ext,Third Party Payments,Private Contractors,Miscellaneous Agency Services,9/1/2011,188,"1,812.40",Revenue,KELSTONE COURT NURSING HOME
Adult Social Care,Older People 65&Over inc OP-MH,OP Hosp - Nursing Care,Third Party Payments,Private Contractors,Miscellaneous Agency Services,9/1/2011,189,"2,341.84",Revenue,KELSTONE COURT NURSING HOME
Adult Social Care,Older People 65&Over inc OP-MH,OP Morden - Nursing Care,Third Party Payments,Private Contractors,Miscellaneous Agency Services,9/1/2011,190,"2,341.84",Revenue,KELSTONE COURT NURSING HOME
Adult Social Care,Older People 65&Over inc OP-MH,OP Morden - Nursing Care,Third Party Payments,Private Contractors,Miscellaneous Agency Services,9/1/2011,191,"2,341.84",Revenue,KELSTONE COURT NURSING HOME
Adult Social Care,Older People 65&Over inc OP-MH,OP West - Nursing Care,Third Party Payments,Private Contractors,Miscellaneous Agency Services,9/1/2011,192,"2,341.84",Revenue,KELSTONE COURT NURSING HOME
Adult Social Care,Older People 65&Over inc OP-MH,OP West - Nursing Care,Third Party Payments,Private Contractors,Miscellaneous Agency Services,9/1/2011,193,"2,341.84",Revenue,KELSTONE COURT NURSING HOME
Adult Social Care,Older People 65&Over inc OP-MH,OP Morden - Nursing Care,Third Party Payments,Private Contractors,Miscellaneous Agency Services,9/1/2011,194,"2,341.84",Revenue,KELSTONE COURT NURSING HOME
Adult Social Care,Adlt u65 Learning Disabilities,LD Nursing Care,Third Party Payments,Private Contractors,Miscellaneous Agency Services,9/1/2011,195,"5,884.32",Revenue,SUSSEX HEALTH CARE
Adult Social Care,Adlt u65 Learning Disabilities,LD Residential Care External,Third Party Payments,Private Contractors,Miscellaneous Agency Services,9/1/2011,196,"6,552.00",Revenue,SUSSEX HEALTH CARE
Adult Social Care,Adult u65 Phys/Sensory Impair,PD WEST TEAM-Nursing,Customer and client receipts,Charges,Miscellaneous Charges X,9/1/2011,197,-786.00,Revenue,REDACTED
Adult Social Care,Adult u65 Phys/Sensory Impair,PD WEST TEAM-Nursing,Third Party Payments,Private Contractors,Miscellaneous Agency Services,9/1/2011,198,"4,254.28",Revenue,REDACTED
Adult Social Care,Adlt u65 Learning Disabilities,LD Residential Care External,Third Party Payments,Private Contractors,Miscellaneous Agency Services,9/1/2011,199,"3,182.08",Revenue,ODYSSEY CARE SOLUTIONS
Adult Social Care,Adlt u65 Learning Disabilities,LD Residential Care External,Third Party Payments,Private Contractors,Miscellaneous Agency Services,9/1/2011,200,"4,984.60",Revenue,ODYSSEY CARE SOLUTIONS
Adult Social Care,Older People 65&Over inc OP-MH,OP West - Residential Care Ext,Third Party Payments,Private Contractors,Miscellaneous Agency Services,9/1/2011,201,"1,987.80",Revenue,PORTELET LODGE
Adult Social Care,Adult u65 Phys/Sensory Impair,PD WEST TEAM-Residential Care,Third Party Payments,Private Contractors,Miscellaneous Agency Services,9/1/2011,202,"3,811.60",Revenue,VIRIDIAN HOUSING
Adult Social Care,Older People 65&Over inc OP-MH,OP Hosp - Residential Care Ext,Third Party Payments,Private Contractors,Miscellaneous Agency Services,9/1/2011,203,"1,799.84",Revenue,ROSEDALE REST HOME
Adult Social Care,Older People 65&Over inc OP-MH,OP East - Residential Care Ext,Third Party Payments,Private Contractors,Miscellaneous Agency Services,9/1/2011,204,"1,464.64",Revenue,ROSEDALE REST HOME
Adult Social Care,Older People 65&Over inc OP-MH,OP East - Residential Care Ext,Third Party Payments,Private Contractors,Miscellaneous Agency Services,9/1/2011,205,"1,786.40",Revenue,ROSEDALE REST HOME
Adult Social Care,Older People 65&Over inc OP-MH,OP East - Residential Care Ext,Third Party Payments,Private Contractors,Miscellaneous Agency Services,9/1/2011,206,"1,745.80",Revenue,ROSEDALE REST HOME
Adult Social Care,Older People 65&Over inc OP-MH,OP Hosp - Nursing Care,Third Party Payments,Private Contractors,Miscellaneous Agency Services,9/1/2011,207,"1,421.83",Revenue,SUTTON COURT CARE CENTRE
Adult Social Care,Adlt u65 Learning Disabilities,LD Residential Care External,Third Party Payments,Private Contractors,Miscellaneous Agency Services,9/1/2011,208,"10,995.68",Revenue,AIMS CARE PARTNERSHIP
Childrens & Education Services,Other Ch's & Family Services,CL Leaving Care/Supp Lodgings,Third Party Payments,Private Contractors,Supported Lodgings,9/1/2011,209,600.00,Revenue,REDACTED
Childrens & Education Services,Other Ch's & Family Services,CL Leaving Care/Supp Lodgings,Third Party Payments,Private Contractors,Supported Lodgings,9/1/2011,210,800.00,Revenue,REDACTED
Adult Social Care,Adult u65 Phys/Sensory Impair,PD WEST TEAM-Homecare,Third Party Payments,Private Contractors,Miscellaneous Agency Services,9/2/2011,211,"1,329.24",Revenue,BELGRAVIA NURS. & CARE BUREAU
Adult Social Care,Adult u65 Phys/Sensory Impair,PD WEST TEAM-Homecare,Third Party Payments,Private Contractors,Miscellaneous Agency Services,9/2/2011,212,664.62,Revenue,BELGRAVIA NURS. & CARE BUREAU
Adult Social Care,Adult u65 Phys/Sensory Impair,PD WEST TEAM-Homecare,Third Party Payments,Private Contractors,Miscellaneous Agency Services,9/2/2011,213,850.00,Revenue,BELGRAVIA NURS. & CARE BUREAU
Adult Social Care,Adlt u65 Learning Disabilities,LD Day Care Agency,Third Party Payments,Private Contractors,Miscellaneous Agency Services,9/2/2011,214,954.08,Revenue,BRIGSTOCK ACTIVITY CENTRE
Adult Social Care,Adlt u65 Learning Disabilities,LD Day Care Agency,Third Party Payments,Private Contractors,Miscellaneous Agency Services,9/2/2011,215,648.96,Revenue,ELIZABETH FITZROY HOMES
Adult Social Care,Adlt u65 Learning Disabilities,LD Home Care External,Third Party Payments,Private Contractors,Miscellaneous Agency Services,9/2/2011,216,"2,488.48",Revenue,ELIZABETH FITZROY HOMES
Adult Social Care,Adlt u65 Learning Disabilities,LD Day Care Agency,Third Party Payments,Private Contractors,Miscellaneous Agency Services,9/2/2011,217,618.20,Revenue,HIGH HURLANDS HOMES
Adult Social Care,Adlt u65 Learning Disabilities,LD Home Care External,Third Party Payments,Private Contractors,Miscellaneous Agency Services,9/2/2011,218,"1,124.64",Revenue,ROYAL MENCAP SOCIETY
Adult Social Care,Adlt u65 Learning Disabilities,LD Day Care Agency,Third Party Payments,Private Contractors,Miscellaneous Agency Services,9/2/2011,219,986.24,Revenue,THE SHEILING TRUST
Adult Social Care,Older People 65&Over inc OP-MH,OP East - Daycare,Third Party Payments,Private Contractors,Miscellaneous Agency Services,9/2/2011,220,779.40,Revenue,SOLACE COMMUNITY CARE LTD
Adult Social Care,Adlt u65 Learning Disabilities,LD Carer Services,Third Party Payments,Private Contractors,Miscellaneous Agency Services,9/2/2011,221,519.80,Revenue,SUPREME CARE SERVICES LIMITED
Adult Social Care,Adult u65 Phys/Sensory Impair,PD EAST TEAM-Homecare,Third Party Payments,Private Contractors,Miscellaneous Agency Services,9/2/2011,222,610.01,Revenue,SUPREME CARE SERVICES LIMITED
Adult Social Care,Adult u65 Phys/Sensory Impair,PD WEST TEAM-Homecare,Third Party Payments,Private Contractors,Miscellaneous Agency Services,9/2/2011,223,761.94,Revenue,SUPREME CARE SERVICES LIMITED
Adult Social Care,Adult u65 Mental Health Needs,MH Home Care External-MitWest,Third Party Payments,Private Contractors,Miscellaneous Agency Services,9/2/2011,224,980.41,Revenue,SUPREME CARE SERVICES LIMITED
Adult Social Care,Older People 65&Over inc OP-MH,OP Hosp - Home Care External,Third Party Payments,Private Contractors,Miscellaneous Agency Services,9/2/2011,225,"1,178.98",Revenue,SUPREME CARE SERVICES LIMITED
Adult Social Care,Older People 65&Over inc OP-MH,OP East - Carer Services,Third Party Payments,Private Contractors,Miscellaneous Agency Services,9/2/2011,226,"1,657.73",Revenue,SUPREME CARE SERVICES LIMITED
Adult Social Care,Older People 65&Over inc OP-MH,OP West - Carer Services,Third Party Payments,Private Contractors,Miscellaneous Agency Services,9/2/2011,227,"3,077.28",Revenue,SUPREME CARE SERVICES LIMITED
Adult Social Care,Older People 65&Over inc OP-MH,OP West - Home Care External,Third Party Payments,Private Contractors,Miscellaneous Agency Services,9/2/2011,228,"11,582.85",Revenue,SUPREME CARE SERVICES LIMITED
Adult Social Care,Older People 65&Over inc OP-MH,OP East - Home Care External,Third Party Payments,Private Contractors,Miscellaneous Agency Services,9/2/2011,229,"20,471.23",Revenue,SUPREME CARE SERVICES LIMITED
Adult Social Care,Older People 65&Over inc OP-MH,OP East - Home Care External,Third Party Payments,Private Contractors,Miscellaneous Agency Services,9/2/2011,230,796.90,Revenue,TLC CARE
Adult Social Care,Older People 65&Over inc OP-MH,OP East - Home Care External,Third Party Payments,Private Contractors,Miscellaneous Agency Services,9/2/2011,231,"1,722.48",Revenue,TLC CARE
Adult Social Care,Older People 65&Over inc OP-MH,OP East - Home Care External,Third Party Payments,Private Contractors,Miscellaneous Agency Services,9/2/2011,232,"1,722.48",Revenue,TLC CARE
Adult Social Care,Adlt u65 Learning Disabilities,LD Comm -Home Care-Campus Hm,Third Party Payments,Private Contractors,Miscellaneous Agency Services,9/2/2011,233,"8,449.68",Revenue,THE AVENUES TRUST GROUP
Adult Social Care,Adlt u65 Learning Disabilities,LD Comm -Home Care-Campus Hm,Third Party Payments,Private Contractors,Miscellaneous Agency Services,9/2/2011,234,"8,449.68",Revenue,THE AVENUES TRUST GROUP
Adult Social Care,Older People 65&Over inc OP-MH,OP East - Residential Care Ext,Third Party Payments,Private Contractors,Miscellaneous Agency Services,9/2/2011,235,"2,120.00",Revenue,ALBA ROSE RESIDENTIAL HOME
Adult Social Care,Older People 65&Over inc OP-MH,OP East - Residential Care Ext,Third Party Payments,Private Contractors,Miscellaneous Agency Services,9/2/2011,236,"2,120.00",Revenue,ALBA ROSE RESIDENTIAL HOME
Adult Social Care,Adult u65 Mental Health Needs,MH ResidentialCare Ext - Wim,Third Party Payments,Private Contractors,Miscellaneous Agency Services,9/2/2011,237,"1,524.76",Revenue,ALDWICK RESIDENTIAL CARE HOME
Adult Social Care,Adult u65 Mental Health Needs,MH ResidentialCare Ext-Morden,Third Party Payments,Private Contractors,Miscellaneous Agency Services,9/2/2011,238,"1,560.00",Revenue,ALDWICK RESIDENTIAL CARE HOME
Adult Social Care,Older People 65&Over inc OP-MH,OP West - Residential Care Ext,Third Party Payments,Private Contractors,Miscellaneous Agency Services,9/2/2011,239,"1,380.00",Revenue,ASHMOUNT RESIDENTIAL & NURSING
Adult Social Care,Older People 65&Over inc OP-MH,OP Hosp - Nursing Care,Third Party Payments,Private Contractors,Miscellaneous Agency Services,9/2/2011,240,"2,478.06",Revenue,LONDON RESIDENTIAL H/CARE LTD
Adult Social Care,Older People 65&Over inc OP-MH,OP West - Nursing Care,Third Party Payments,Private Contractors,Miscellaneous Agency Services,9/2/2011,241,"2,478.06",Revenue,LONDON RESIDENTIAL H/CARE LTD
Adult Social Care,Adult u65 Phys/Sensory Impair,PD EAST TEAM-Residential,Third Party Payments,Private Contractors,Miscellaneous Agency Services,9/2/2011,242,"6,428.70",Revenue,BRAMBLEDOWN CARE HOME
Adult Social Care,Adlt u65 Learning Disabilities,LD Residential Care External,Third Party Payments,Private Contractors,Miscellaneous Agency Services,9/2/2011,243,"3,798.04",Revenue,BRIGSTOCK HOUSE
Adult Social Care,Adult u65 Mental Health Needs,MH ResidentialCare Ext-Morden,Third Party Payments,Private Contractors,Miscellaneous Agency Services,9/2/2011,244,"2,247.00",Revenue,BROOKDALE HEALTH CARE
Adult Social Care,Adlt u65 Learning Disabilities,LD Residential Care External,Third Party Payments,Private Contractors,Miscellaneous Agency Services,9/2/2011,245,"6,865.71",Revenue,CARRICKS BROOK
Adult Social Care,Adult u65 Phys/Sensory Impair,PD EAST TEAM-Nursing,Third Party Payments,Private Contractors,Miscellaneous Agency Services,9/2/2011,246,"5,800.00",Revenue,BUPA CARE HOMES
Adult Social Care,Adult u65 Phys/Sensory Impair,PD EAST TEAM-Nursing,Third Party Payments,Private Contractors,Miscellaneous Agency Services,9/2/2011,247,"7,561.44",Revenue,BUPA CARE SERVICES BACS RECEIP
Adult Social Care,Older People 65&Over inc OP-MH,OP East - Nursing Care,Third Party Payments,Private Contractors,Miscellaneous Agency Services,9/2/2011,248,"2,805.19",Revenue,CARE UK
Adult Social Care,Older People 65&Over inc OP-MH,OP East - Nursing Care,Third Party Payments,Private Contractors,Miscellaneous Agency Services,9/2/2011,249,"2,533.72",Revenue,CARE UK
Adult Social Care,Older People 65&Over inc OP-MH,OP Hosp - Residential Care Ext,Third Party Payments,Private Contractors,Miscellaneous Agency Services,9/2/2011,250,"2,200.00",Revenue,CARTER HOUSE
Adult Social Care,Older People 65&Over inc OP-MH,OP West - Residential Care Ext,Third Party Payments,Private Contractors,Miscellaneous Agency Services,9/2/2011,251,"2,800.00",Revenue,CARTER HOUSE
Adult Social Care,Older People 65&Over inc OP-MH,OP Hosp - Nursing Care,Third Party Payments,Private Contractors,Miscellaneous Agency Services,9/2/2011,252,"2,341.84",Revenue,REDACTED
Adult Social Care,Older People 65&Over inc OP-MH,OP Hosp - Nursing Care,Third Party Payments,Private Contractors,Miscellaneous Agency Services,9/2/2011,253,"2,341.84",Revenue,REDACTED
Adult Social Care,Older People 65&Over inc OP-MH,OP Hosp - Nursing Care,Third Party Payments,Private Contractors,Miscellaneous Agency Services,9/2/2011,254,"2,341.84",Revenue,REDACTED
Adult Social Care,Older People 65&Over inc OP-MH,OP East - Nursing Care,Third Party Payments,Private Contractors,Miscellaneous Agency Services,9/2/2011,255,"2,221.84",Revenue,REDACTED
Adult Social Care,Adlt u65 Learning Disabilities,LD Residential Care External,Third Party Payments,Private Contractors,Miscellaneous Agency Services,9/2/2011,256,"4,460.92",Revenue,REDACTED
Adult Social Care,Adult u65 Mental Health Needs,MH ResidentialCare Ext - Wim,Third Party Payments,Private Contractors,Miscellaneous Agency Services,9/2/2011,257,"3,552.52",Revenue,COMMUNITY HOUSING & THERAPY
Adult Social Care,Adult u65 Mental Health Needs,MH Res Care Ext- Mitcham West,Third Party Payments,Private Contractors,Miscellaneous Agency Services,9/2/2011,258,"3,900.00",Revenue,COMMUNITY HOUSING & THERAPY
Adult Social Care,Adult u65 Phys/Sensory Impair,PD EAST TEAM-Residential,Third Party Payments,Private Contractors,Miscellaneous Agency Services,9/2/2011,259,"4,226.28",Revenue,THE DISABILITIES TRUST
Adult Social Care,Older People 65&Over inc OP-MH,OP Hosp - Residential Care Ext,Third Party Payments,Private Contractors,Miscellaneous Agency Services,9/2/2011,260,"1,800.00",Revenue,EDMUND HOUSE
Adult Social Care,Older People 65&Over inc OP-MH,OP West - Nursing Care,Third Party Payments,Private Contractors,Miscellaneous Agency Services,9/2/2011,261,"2,547.26",Revenue,GOFFS PARK NURSING HOME
Adult Social Care,Older People 65&Over inc OP-MH,OP Hosp - Nursing Care,Third Party Payments,Private Contractors,Miscellaneous Agency Services,9/2/2011,262,"2,406.60",Revenue,GROSVENOR PARK NURSING HOME
Adult Social Care,Older People 65&Over inc OP-MH,OP East - Residential Care Ext,Third Party Payments,Private Contractors,Miscellaneous Agency Services,9/2/2011,263,"1,522.36",Revenue,CHICHESTER HALL CARE HOME LTD
Adult Social Care,Older People 65&Over inc OP-MH,OP Hosp - Residential Care Ext,Third Party Payments,Private Contractors,Miscellaneous Agency Services,9/2/2011,264,"2,200.00",Revenue,HASLINGTON RESIDENTIAL HOME
Adult Social Care,Adlt u65 Learning Disabilities,LD Nursing Care,Third Party Payments,Private Contractors,Miscellaneous Agency Services,9/2/2011,265,"5,405.68",Revenue,HIGH HURLANDS HOMES
Adult Social Care,Adult u65 Mental Health Needs,MH Res Care Ext- Mitcham West,Third Party Payments,Private Contractors,Miscellaneous Agency Services,9/2/2011,266,"1,399.96",Revenue,HILLDALE AND NORTHVIEW
Adult Social Care,Adult u65 Mental Health Needs,MH ResidentialCare Ext-Morden,Third Party Payments,Private Contractors,Miscellaneous Agency Services,9/2/2011,267,"2,839.00",Revenue,REDACTED
Adult Social Care,Older People 65&Over inc OP-MH,OP Hosp - Residential Care Ext,Third Party Payments,Private Contractors,Miscellaneous Agency Services,9/2/2011,268,"1,812.00",Revenue,LAURELS CARE HOME
Adult Social Care,Adlt u65 Learning Disabilities,LD Residential Care External,Third Party Payments,Private Contractors,Miscellaneous Agency Services,9/2/2011,269,"5,931.68",Revenue,THE LEO TRUST
Adult Social Care,Adult u65 Mental Health Needs,MH ResidentialCare Ext-Morden,Third Party Payments,Private Contractors,Miscellaneous Agency Services,9/2/2011,270,"3,714.25",Revenue,LONA LODGE
Adult Social Care,Older People 65&Over inc OP-MH,OP West - Nursing Care,Third Party Payments,Private Contractors,Miscellaneous Agency Services,9/2/2011,271,"2,457.86",Revenue,LYNWOOD NURSING HOME
Adult Social Care,Adlt u65 Learning Disabilities,LD Residential Care External,Third Party Payments,Private Contractors,Miscellaneous Agency Services,9/2/2011,272,"5,230.76",Revenue,MACINTYRE
Adult Social Care,Adlt u65 Learning Disabilities,LD Residential Care External,Third Party Payments,Private Contractors,Miscellaneous Agency Services,9/2/2011,273,"3,045.24",Revenue,MACINTYRE
Adult Social Care,Adlt u65 Learning Disabilities,LD Residential Care External,Third Party Payments,Private Contractors,Miscellaneous Agency Services,9/2/2011,274,"4,392.00",Revenue,MACINTYRE
Adult Social Care,Older People 65&Over inc OP-MH,OP East - Residential Care Ext,Third Party Payments,Private Contractors,Miscellaneous Agency Services,9/2/2011,275,"1,827.00",Revenue,MEDIHANDS CLIFTON CARE HOME
Adult Social Care,Older People 65&Over inc OP-MH,OP East - Residential Care Ext,Third Party Payments,Private Contractors,Miscellaneous Agency Services,9/2/2011,276,"1,827.00",Revenue,MEDIHANDS CLIFTON CARE HOME
Adult Social Care,Older People 65&Over inc OP-MH,OP East - Residential Care Ext,Third Party Payments,Private Contractors,Miscellaneous Agency Services,9/2/2011,277,"7,508.52",Revenue,MEDIHANDS CLIFTON CARE HOME
Adult Social Care,Older People 65&Over inc OP-MH,OP East - Residential Care Ext,Third Party Payments,Private Contractors,Miscellaneous Agency Services,9/2/2011,278,"1,827.00",Revenue,MEDIHANDS CLIFTON CARE HOME
Adult Social Care,Adlt u65 Learning Disabilities,LD Residential Care External,Third Party Payments,Private Contractors,Miscellaneous Agency Services,9/2/2011,279,"2,046.39",Revenue,OAKDOWN HOUSE LTD
Adult Social Care,Adult u65 Phys/Sensory Impair,PD EAST TEAM-Nursing,Third Party Payments,Private Contractors,Miscellaneous Agency Services,9/2/2011,280,"3,800.00",Revenue,QUEEN ALEXANDRA HOSPITAL HOME
Adult Social Care,Adult u65 Phys/Sensory Impair,PD EAST TEAM-Residential,Third Party Payments,Private Contractors,Miscellaneous Agency Services,9/2/2011,281,"5,068.72",Revenue,RNIB REDHILL COLLEGE
Adult Social Care,Adult u65 Mental Health Needs,MH ResidentialCare Ext - Wim,Third Party Payments,Private Contractors,Miscellaneous Agency Services,9/2/2011,282,"6,500.00",Revenue,SIGNHEALTH
Adult Social Care,Older People 65&Over inc OP-MH,OP Hosp - Residential Care Ext,Third Party Payments,Private Contractors,Miscellaneous Agency Services,9/2/2011,283,"1,812.40",Revenue,ST MARY'S LODGE
Adult Social Care,Older People 65&Over inc OP-MH,OP Hosp - Residential Care Ext,Third Party Payments,Private Contractors,Miscellaneous Agency Services,9/2/2011,284,"1,812.40",Revenue,ST MARY'S LODGE
Adult Social Care,Older People 65&Over inc OP-MH,OP East - Residential Care Ext,Third Party Payments,Private Contractors,Miscellaneous Agency Services,9/2/2011,285,"1,812.40",Revenue,ST MARY'S LODGE
Adult Social Care,Older People 65&Over inc OP-MH,OP East - Residential Care Ext,Third Party Payments,Private Contractors,Miscellaneous Agency Services,9/2/2011,286,"1,812.40",Revenue,ST MARY'S LODGE
Adult Social Care,Older People 65&Over inc OP-MH,OP East - Residential Care Ext,Third Party Payments,Private Contractors,Miscellaneous Agency Services,9/2/2011,287,"1,812.40",Revenue,ST MARY'S LODGE
Adult Social Care,Older People 65&Over inc OP-MH,OP Hosp - Residential Care Ext,Third Party Payments,Private Contractors,Miscellaneous Agency Services,9/2/2011,288,"1,812.40",Revenue,ST MARY'S LODGE
Adult Social Care,Older People 65&Over inc OP-MH,OP Hosp - Residential Care Ext,Third Party Payments,Private Contractors,Miscellaneous Agency Services,9/2/2011,289,"1,812.40",Revenue,ST MARY'S LODGE
Adult Social Care,Older People 65&Over inc OP-MH,OP West - Residential Care Ext,Third Party Payments,Private Contractors,Miscellaneous Agency Services,9/2/2011,290,"1,812.40",Revenue,ST MARY'S LODGE
Adult Social Care,Older People 65&Over inc OP-MH,OP Hosp - Nursing Care,Third Party Payments,Private Contractors,Miscellaneous Agency Services,9/2/2011,291,"2,341.84",Revenue,SUTTON COURT CARE CENTRE
Adult Social Care,Older People 65&Over inc OP-MH,OP East - Nursing Care,Third Party Payments,Private Contractors,Miscellaneous Agency Services,9/2/2011,292,"2,334.52",Revenue,THE CROFT NURSING HOME
Adult Social Care,Older People 65&Over inc OP-MH,OP West - Residential Care Ext,Third Party Payments,Private Contractors,Miscellaneous Agency Services,9/2/2011,293,"2,100.00",Revenue,THE DEVONSHIRE RESID CARE HOME
Adult Social Care,Older People 65&Over inc OP-MH,OP East - Residential Care Ext,Customer and client receipts,Charges,Miscellaneous Charges X,9/2/2011,294,-606.60,Revenue,LANGLEY HOUSE TRUST
Adult Social Care,Older People 65&Over inc OP-MH,OP East - Residential Care Ext,Third Party Payments,Private Contractors,Miscellaneous Agency Services,9/2/2011,295,"1,632.64",Revenue,LANGLEY HOUSE TRUST
Adult Social Care,Older People 65&Over inc OP-MH,OP West - Nursing Care,Third Party Payments,Private Contractors,Miscellaneous Agency Services,9/2/2011,296,"2,842.00",Revenue,TRINITY COURT NURSING HOME
Adult Social Care,Adult u65 Phys/Sensory Impair,PD WEST TEAM-Residential Care,Third Party Payments,Private Contractors,Miscellaneous Agency Services,9/8/2011,297,"1,160.00",Revenue,VITALISE
Adult Social Care,Adult u65 Phys/Sensory Impair,PD WEST TEAM-Residential Care,Third Party Payments,Private Contractors,Miscellaneous Agency Services,9/8/2011,298,"2,320.00",Revenue,VITALISE
Adult Social Care,Adlt u65 Learning Disabilities,LD Residential Care External,Third Party Payments,Private Contractors,Miscellaneous Agency Services,9/2/2011,299,"5,829.72",Revenue,WALSINGHAM
Adult Social Care,Adlt u65 Learning Disabilities,LD Residential Care External,Third Party Payments,Private Contractors,Miscellaneous Agency Services,9/2/2011,300,"5,826.12",Revenue,WALSINGHAM
Adult Social Care,Adlt u65 Learning Disabilities,LD Residential Care External,Third Party Payments,Private Contractors,Miscellaneous Agency Services,9/2/2011,301,"5,826.12",Revenue,WALSINGHAM
Adult Social Care,Older People 65&Over inc OP-MH,OP Hosp - Nursing Care,Third Party Payments,Private Contractors,Miscellaneous Agency Services,9/2/2011,302,"2,700.00",Revenue,WILLOW LODGE
Adult Social Care,Older People 65&Over inc OP-MH,OP East -Direct Payment Scheme,Third Party Payments,Private Contractors,Direct Payments,9/2/2011,303,857.04,Revenue,REDACTED
Adult Social Care,Asylum seekers,AS Child Res Care  (No Grant),Third Party Payments,Private Contractors,Private Tenant/Landlord,9/2/2011,304,600.00,Revenue,REDACTED
Childrens & Education Services,Children Looked After (24hrs+),ART Independent Agency Foster,Supplies and Services,Services,Task Based Fostering,9/2/2011,305,"7,702.26",Revenue,THE FOSTER CARE AGENCY
Adult Social Care,Asylum seekers,AS Child - Res Care (Grant),Third Party Payments,Private Contractors,Miscellaneous Agency Services,9/2/2011,306,"1,250.00",Revenue,LIVINGSTONE SUPPORTED HOUSING
Childrens & Education Services,Other Ch's & Family Services,CL Leaving Care/Supp Lodgings,Third Party Payments,Private Contractors,Miscellaneous Agency Services,9/2/2011,307,"1,000.00",Revenue,LIVINGSTONE SUPPORTED HOUSING
Childrens & Education Services,Other Ch's & Family Services,CL Leaving Care/Supp Lodgings,Third Party Payments,Private Contractors,Miscellaneous Agency Services,9/2/2011,308,900.00,Revenue,RBS INVOICE FINANCE LIMITED
Adult Social Care,Adult u65 Mental Health Needs,HS Adult Placements,Third Party Payments,Private Contractors,Accommodation Based Support,9/2/2011,309,"2,055.04",Revenue,TRISWIT LIMITED
Adult Social Care,Adult u65 Mental Health Needs,MH Adult Placement Cont-Wim,Third Party Payments,Private Contractors,Accommodation Based Support,9/2/2011,310,"2,000.00",Revenue,REDACTED
Adult Social Care,Adult u65 Mental Health Needs,MH Adult PlacementCont-MitWest,Third Party Payments,Private Contractors,Accommodation Based Support,9/2/2011,311,"1,000.00",Revenue,REDACTED
Adult Social Care,Adult u65 Mental Health Needs,HS Adult Placements,Third Party Payments,Private Contractors,Accommodation Based Support,9/2/2011,312,636.72,Revenue,REDACTED
Adult Social Care,Adult u65 Mental Health Needs,HS Adult Placements,Third Party Payments,Private Contractors,Accommodation Based Support,9/2/2011,313,"1,776.52",Revenue,REDACTED
Adult Social Care,Adult u65 Mental Health Needs,HS Adult Placements,Third Party Payments,Private Contractors,Accommodation Based Support,9/2/2011,314,697.36,Revenue,REDACTED
Adult Social Care,Adlt u65 Learning Disabilities,LD Adult Placements - HST,Third Party Payments,Private Contractors,Accommodation Based Support,9/2/2011,315,"1,121.84",Revenue,REDACTED
Adult Social Care,Adlt u65 Learning Disabilities,LD AdultPlacementCont,Third Party Payments,Private Contractors,Accommodation Based Support,9/2/2011,316,"1,071.52",Revenue,REDACTED
Adult Social Care,Adult u65 Mental Health Needs,HS Adult Placements,Third Party Payments,Private Contractors,Accommodation Based Support,9/2/2011,317,848.96,Revenue,REDACTED
Childrens & Education Services,Children Looked After (24hrs+),ART Independent Agency Foster,Supplies and Services,Services,Task Based Fostering,9/5/2011,318,"1,569.26",Revenue,CORNERWAYS FOSTERING SERV.LTD
Childrens & Education Services,Children Looked After (24hrs+),ART Independent Agency Foster,Supplies and Services,Services,Task Based Fostering,9/5/2011,319,"1,569.26",Revenue,CORNERWAYS FOSTERING SERV.LTD
Adult Social Care,Older People 65&Over inc OP-MH,OP Hosp - Home Care External,Third Party Payments,Private Contractors,Miscellaneous Agency Services,9/5/2011,320,784.95,Revenue,ANCHOR CARE
Adult Social Care,Older People 65&Over inc OP-MH,OP East - Carer Services,Third Party Payments,Private Contractors,Miscellaneous Agency Services,9/5/2011,321,"1,271.63",Revenue,ANCHOR CARE
Adult Social Care,Adult u65 Phys/Sensory Impair,PD EAST TEAM-Homecare,Third Party Payments,Private Contractors,Miscellaneous Agency Services,9/5/2011,322,"1,550.77",Revenue,ANCHOR CARE
Adult Social Care,Adult u65 Phys/Sensory Impair,PD WEST TEAM-Homecare,Third Party Payments,Private Contractors,Miscellaneous Agency Services,9/5/2011,323,"2,000.28",Revenue,ANCHOR CARE
Adult Social Care,Older People 65&Over inc OP-MH,OP West - Home Care External,Third Party Payments,Private Contractors,Miscellaneous Agency Services,9/5/2011,324,"14,098.00",Revenue,ANCHOR CARE
Adult Social Care,Older People 65&Over inc OP-MH,OP East - Home Care External,Third Party Payments,Private Contractors,Miscellaneous Agency Services,9/5/2011,325,"21,129.47",Revenue,ANCHOR CARE
Adult Social Care,Adlt u65 Learning Disabilities,LD Home Care External,Third Party Payments,Private Contractors,Miscellaneous Agency Services,9/5/2011,326,"7,400.40",Revenue,COMMUNITY HOME CARE PROVIDER
Adult Social Care,Adult u65 Phys/Sensory Impair,PD EAST TEAM-Homecare,Third Party Payments,Private Contractors,Miscellaneous Agency Services,9/5/2011,327,637.98,Revenue,COMMUNITY HOME CARE PROVIDER
Adult Social Care,Older People 65&Over inc OP-MH,OP East - Carer Services,Third Party Payments,Private Contractors,Miscellaneous Agency Services,9/5/2011,328,639.43,Revenue,COMMUNITY HOME CARE PROVIDER
Adult Social Care,Older People 65&Over inc OP-MH,OP East - Home Care External,Third Party Payments,Private Contractors,Miscellaneous Agency Services,9/5/2011,329,"1,081.65",Revenue,COMMUNITY HOME CARE PROVIDER
Adult Social Care,Older People 65&Over inc OP-MH,OP East - Carer Services,Third Party Payments,Private Contractors,Miscellaneous Agency Services,9/5/2011,330,"1,290.83",Revenue,HFH HOMECARE LTD
Adult Social Care,Adult u65 Phys/Sensory Impair,PD EAST TEAM-Homecare,Third Party Payments,Private Contractors,Miscellaneous Agency Services,9/5/2011,331,"1,523.74",Revenue,HFH HOMECARE LTD
Adult Social Care,Older People 65&Over inc OP-MH,OP East - Home Care External,Third Party Payments,Private Contractors,Miscellaneous Agency Services,9/5/2011,332,"2,581.45",Revenue,HFH HOMECARE LTD
Adult Social Care,Older People 65&Over inc OP-MH,OP West - Home Care External,Third Party Payments,Private Contractors,Miscellaneous Agency Services,9/5/2011,333,"2,712.06",Revenue,HFH HOMECARE LTD
Adult Social Care,Adlt u65 Learning Disabilities,LD Carer Services,Third Party Payments,Private Contractors,Miscellaneous Agency Services,9/5/2011,334,505.20,Revenue,SUPREME CARE SERVICES LIMITED
Adult Social Care,Adlt u65 Learning Disabilities,LD Home Care External,Third Party Payments,Private Contractors,Miscellaneous Agency Services,9/5/2011,335,519.44,Revenue,SUPREME CARE SERVICES LIMITED
Adult Social Care,Adult u65 Mental Health Needs,MH Home Care External - Wim,Third Party Payments,Private Contractors,Miscellaneous Agency Services,9/5/2011,336,568.56,Revenue,SUPREME CARE SERVICES LIMITED
Adult Social Care,Adult u65 Phys/Sensory Impair,PD WEST TEAM-Homecare,Third Party Payments,Private Contractors,Miscellaneous Agency Services,9/5/2011,337,664.27,Revenue,SUPREME CARE SERVICES LIMITED
Adult Social Care,Adult u65 Phys/Sensory Impair,PD EAST TEAM-Homecare,Third Party Payments,Private Contractors,Miscellaneous Agency Services,9/5/2011,338,850.93,Revenue,SUPREME CARE SERVICES LIMITED
Adult Social Care,Adult u65 Mental Health Needs,MH Home Care External-MitWest,Third Party Payments,Private Contractors,Miscellaneous Agency Services,9/5/2011,339,974.54,Revenue,SUPREME CARE SERVICES LIMITED
Adult Social Care,Older People 65&Over inc OP-MH,OP Hosp - Home Care External,Third Party Payments,Private Contractors,Miscellaneous Agency Services,9/5/2011,340,"1,242.28",Revenue,SUPREME CARE SERVICES LIMITED
Adult Social Care,Older People 65&Over inc OP-MH,OP East - Carer Services,Third Party Payments,Private Contractors,Miscellaneous Agency Services,9/5/2011,341,"1,613.94",Revenue,SUPREME CARE SERVICES LIMITED
Adult Social Care,Older People 65&Over inc OP-MH,OP West - Carer Services,Third Party Payments,Private Contractors,Miscellaneous Agency Services,9/5/2011,342,"3,046.90",Revenue,SUPREME CARE SERVICES LIMITED
Adult Social Care,Older People 65&Over inc OP-MH,OP West - Home Care External,Third Party Payments,Private Contractors,Miscellaneous Agency Services,9/5/2011,343,"12,434.36",Revenue,SUPREME CARE SERVICES LIMITED
Adult Social Care,Older People 65&Over inc OP-MH,OP East - Home Care External,Third Party Payments,Private Contractors,Miscellaneous Agency Services,9/5/2011,344,"21,438.03",Revenue,SUPREME CARE SERVICES LIMITED
Adult Social Care,Adlt u65 Learning Disabilities,LD Direct Payment Scheme,Third Party Payments,Private Contractors,Direct Payments,9/5/2011,345,"3,298.93",Revenue,REDACTED
Adult Social Care,Adlt u65 Learning Disabilities,LD Direct Payment Scheme,Third Party Payments,Private Contractors,Direct Payments,9/5/2011,346,"5,472.42",Revenue,REDACTED
Adult Social Care,Adlt u65 Learning Disabilities,LD Direct Payment Scheme,Third Party Payments,Private Contractors,Direct Payments,9/5/2011,347,925.32,Revenue,REDACTED
Adult Social Care,Older People 65&Over inc OP-MH,OP Hosp - Nursing Care,Customer and client receipts,Charges,Bd&Acc-contrib coll by home X,9/5/2011,348,"-1,224.92",Revenue,AVONMEAD NURSING HOME
Adult Social Care,Older People 65&Over inc OP-MH,OP Hosp - Nursing Care,Third Party Payments,Private Contractors,Miscellaneous Agency Services,9/5/2011,349,"2,374.16",Revenue,AVONMEAD NURSING HOME
Adult Social Care,Older People 65&Over inc OP-MH,OP East - Nursing Care,Third Party Payments,Private Contractors,Miscellaneous Agency Services,9/5/2011,350,"2,074.68",Revenue,BUPA CARE HOMES
Adult Social Care,Adlt u65 Learning Disabilities,LD Residential Care External,Third Party Payments,Private Contractors,Miscellaneous Agency Services,9/7/2011,351,"2,471.60",Revenue,CANTERBURY OAST TRUST LTD
Adult Social Care,Adlt u65 Learning Disabilities,LD Residential Care External,Third Party Payments,Private Contractors,Miscellaneous Agency Services,9/5/2011,352,"10,117.63",Revenue,DANESWOOD
Adult Social Care,Adlt u65 Learning Disabilities,LD Residential Care External,Third Party Payments,Private Contractors,Miscellaneous Agency Services,9/5/2011,353,"9,719.59",Revenue,DANESWOOD
Adult Social Care,Older People 65&Over inc OP-MH,OP East - Residential Care Ext,Third Party Payments,Private Contractors,Miscellaneous Agency Services,9/5/2011,354,"1,812.40",Revenue,GRANGE COTTAGE LIMITED
Adult Social Care,Older People 65&Over inc OP-MH,OP West - Residential Care Ext,Third Party Payments,Private Contractors,Miscellaneous Agency Services,9/5/2011,355,"3,612.76",Revenue,GRANGE COTTAGE LIMITED
Adult Social Care,Adult u65 Phys/Sensory Impair,PD EAST TEAM-Residential,Third Party Payments,Private Contractors,Miscellaneous Agency Services,9/5/2011,356,"4,602.08",Revenue,GRANGE COTTAGE LIMITED
Adult Social Care,Older People 65&Over inc OP-MH,OP Hosp - Residential Care Ext,Third Party Payments,Private Contractors,Miscellaneous Agency Services,9/5/2011,357,"1,812.40",Revenue,LINDEN HOUSE
Adult Social Care,Older People 65&Over inc OP-MH,OP Hosp - Residential Care Ext,Third Party Payments,Private Contractors,Miscellaneous Agency Services,9/5/2011,358,"2,100.00",Revenue,ROYAL CAMBRIDGE HOME
Childrens & Education Services,Family Support Services,CS Direct Payments,Third Party Payments,Private Contractors,Direct Payments,9/5/2011,359,702.90,Revenue,REDACTED
Childrens & Education Services,Family Support Services,CS Direct Payments,Third Party Payments,Private Contractors,Direct Payments,9/5/2011,360,639.00,Revenue,REDACTED
Adult Social Care,Other Adult Services,Fixed & Variable Client Paymen,Third Party Payments,Private Contractors,Miscellaneous Agency Services,9/5/2011,361,"37,839.24",Revenue,ABILITY HOUSING ASSOCIATION
Adult Social Care,Other Adult Services,Fixed & Variable Client Paymen,Third Party Payments,Private Contractors,Miscellaneous Agency Services,9/5/2011,362,"3,126.04",Revenue,ANCHOR SP PAYMENT FROM SEP'03
Adult Social Care,Other Adult Services,Fixed & Variable Client Paymen,Third Party Payments,Private Contractors,Miscellaneous Agency Services,9/5/2011,363,"1,522.50",Revenue,ASIAN ELDERLY GROUP OF MERTON
Adult Social Care,Other Adult Services,Fixed & Variable Client Paymen,Third Party Payments,Private Contractors,Miscellaneous Agency Services,9/5/2011,364,"1,573.14",Revenue,CENTRAL & CECIL HOUSING TRUST
Adult Social Care,Other Adult Services,Fixed & Variable Client Paymen,Third Party Payments,Private Contractors,Miscellaneous Agency Services,9/5/2011,365,"1,431.84",Revenue,CROYDON CHURCHES HOUSING ASSOC
Adult Social Care,Other Adult Services,Fixed & Variable Client Paymen,Third Party Payments,Private Contractors,Miscellaneous Agency Services,9/5/2011,366,"10,150.58",Revenue,EQUINOX
Adult Social Care,Other Adult Services,Fixed & Variable Client Paymen,Third Party Payments,Private Contractors,Miscellaneous Agency Services,9/5/2011,367,"12,458.43",Revenue,FAMILY HOUSING ASSOCIATION
Adult Social Care,Other Adult Services,Fixed & Variable Client Paymen,Third Party Payments,Private Contractors,Miscellaneous Agency Services,9/5/2011,368,"21,671.75",Revenue,GRENFELL HOUSING ASSOCIATION
Adult Social Care,Other Adult Services,Fixed & Variable Client Paymen,Third Party Payments,Private Contractors,Miscellaneous Agency Services,9/5/2011,369,"1,093.24",Revenue,HANOVER HOUSING ASSOCIATION
Adult Social Care,Other Adult Services,Fixed & Variable Client Paymen,Third Party Payments,Private Contractors,Miscellaneous Agency Services,9/5/2011,370,"10,749.99",Revenue,HESTIA HOUSING AND SUPPORT
Adult Social Care,Other Adult Services,Fixed & Variable Client Paymen,Third Party Payments,Private Contractors,Miscellaneous Agency Services,9/5/2011,371,"1,518.56",Revenue,AMICUS HORIZON
Adult Social Care,Other Adult Services,Fixed & Variable Client Paymen,Third Party Payments,Private Contractors,Miscellaneous Agency Services,9/5/2011,372,974.44,Revenue,HOUSING21
Adult Social Care,Other Adult Services,Fixed & Variable Client Paymen,Third Party Payments,Private Contractors,Miscellaneous Agency Services,9/5/2011,373,600.42,Revenue,KINGSTON CHURCHES ACTION ON HO
Adult Social Care,Other Adult Services,Fixed & Variable Client Paymen,Third Party Payments,Private Contractors,Miscellaneous Agency Services,9/5/2011,374,"8,589.60",Revenue,MERTON REFUGE
Adult Social Care,Other Adult Services,Fixed & Variable Client Paymen,Third Party Payments,Private Contractors,Miscellaneous Agency Services,9/5/2011,375,"5,112.75",Revenue,MERTON PRIORY HOMES
Adult Social Care,Other Adult Services,Fixed & Variable Client Paymen,Third Party Payments,Private Contractors,Miscellaneous Agency Services,9/5/2011,376,"1,732.32",Revenue,MERTON PRIORY HOMES
Adult Social Care,Other Adult Services,Fixed & Variable Client Paymen,Third Party Payments,Private Contractors,Miscellaneous Agency Services,9/5/2011,377,"5,155.95",Revenue,METROPOLITAN SUPPORT TRUST
Adult Social Care,Other Adult Services,Fixed & Variable Client Paymen,Third Party Payments,Private Contractors,Miscellaneous Agency Services,9/5/2011,378,"6,005.39",Revenue,NOTTING HILL HOUSING
Adult Social Care,Other Adult Services,Fixed & Variable Client Paymen,Third Party Payments,Private Contractors,Miscellaneous Agency Services,9/5/2011,379,"4,490.24",Revenue,SANCTUARY CARE
Adult Social Care,Other Adult Services,Fixed & Variable Client Paymen,Third Party Payments,Private Contractors,Miscellaneous Agency Services,9/5/2011,380,"8,781.99",Revenue,SERVITE HOUSES
Adult Social Care,Other Adult Services,Fixed & Variable Client Paymen,Third Party Payments,Private Contractors,Miscellaneous Agency Services,9/5/2011,381,"26,886.55",Revenue,COMFORT CARE SERVICES (UK) LTD
Adult Social Care,Other Adult Services,Fixed & Variable Client Paymen,Third Party Payments,Private Contractors,Miscellaneous Agency Services,9/5/2011,382,584.00,Revenue,SHAFTESBURY HOUSING ASSOC.
Adult Social Care,Other Adult Services,Fixed & Variable Client Paymen,Third Party Payments,Private Contractors,Miscellaneous Agency Services,9/5/2011,383,"12,060.41",Revenue,SPEAR
Adult Social Care,Other Adult Services,Fixed & Variable Client Paymen,Third Party Payments,Private Contractors,Miscellaneous Agency Services,9/5/2011,384,"1,676.32",Revenue,REDACTED
Adult Social Care,Other Adult Services,Fixed & Variable Client Paymen,Third Party Payments,Private Contractors,Miscellaneous Agency Services,9/5/2011,385,709.45,Revenue,THRESHOLD CENTRE LTD
Adult Social Care,Other Adult Services,Fixed & Variable Client Paymen,Third Party Payments,Private Contractors,Miscellaneous Agency Services,9/5/2011,386,"17,468.54",Revenue,WANDLE HOUSING ASSOCIATION LTD
Adult Social Care,Other Adult Services,Fixed & Variable Client Paymen,Third Party Payments,Private Contractors,Miscellaneous Agency Services,9/5/2011,387,"33,899.28",Revenue,WIMBLEDON & DISTRICT YMCA
,No FE Detail,Miscellaneous Credits,Fund Balances,,Payments X,9/5/2011,388,657.19,Revenue,ANCHOR CARE
Adult Social Care,Older People 65&Over inc OP-MH,OP West - Carer Services,Third Party Payments,Private Contractors,Miscellaneous Agency Services,9/7/2011,389,"1,800.00",Revenue,REDACTED
Childrens & Education Services,Children Looked After (24hrs+),CL Fostering Services,Supplies and Services,Services,Task Based Fostering,9/6/2011,390,"1,560.88",Revenue,REDACTED
Childrens & Education Services,Children Looked After (24hrs+),CL Fostering Services,Supplies and Services,Services,Task Based Fostering,9/6/2011,391,780.44,Revenue,REDACTED
Childrens & Education Services,Children Looked After (24hrs+),CL Fostering Services,Supplies and Services,Services,Task Based Fostering,9/6/2011,392,"1,502.66",Revenue,REDACTED
Childrens & Education Services,Children Looked After (24hrs+),CL Fostering Services,Supplies and Services,Services,Task Based Fostering,9/6/2011,393,"1,519.64",Revenue,REDACTED
Childrens & Education Services,Children Looked After (24hrs+),CL Fostering Services,Supplies and Services,Services,Task Based Fostering,9/6/2011,394,"2,266.12",Revenue,REDACTED
Childrens & Education Services,Children Looked After (24hrs+),CL Fostering Services,Supplies and Services,Services,Task Based Fostering,9/6/2011,395,780.44,Revenue,REDACTED
Childrens & Education Services,Children Looked After (24hrs+),CL Fostering Services,Supplies and Services,Services,Task Based Fostering,9/6/2011,396,"1,526.92",Revenue,REDACTED
Childrens & Education Services,Children Looked After (24hrs+),CL Fostering Services,Supplies and Services,Services,Task Based Fostering,9/6/2011,397,"1,560.88",Revenue,REDACTED
Childrens & Education Services,Children Looked After (24hrs+),CL Fostering Services,Supplies and Services,Services,Task Based Fostering,9/6/2011,398,"2,324.34",Revenue,REDACTED
Childrens & Education Services,Children Looked After (24hrs+),CL Fostering Services,Supplies and Services,Services,Task Based Fostering,9/6/2011,399,"2,283.10",Revenue,REDACTED
Childrens & Education Services,Children Looked After (24hrs+),CL Fostering Services,Supplies and Services,Services,Task Based Fostering,9/6/2011,400,"2,500.88",Revenue,REDACTED
Childrens & Education Services,Children Looked After (24hrs+),CL Fostering Services,Supplies and Services,Services,Task Based Fostering,9/6/2011,401,"1,560.88",Revenue,REDACTED
Childrens & Education Services,Children Looked After (24hrs+),CL Fostering Services,Supplies and Services,Services,Task Based Fostering,9/6/2011,402,"2,283.10",Revenue,REDACTED
Childrens & Education Services,Children Looked After (24hrs+),CL Fostering Services,Supplies and Services,Services,Task Based Fostering,9/6/2011,403,739.20,Revenue,REDACTED
Childrens & Education Services,Children Looked After (24hrs+),CL Fostering Services,Supplies and Services,Services,Task Based Fostering,9/6/2011,404,780.44,Revenue,REDACTED
Childrens & Education Services,Children Looked After (24hrs+),CL Fostering Services,Supplies and Services,Services,Task Based Fostering,9/6/2011,405,"2,118.34",Revenue,REDACTED
Childrens & Education Services,Children Looked After (24hrs+),CL Fostering Services,Supplies and Services,Services,Task Based Fostering,9/6/2011,406,"1,543.90",Revenue,REDACTED
Childrens & Education Services,Children Looked After (24hrs+),CL Fostering Services,Supplies and Services,Services,Task Based Fostering,9/6/2011,407,"1,478.40",Revenue,REDACTED
Childrens & Education Services,Children Looked After (24hrs+),CL Fostering Services,Supplies and Services,Services,Task Based Fostering,9/6/2011,408,780.44,Revenue,REDACTED
Childrens & Education Services,Children Looked After (24hrs+),CL Fostering Services,Supplies and Services,Services,Task Based Fostering,9/6/2011,409,"2,241.86",Revenue,REDACTED
Childrens & Education Services,Children Looked After (24hrs+),CL Fostering Services,Supplies and Services,Services,Task Based Fostering,9/6/2011,410,"1,478.40",Revenue,REDACTED
Childrens & Education Services,Children Looked After (24hrs+),CL Fostering Services,Supplies and Services,Services,Task Based Fostering,9/6/2011,411,780.44,Revenue,REDACTED
Childrens & Education Services,Children Looked After (24hrs+),CL Fostering Services,Supplies and Services,Services,Task Based Fostering,9/6/2011,412,739.20,Revenue,REDACTED
Childrens & Education Services,Children Looked After (24hrs+),CL Fostering Services,Supplies and Services,Services,Task Based Fostering,9/6/2011,413,"1,502.66",Revenue,REDACTED
Childrens & Education Services,Children Looked After (24hrs+),CL Fostering Services,Supplies and Services,Services,Task Based Fostering,9/6/2011,414,973.96,Revenue,REDACTED
Childrens & Education Services,Children Looked After (24hrs+),CL Fostering Services,Supplies and Services,Services,Task Based Fostering,9/6/2011,415,739.20,Revenue,REDACTED
Adult Social Care,Older People 65&Over inc OP-MH,OP East - Home Care External,Third Party Payments,Private Contractors,Miscellaneous Agency Services,9/7/2011,416,630.00,Revenue,ENTERPRISE CARE SUPPORT LTD
Adult Social Care,Adlt u65 Learning Disabilities,LD Residential Care External,Third Party Payments,Private Contractors,Miscellaneous Agency Services,9/7/2011,417,"4,985.86",Revenue,BROADHAM CARE LTD
Adult Social Care,Adlt u65 Learning Disabilities,LD Residential Care External,Third Party Payments,Private Contractors,Miscellaneous Agency Services,9/7/2011,418,"3,798.04",Revenue,BRIGSTOCK HOUSE
Adult Social Care,Older People 65&Over inc OP-MH,OP Hosp - Residential Care Ext,Third Party Payments,Private Contractors,Miscellaneous Agency Services,9/7/2011,419,"2,200.00",Revenue,REDACTED
Adult Social Care,Older People 65&Over inc OP-MH,OP Hosp - Residential Care Ext,Third Party Payments,Private Contractors,Miscellaneous Agency Services,9/7/2011,420,"2,200.00",Revenue,REDACTED
Adult Social Care,Older People 65&Over inc OP-MH,OP East - Nursing Care,Third Party Payments,Private Contractors,Miscellaneous Agency Services,9/7/2011,421,"2,533.72",Revenue,CARE UK
Adult Social Care,Older People 65&Over inc OP-MH,OP East - Residential Care Ext,Third Party Payments,Private Contractors,Miscellaneous Agency Services,9/7/2011,422,"1,928.56",Revenue,CHASE HOUSE REST HOME
Adult Social Care,Older People 65&Over inc OP-MH,OP East - Nursing Care,Third Party Payments,Private Contractors,Miscellaneous Agency Services,9/7/2011,423,"2,540.00",Revenue,REDACTED
Adult Social Care,Older People 65&Over inc OP-MH,OP Hosp - Nursing Care,Third Party Payments,Private Contractors,Miscellaneous Agency Services,9/7/2011,424,"2,746.40",Revenue,CHELSTON PARK
Adult Social Care,Adlt u65 Learning Disabilities,LD Residential Care External,Third Party Payments,Private Contractors,Miscellaneous Agency Services,9/7/2011,425,"4,460.92",Revenue,REDACTED
Adult Social Care,Older People 65&Over inc OP-MH,OP West - Nursing Care,Third Party Payments,Private Contractors,Miscellaneous Agency Services,9/7/2011,426,"2,354.80",Revenue,GALLEON CARE HOMES LTD
Adult Social Care,Older People 65&Over inc OP-MH,OP East - Residential Care Ext,Third Party Payments,Private Contractors,Miscellaneous Agency Services,9/7/2011,427,"1,526.60",Revenue,FAIRFIELDS HOUSE LTD
Adult Social Care,Adlt u65 Learning Disabilities,LD Residential Care External,Third Party Payments,Private Contractors,Miscellaneous Agency Services,9/7/2011,428,"4,624.00",Revenue,GREENFIELD CARE HOMES LTD
Adult Social Care,Adlt u65 Learning Disabilities,LD Residential Care External,Third Party Payments,Private Contractors,Miscellaneous Agency Services,9/7/2011,429,"4,744.00",Revenue,GREENFIELD CARE HOMES LTD
Adult Social Care,Adlt u65 Learning Disabilities,LD Residential Care External,Third Party Payments,Private Contractors,Miscellaneous Agency Services,9/7/2011,430,"4,780.00",Revenue,GREENFIELD CARE HOMES LTD
Adult Social Care,Adlt u65 Learning Disabilities,LD Residential Care External,Third Party Payments,Private Contractors,Miscellaneous Agency Services,9/7/2011,431,"4,780.00",Revenue,GREENFIELD CARE HOMES LTD
Adult Social Care,Adlt u65 Learning Disabilities,LD Residential Care External,Third Party Payments,Private Contractors,Miscellaneous Agency Services,9/7/2011,432,"4,732.00",Revenue,GREENFIELD CARE HOMES LTD
Adult Social Care,Adlt u65 Learning Disabilities,LD Residential Care External,Third Party Payments,Private Contractors,Miscellaneous Agency Services,9/7/2011,433,"4,868.00",Revenue,GREENFIELD CARE HOMES LTD
Adult Social Care,Adlt u65 Learning Disabilities,LD Residential Care External,Third Party Payments,Private Contractors,Miscellaneous Agency Services,9/7/2011,434,"4,780.00",Revenue,GREENFIELD CARE HOMES LTD
Adult Social Care,Older People 65&Over inc OP-MH,OP East - Nursing Care,Third Party Payments,Private Contractors,Miscellaneous Agency Services,9/7/2011,435,"2,927.30",Revenue,HOPELIT UK LTD
Adult Social Care,Adult u65 Mental Health Needs,MH ResidentialCare Ext-Morden,Third Party Payments,Private Contractors,Miscellaneous Agency Services,9/7/2011,436,"4,000.00",Revenue,LONA LODGE
Adult Social Care,Adult u65 Mental Health Needs,MH ResidentialCare Ext - Wim,Third Party Payments,Private Contractors,Miscellaneous Agency Services,9/7/2011,437,"3,171.08",Revenue,MENTAL HEALTH CARE (UK) LTD
Adult Social Care,Adlt u65 Learning Disabilities,LD Residential Care External,Third Party Payments,Private Contractors,Miscellaneous Agency Services,9/12/2011,438,"3,487.92",Revenue,SCOPE
Adult Social Care,Older People 65&Over inc OP-MH,OP East - Residential Care Ext,Third Party Payments,Private Contractors,Miscellaneous Agency Services,9/12/2011,439,"3,032.24",Revenue,SCOPE
Adult Social Care,Adult u65 Phys/Sensory Impair,PD WEST TEAM-Residential Care,Third Party Payments,Private Contractors,Miscellaneous Agency Services,9/12/2011,440,"3,300.96",Revenue,SCOPE
Adult Social Care,Adult u65 Phys/Sensory Impair,PD EAST TEAM-Residential,Third Party Payments,Private Contractors,Miscellaneous Agency Services,9/12/2011,441,"3,249.68",Revenue,SCOPE
Adult Social Care,Adult u65 Mental Health Needs,MH ResidentialCare Ext - Wim,Third Party Payments,Private Contractors,Miscellaneous Agency Services,9/7/2011,442,"6,500.00",Revenue,SIGNHEALTH
Adult Social Care,Older People 65&Over inc OP-MH,OP West - Nursing Care,Third Party Payments,Private Contractors,Miscellaneous Agency Services,9/7/2011,443,"2,400.00",Revenue,ST TERESA`S HOME FORTHE ELDER
Adult Social Care,Older People 65&Over inc OP-MH,OP West - Residential Care Ext,Third Party Payments,Private Contractors,Miscellaneous Agency Services,9/7/2011,444,"2,341.84",Revenue,ST TERESA`S HOME FORTHE ELDER
Adult Social Care,Older People 65&Over inc OP-MH,OP West - Nursing Care,Third Party Payments,Private Contractors,Miscellaneous Agency Services,9/7/2011,445,"2,199.12",Revenue,ST TERESA`S HOME FORTHE ELDER
Adult Social Care,Older People 65&Over inc OP-MH,OP West - Nursing Care,Third Party Payments,Private Contractors,Miscellaneous Agency Services,9/7/2011,446,"2,341.84",Revenue,SUTTON COURT CARE CENTRE
Adult Social Care,Older People 65&Over inc OP-MH,OP West - Nursing Care,Third Party Payments,Private Contractors,Miscellaneous Agency Services,9/7/2011,447,"2,341.84",Revenue,SUTTON COURT CARE CENTRE
Adult Social Care,Older People 65&Over inc OP-MH,OP Hosp - Nursing Care,Third Party Payments,Private Contractors,Miscellaneous Agency Services,9/7/2011,448,"2,341.84",Revenue,SUTTON COURT CARE CENTRE
Adult Social Care,Older People 65&Over inc OP-MH,OP East - Nursing Care,Third Party Payments,Private Contractors,Miscellaneous Agency Services,9/7/2011,449,"2,341.84",Revenue,SUTTON COURT CARE CENTRE
Adult Social Care,Older People 65&Over inc OP-MH,OP Hosp - Nursing Care,Third Party Payments,Private Contractors,Miscellaneous Agency Services,9/7/2011,450,"2,341.84",Revenue,SUTTON COURT CARE CENTRE
Adult Social Care,Older People 65&Over inc OP-MH,OP Hosp - Nursing Care,Third Party Payments,Private Contractors,Miscellaneous Agency Services,9/7/2011,451,"2,341.84",Revenue,SUTTON COURT CARE CENTRE
Adult Social Care,Older People 65&Over inc OP-MH,OP Hosp - Nursing Care,Third Party Payments,Private Contractors,Miscellaneous Agency Services,9/7/2011,452,"3,000.00",Revenue,SUTTON COURT CARE CENTRE
Adult Social Care,Older People 65&Over inc OP-MH,OP Hosp - Nursing Care,Third Party Payments,Private Contractors,Miscellaneous Agency Services,9/7/2011,453,"2,341.84",Revenue,SUTTON COURT CARE CENTRE
Adult Social Care,Older People 65&Over inc OP-MH,OP Hosp - Nursing Care,Third Party Payments,Private Contractors,Miscellaneous Agency Services,9/7/2011,454,"2,341.84",Revenue,SUTTON COURT CARE CENTRE
Adult Social Care,Older People 65&Over inc OP-MH,OP Hosp - Nursing Care,Third Party Payments,Private Contractors,Miscellaneous Agency Services,9/7/2011,455,"2,341.84",Revenue,SUTTON COURT CARE CENTRE
Adult Social Care,Older People 65&Over inc OP-MH,OP West - Nursing Care,Third Party Payments,Private Contractors,Miscellaneous Agency Services,9/7/2011,456,"2,341.84",Revenue,SUTTON COURT CARE CENTRE
Adult Social Care,Older People 65&Over inc OP-MH,OP West - Nursing Care,Third Party Payments,Private Contractors,Miscellaneous Agency Services,9/7/2011,457,"2,341.84",Revenue,SUTTON COURT CARE CENTRE
Adult Social Care,Older People 65&Over inc OP-MH,OP West - Nursing Care,Third Party Payments,Private Contractors,Miscellaneous Agency Services,9/7/2011,458,"2,341.84",Revenue,SUTTON COURT CARE CENTRE
Adult Social Care,Older People 65&Over inc OP-MH,OP East - Nursing Care,Third Party Payments,Private Contractors,Miscellaneous Agency Services,9/7/2011,459,"2,552.88",Revenue,SUTTON COURT CARE CENTRE
Adult Social Care,Older People 65&Over inc OP-MH,OP Hosp - Nursing Care,Third Party Payments,Private Contractors,Miscellaneous Agency Services,9/7/2011,460,"2,341.84",Revenue,SUTTON COURT CARE CENTRE
Adult Social Care,Older People 65&Over inc OP-MH,OP West - Nursing Care,Third Party Payments,Private Contractors,Miscellaneous Agency Services,9/7/2011,461,"2,341.84",Revenue,SUTTON COURT CARE CENTRE
Adult Social Care,Older People 65&Over inc OP-MH,OP East - Nursing Care,Third Party Payments,Private Contractors,Miscellaneous Agency Services,9/7/2011,462,"2,341.84",Revenue,SUTTON COURT CARE CENTRE
Adult Social Care,Older People 65&Over inc OP-MH,OP Hosp - Nursing Care,Third Party Payments,Private Contractors,Miscellaneous Agency Services,9/7/2011,463,"2,341.84",Revenue,SUTTON COURT CARE CENTRE
Adult Social Care,Older People 65&Over inc OP-MH,OP Hosp - Nursing Care,Third Party Payments,Private Contractors,Miscellaneous Agency Services,9/7/2011,464,"2,341.84",Revenue,SUTTON COURT CARE CENTRE
Adult Social Care,Older People 65&Over inc OP-MH,OP East - Nursing Care,Third Party Payments,Private Contractors,Miscellaneous Agency Services,9/7/2011,465,"2,341.84",Revenue,SUTTON COURT CARE CENTRE
Adult Social Care,Older People 65&Over inc OP-MH,OP Hosp - Nursing Care,Third Party Payments,Private Contractors,Miscellaneous Agency Services,9/7/2011,466,"2,341.84",Revenue,SUTTON COURT CARE CENTRE
Adult Social Care,Older People 65&Over inc OP-MH,OP Hosp - Nursing Care,Third Party Payments,Private Contractors,Miscellaneous Agency Services,9/7/2011,467,"2,341.84",Revenue,SUTTON COURT CARE CENTRE
Adult Social Care,Adlt u65 Learning Disabilities,LD Home Care External,Third Party Payments,Private Contractors,Miscellaneous Agency Services,9/7/2011,468,"19,321.28",Revenue,UNITED RESPONSE
Adult Social Care,Older People 65&Over inc OP-MH,OP East - Residential Care Ext,Third Party Payments,Private Contractors,Miscellaneous Agency Services,9/7/2011,469,"1,551.84",Revenue,WILLETT LODGE
Adult Social Care,Older People 65&Over inc OP-MH,OP East - Nursing Care,Third Party Payments,Private Contractors,Miscellaneous Agency Services,9/7/2011,470,"2,800.00",Revenue,THE BRADBURY CENT.NURSING HOME
Adult Social Care,Older People 65&Over inc OP-MH,OP East - Nursing Care,Customer and client receipts,Charges,Miscellaneous Charges X,9/7/2011,471,-626.12,Revenue,BRIDGE HOUSE CARE CENTRE
Adult Social Care,Older People 65&Over inc OP-MH,OP East - Nursing Care,Third Party Payments,Private Contractors,Miscellaneous Agency Services,9/7/2011,472,"1,987.20",Revenue,BRIDGE HOUSE CARE CENTRE
Adult Social Care,Adlt u65 Learning Disabilities,LD Residential Care External,Third Party Payments,Private Contractors,Miscellaneous Agency Services,9/7/2011,473,"5,380.00",Revenue,CARE MANAGEMENT GROUP
Adult Social Care,Adlt u65 Learning Disabilities,LD Residential Care External,Third Party Payments,Private Contractors,Miscellaneous Agency Services,9/7/2011,474,"5,500.00",Revenue,CARE MANAGEMENT GROUP
Adult Social Care,Adlt u65 Learning Disabilities,LD Residential Care External,Third Party Payments,Private Contractors,Miscellaneous Agency Services,9/7/2011,475,"5,981.20",Revenue,CARE MANAGEMENT GROUP
Adult Social Care,Adlt u65 Learning Disabilities,LD Residential Care External,Third Party Payments,Private Contractors,Miscellaneous Agency Services,9/7/2011,476,"5,980.00",Revenue,CARE MANAGEMENT GROUP
Adult Social Care,Adult u65 Phys/Sensory Impair,PD WEST TEAM-Homecare,Third Party Payments,Private Contractors,Miscellaneous Agency Services,9/7/2011,477,"5,520.00",Revenue,CARE MANAGEMENT GROUP
Adult Social Care,Adult u65 Phys/Sensory Impair,PD EAST TEAM-Homecare,Third Party Payments,Private Contractors,Miscellaneous Agency Services,9/7/2011,478,"4,168.00",Revenue,CARE MANAGEMENT GROUP
Adult Social Care,Adlt u65 Learning Disabilities,LD Residential Care External,Third Party Payments,Private Contractors,Miscellaneous Agency Services,9/7/2011,479,"5,044.00",Revenue,CARE MANAGEMENT GROUP
Adult Social Care,Adlt u65 Learning Disabilities,LD Residential Care External,Third Party Payments,Private Contractors,Miscellaneous Agency Services,9/7/2011,480,"3,336.00",Revenue,CARE MANAGEMENT GROUP
Adult Social Care,Older People 65&Over inc OP-MH,OP Hosp - Residential Care Ext,Third Party Payments,Private Contractors,Miscellaneous Agency Services,9/7/2011,481,"2,442.90",Revenue,REDACTED
Adult Social Care,Adult u65 Mental Health Needs,MH ResidentialCare Ext - Wim,Third Party Payments,Private Contractors,Miscellaneous Agency Services,9/7/2011,482,"6,500.00",Revenue,SIGNHEALTH
Adult Social Care,Adlt u65 Learning Disabilities,LD Residential Care External,Third Party Payments,Private Contractors,Miscellaneous Agency Services,9/7/2011,483,"5,717.76",Revenue,WINSLOW COURT
Childrens & Education Services,Family Support Services,CS DayCare Facilities Children,Third Party Payments,Private Contractors,Playscheme,9/7/2011,484,618.00,Revenue,ARAGON PRIMARY SCHOOL
Adult Social Care,Asylum seekers,AS Child - Res Care (Grant),Third Party Payments,Private Contractors,Miscellaneous Agency Services,9/7/2011,485,600.00,Revenue,REDACTED
Childrens & Education Services,Family Support Services,CS Day Care CWD,Third Party Payments,Private Contractors,Miscellaneous Agency Services,9/7/2011,486,"1,461.63",Revenue,COMPLETE CARE CENTRE
Childrens & Education Services,Other Ch's & Family Services,CL Leaving Care/Supp Lodgings,Third Party Payments,Private Contractors,Miscellaneous Agency Services,9/7/2011,487,"1,074.29",Revenue,RBS INVOICE FINANCE LIMITED
Childrens & Education Services,Other Ch's & Family Services,CL Leaving Care/Supp Lodgings,Third Party Payments,Private Contractors,Supported Lodgings,9/7/2011,488,800.00,Revenue,REDACTED
Childrens & Education Services,Other Ch's & Family Services,CL Leaving Care/Supp Lodgings,Third Party Payments,Private Contractors,Supported Lodgings,9/7/2011,489,600.00,Revenue,REDACTED
Adult Social Care,Adult u65 Mental Health Needs,HS Adult Placements,Third Party Payments,Private Contractors,Accommodation Based Support,9/7/2011,490,"1,167.60",Revenue,REDACTED
Adult Social Care,Adult u65 Mental Health Needs,HS Adult Placements,Third Party Payments,Private Contractors,Accommodation Based Support,9/7/2011,491,879.28,Revenue,REDACTED
Adult Social Care,Adult u65 Mental Health Needs,MH Adult Placement Cont-Morden,Third Party Payments,Private Contractors,Accommodation Based Support,9/7/2011,492,879.28,Revenue,REDACTED
Adult Social Care,Adult u65 Mental Health Needs,HS Adult Placements,Third Party Payments,Private Contractors,Accommodation Based Support,9/7/2011,493,806.20,Revenue,REDACTED
Adult Social Care,Adlt u65 Learning Disabilities,LD Adult Placements - HST,Third Party Payments,Private Contractors,Accommodation Based Support,9/7/2011,494,848.96,Revenue,REDACTED
Adult Social Care,Adult u65 Mental Health Needs,MH Adult PlacementCont-MitWest,Third Party Payments,Private Contractors,Accommodation Based Support,9/7/2011,495,583.80,Revenue,REDACTED
Adult Social Care,Adult u65 Mental Health Needs,HS Adult Placements,Third Party Payments,Private Contractors,Accommodation Based Support,9/7/2011,496,973.00,Revenue,REDACTED
Adult Social Care,Adlt u65 Learning Disabilities,LD Home Care External,Third Party Payments,Private Contractors,Miscellaneous Agency Services,9/7/2011,497,655.30,Revenue,BEECH HOME CARE SERVICES
Adult Social Care,Adlt u65 Learning Disabilities,LD Day Care Agency,Third Party Payments,Private Contractors,Miscellaneous Agency Services,9/7/2011,498,954.08,Revenue,BRIGSTOCK ACTIVITY CENTRE
Adult Social Care,Adult u65 Mental Health Needs,MH Day Care - Mitcham West,Third Party Payments,Private Contractors,Miscellaneous Agency Services,9/7/2011,499,"1,305.36",Revenue,NAS SERVICES LIMITED
Adult Social Care,Adlt u65 Learning Disabilities,LD Home Care External,Third Party Payments,Private Contractors,Miscellaneous Agency Services,9/7/2011,500,"3,600.00",Revenue,PROVIDENCE CARE UK LTD
Childrens & Education Services,Children Looked After (24hrs+),ART Residential Placements,Third Party Payments,Private Contractors,Miscellaneous Agency Services,9/7/2011,501,"11,211.20",Revenue,BENJAMIN UK LTD
Childrens & Education Services,Children Looked After (24hrs+),ART Residential Placements,Third Party Payments,Private Contractors,Miscellaneous Agency Services,9/7/2011,502,"15,698.27",Revenue,CASTLE HOMES CARE LIMITED
Childrens & Education Services,Other Ch's & Family Services,CL Leaving Care/Supp Lodgings,Third Party Payments,Private Contractors,Private Tenant/Landlord,9/7/2011,503,"1,661.52",Revenue,REDACTED
Childrens & Education Services,Other Ch's & Family Services,CL Leaving Care/Supp Lodgings,Third Party Payments,Private Contractors,Supported Lodgings,9/7/2011,504,600.00,Revenue,REDACTED
Childrens & Education Services,Other Ch's & Family Services,CL Leaving Care/Supp Lodgings,Third Party Payments,Private Contractors,Supported Lodgings,9/7/2011,505,600.00,Revenue,REDACTED
Adult Social Care,Adlt u65 Learning Disabilities,LD AdultPlacementCont,Third Party Payments,Private Contractors,Accommodation Based Support,9/7/2011,506,"4,680.00",Revenue,PROVIDENCE CARE UK LTD
Adult Social Care,Adlt u65 Learning Disabilities,LD Residential Care External,Third Party Payments,Private Contractors,Miscellaneous Agency Services,9/8/2011,507,"4,299.88",Revenue,ASHCROFT CARE SERVICES
Adult Social Care,Adlt u65 Learning Disabilities,LD Residential Care External,Third Party Payments,Private Contractors,Miscellaneous Agency Services,9/8/2011,508,"5,374.92",Revenue,ASHCROFT CARE SERVICES
Adult Social Care,Older People 65&Over inc OP-MH,OP Hosp - Nursing Care,Third Party Payments,Private Contractors,Miscellaneous Agency Services,9/8/2011,509,"2,714.70",Revenue,CARE UK
Adult Social Care,Older People 65&Over inc OP-MH,OP East - Nursing Care,Third Party Payments,Private Contractors,Miscellaneous Agency Services,9/8/2011,510,"2,714.70",Revenue,CARE UK
Adult Social Care,Older People 65&Over inc OP-MH,OP Hosp - Nursing Care,Third Party Payments,Private Contractors,Miscellaneous Agency Services,9/8/2011,511,"2,714.70",Revenue,CARE UK
Adult Social Care,Adlt u65 Learning Disabilities,LD Residential Care External,Third Party Payments,Private Contractors,Miscellaneous Agency Services,9/8/2011,512,"4,760.00",Revenue,CARE MANAGEMENT GROUP
Adult Social Care,Older People 65&Over inc OP-MH,OP East - Residential Care Ext,Third Party Payments,Private Contractors,Miscellaneous Agency Services,9/8/2011,513,"2,233.00",Revenue,ELM LODGE
Adult Social Care,Adlt u65 Learning Disabilities,LD Residential Care External,Third Party Payments,Private Contractors,Miscellaneous Agency Services,9/8/2011,514,"2,552.84",Revenue,FREEWAYS TRUST LTD
Adult Social Care,Older People 65&Over inc OP-MH,OP Hosp - Nursing Care,Third Party Payments,Private Contractors,Miscellaneous Agency Services,9/8/2011,515,"2,341.84",Revenue,HOME CLOSE
Adult Social Care,Adlt u65 Learning Disabilities,LD Residential Care External,Third Party Payments,Private Contractors,Miscellaneous Agency Services,9/8/2011,516,"2,697.04",Revenue,REDACTED
Adult Social Care,Adlt u65 Learning Disabilities,LD Residential Care External,Third Party Payments,Private Contractors,Miscellaneous Agency Services,9/8/2011,517,"3,190.95",Revenue,REDACTED
Adult Social Care,Older People 65&Over inc OP-MH,OP West - Residential Care Ext,Third Party Payments,Private Contractors,Miscellaneous Agency Services,9/8/2011,518,"2,200.00",Revenue,THRESHFIELD CRT NURSING HOME
Adult Social Care,Older People 65&Over inc OP-MH,OP Hosp - Nursing Care,Third Party Payments,Private Contractors,Miscellaneous Agency Services,9/8/2011,519,"2,800.00",Revenue,WILLOW LODGE
Childrens & Education Services,Family Support Services,CS Children in Need Section 17,Transfer Payments,Adult Soc Servs Clients,Childr Act 1989 S17,9/8/2011,520,"1,328.35",Revenue,ADMINLAND LTD
Childrens & Education Services,Other Ch's & Family Services,CL Adoption Allowances,Transfer Payments,Adult Soc Servs Clients,Adodption Allowances,9/8/2011,521,562.88,Revenue,REDACTED
Childrens & Education Services,Other Ch's & Family Services,CL Adoption Allowances,Transfer Payments,Adult Soc Servs Clients,Adodption Allowances,9/8/2011,522,607.08,Revenue,REDACTED
Childrens & Education Services,Other Ch's & Family Services,CL Adoption Allowances,Transfer Payments,Adult Soc Servs Clients,Adodption Allowances,9/8/2011,523,912.40,Revenue,REDACTED
Childrens & Education Services,Family Support Services,CS Direct Payments,Third Party Payments,Private Contractors,Direct Payments,9/8/2011,524,"1,491.00",Revenue,REDACTED
Childrens & Education Services,Family Support Services,CS Direct Payments,Third Party Payments,Private Contractors,Direct Payments,9/8/2011,525,"1,917.00",Revenue,REDACTED
Childrens & Education Services,Family Support Services,CS Direct Payments,Third Party Payments,Private Contractors,Direct Payments,9/8/2011,526,"1,278.00",Revenue,REDACTED
Childrens & Education Services,Family Support Services,CS Direct Payments,Third Party Payments,Private Contractors,Direct Payments,9/8/2011,527,"1,192.80",Revenue,REDACTED
Childrens & Education Services,Family Support Services,CS Direct Payments,Third Party Payments,Private Contractors,Direct Payments,9/8/2011,528,639.00,Revenue,REDACTED
Childrens & Education Services,Family Support Services,CS Direct Payments,Third Party Payments,Private Contractors,Direct Payments,9/8/2011,529,511.20,Revenue,REDACTED
Childrens & Education Services,Family Support Services,CS Children in Need Section 17,Transfer Payments,Adult Soc Servs Clients,Childr Act 1989 S17,9/8/2011,530,"1,237.00",Revenue,THE NEW LEVEL OF LIFE
Childrens & Education Services,Family Support Services,CL Residence Orders,Supplies and Services,Grants and Subscriptions,Residence Orders,9/8/2011,531,879.02,Revenue,REDACTED
Childrens & Education Services,Other Ch's & Family Services,CL Leaving Care/Supp Lodgings,Third Party Payments,Private Contractors,Supported Lodgings,9/8/2011,532,900.00,Revenue,REDACTED
Adult Social Care,Older People 65&Over inc OP-MH,OP East - Carer Services,Third Party Payments,Private Contractors,Miscellaneous Agency Services,9/9/2011,533,582.75,Revenue,CLASSIC HOME CARE SERVICES
Adult Social Care,Older People 65&Over inc OP-MH,OP East - Home Care External,Third Party Payments,Private Contractors,Miscellaneous Agency Services,9/8/2011,534,"2,365.56",Revenue,THE SQUIRRELS DIRECT CARE LTD
Adult Social Care,Adult u65 Phys/Sensory Impair,PS Other Serv - NRTPF,Third Party Payments,Private Contractors,Miscellaneous Agency Services,9/8/2011,535,692.28,Revenue,JOHN JOSEPH PROPERTY SERVICES
Adult Social Care,Adult u65 Phys/Sensory Impair,PD EAST TEAM-Other Services,Third Party Payments,Private Contractors,Miscellaneous Agency Services,9/8/2011,536,969.24,Revenue,JOHN JOSEPH PROPERTY SERVICES
Adult Social Care,Adult u65 Phys/Sensory Impair,PS Other Serv - NRTPF,Third Party Payments,Private Contractors,Miscellaneous Agency Services,9/8/2011,537,692.28,Revenue,JOHN JOSEPH PROPERTY SERVICES
Adult Social Care,Adlt u65 Learning Disabilities,LD Residential Care External,Third Party Payments,Private Contractors,Miscellaneous Agency Services,9/8/2011,538,"45,000.00",Revenue,DIMENSIONS (UK) LTD.
Adult Social Care,Adlt u65 Learning Disabilities,LD Direct Payment Scheme,Third Party Payments,Private Contractors,Direct Payments,9/9/2011,539,"1,278.00",Revenue,REDACTED
Adult Social Care,Adlt u65 Learning Disabilities,LD Direct Payment Scheme,Third Party Payments,Private Contractors,Direct Payments,9/9/2011,540,"1,462.08",Revenue,REDACTED
Adult Social Care,Older People 65&Over inc OP-MH,OP East -Direct Payment Scheme,Third Party Payments,Private Contractors,Direct Payments,9/9/2011,541,"1,278.00",Revenue,REDACTED
Adult Social Care,Older People 65&Over inc OP-MH,OP East -Direct Payment Scheme,Third Party Payments,Private Contractors,Direct Payments,9/9/2011,542,614.20,Revenue,REDACTED
Adult Social Care,Adlt u65 Learning Disabilities,LD Direct Payment Scheme,Third Party Payments,Private Contractors,Direct Payments,9/9/2011,543,502.56,Revenue,REDACTED
Adult Social Care,Adult u65 Phys/Sensory Impair,PD EAST TEAM-Direct Payment,Third Party Payments,Private Contractors,Direct Payments,9/9/2011,544,681.60,Revenue,REDACTED
Adult Social Care,Adult u65 Phys/Sensory Impair,PD EAST TEAM-Direct Payment,Third Party Payments,Private Contractors,Direct Payments,9/9/2011,545,"2,363.00",Revenue,REDACTED
Adult Social Care,Adlt u65 Learning Disabilities,LD Direct Payment Scheme,Third Party Payments,Private Contractors,Direct Payments,9/9/2011,546,852.00,Revenue,REDACTED
Adult Social Care,Older People 65&Over inc OP-MH,OP Hosp -Direct Payment Scheme,Customer and client receipts,Charges,Bd&Acc-contrib coll by home X,9/9/2011,547,-579.08,Revenue,REDACTED
Adult Social Care,Older People 65&Over inc OP-MH,OP Hosp -Direct Payment Scheme,Third Party Payments,Private Contractors,Direct Payments,9/9/2011,548,"2,515.12",Revenue,REDACTED
Adult Social Care,Older People 65&Over inc OP-MH,OP East -Direct Payment Scheme,Third Party Payments,Private Contractors,Direct Payments,9/9/2011,549,"1,533.60",Revenue,REDACTED
Adult Social Care,Older People 65&Over inc OP-MH,OP East -Direct Payment Scheme,Third Party Payments,Private Contractors,Direct Payments,9/9/2011,550,"1,096.92",Revenue,REDACTED
Adult Social Care,Older People 65&Over inc OP-MH,OP West -Direct Payment Scheme,Third Party Payments,Private Contractors,Direct Payments,9/9/2011,551,584.84,Revenue,REDACTED
Adult Social Care,Older People 65&Over inc OP-MH,OP West -Direct Payment Scheme,Third Party Payments,Private Contractors,Direct Payments,9/9/2011,552,"1,278.00",Revenue,REDACTED
Adult Social Care,Adlt u65 Learning Disabilities,LD Direct Payment Scheme,Third Party Payments,Private Contractors,Direct Payments,9/9/2011,553,"2,275.64",Revenue,REDACTED
Adult Social Care,Adult u65 Phys/Sensory Impair,PD WEST TEAM-Direct Payment,Third Party Payments,Private Contractors,Direct Payments,9/9/2011,554,596.40,Revenue,REDACTED
Adult Social Care,Older People 65&Over inc OP-MH,OP West -Direct Payment Scheme,Third Party Payments,Private Contractors,Direct Payments,9/9/2011,555,603.76,Revenue,REDACTED
Adult Social Care,Adlt u65 Learning Disabilities,LD Direct Payment Scheme,Third Party Payments,Private Contractors,Direct Payments,9/9/2011,556,529.04,Revenue,REDACTED
Adult Social Care,Older People 65&Over inc OP-MH,OP West -Direct Payment Scheme,Third Party Payments,Private Contractors,Direct Payments,9/9/2011,557,695.28,Revenue,REDACTED
Adult Social Care,Adlt u65 Learning Disabilities,LD Direct Payment Scheme,Third Party Payments,Private Contractors,Direct Payments,9/9/2011,558,"1,241.72",Revenue,REDACTED
Adult Social Care,Adlt u65 Learning Disabilities,LD Direct Payment Scheme,Third Party Payments,Private Contractors,Direct Payments,9/9/2011,559,668.72,Revenue,REDACTED
Adult Social Care,Adlt u65 Learning Disabilities,LD Direct Payment Scheme,Third Party Payments,Private Contractors,Direct Payments,9/9/2011,560,"5,464.20",Revenue,REDACTED
Adult Social Care,Adlt u65 Learning Disabilities,LD Direct Payment Scheme,Third Party Payments,Private Contractors,Direct Payments,9/9/2011,561,593.88,Revenue,REDACTED
Adult Social Care,Adult u65 Phys/Sensory Impair,PD WEST TEAM-Direct Payment,Third Party Payments,Private Contractors,Direct Payments,9/9/2011,562,881.60,Revenue,REDACTED
Adult Social Care,Adult u65 Phys/Sensory Impair,PD EAST TEAM-Direct Payment,Third Party Payments,Private Contractors,Direct Payments,9/9/2011,563,"2,301.80",Revenue,REDACTED
Adult Social Care,Older People 65&Over inc OP-MH,OP West -Direct Payment Scheme,Third Party Payments,Private Contractors,Direct Payments,9/9/2011,564,"1,911.60",Revenue,REDACTED
Adult Social Care,Older People 65&Over inc OP-MH,OP Hosp -Direct Payment Scheme,Third Party Payments,Private Contractors,Direct Payments,9/9/2011,565,894.60,Revenue,REDACTED
Adult Social Care,Adult u65 Phys/Sensory Impair,PD WEST TEAM-Direct Payment,Third Party Payments,Private Contractors,Direct Payments,9/9/2011,566,792.00,Revenue,REDACTED
Adult Social Care,Adlt u65 Learning Disabilities,LD Direct Payment Scheme,Third Party Payments,Private Contractors,Direct Payments,9/29/2011,567,536.44,Revenue,REDACTED
Adult Social Care,Older People 65&Over inc OP-MH,OP East -Direct Payment Scheme,Third Party Payments,Private Contractors,Direct Payments,9/9/2011,568,724.20,Revenue,REDACTED
Adult Social Care,Adult u65 Phys/Sensory Impair,PD EAST TEAM-Direct Payment,Third Party Payments,Private Contractors,Direct Payments,9/9/2011,569,"1,150.20",Revenue,REDACTED
Adult Social Care,Adult u65 Phys/Sensory Impair,PD WEST TEAM-Direct Payment,Third Party Payments,Private Contractors,Direct Payments,9/9/2011,570,879.48,Revenue,REDACTED
Adult Social Care,Adlt u65 Learning Disabilities,LD Direct Payment Scheme,Third Party Payments,Private Contractors,Direct Payments,9/9/2011,571,566.16,Revenue,REDACTED
Adult Social Care,Older People 65&Over inc OP-MH,OP West -Direct Payment Scheme,Third Party Payments,Private Contractors,Direct Payments,9/9/2011,572,670.96,Revenue,REDACTED
Adult Social Care,Adult u65 Phys/Sensory Impair,PD WEST TEAM-Direct Payment,Third Party Payments,Private Contractors,Direct Payments,9/9/2011,573,722.92,Revenue,REDACTED
Adult Social Care,Adult u65 Phys/Sensory Impair,PD EAST TEAM-Direct Payment,Third Party Payments,Private Contractors,Direct Payments,9/9/2011,574,668.88,Revenue,REDACTED
Adult Social Care,Older People 65&Over inc OP-MH,OP West -Direct Payment Scheme,Third Party Payments,Private Contractors,Direct Payments,9/9/2011,575,"1,812.36",Revenue,REDACTED
Adult Social Care,Older People 65&Over inc OP-MH,OP East -Direct Payment Scheme,Third Party Payments,Private Contractors,Direct Payments,9/9/2011,576,"1,210.64",Revenue,REDACTED
Adult Social Care,Older People 65&Over inc OP-MH,OP West -Direct Payment Scheme,Third Party Payments,Private Contractors,Direct Payments,9/9/2011,577,691.96,Revenue,REDACTED
Adult Social Care,Older People 65&Over inc OP-MH,OP Hosp -Direct Payment Scheme,Third Party Payments,Private Contractors,Direct Payments,9/9/2011,578,"1,235.40",Revenue,REDACTED
Adult Social Care,Older People 65&Over inc OP-MH,OP East -Direct Payment Scheme,Third Party Payments,Private Contractors,Direct Payments,9/9/2011,579,769.20,Revenue,REDACTED
Adult Social Care,Older People 65&Over inc OP-MH,OP East -Direct Payment Scheme,Third Party Payments,Private Contractors,Direct Payments,9/9/2011,580,779.60,Revenue,REDACTED
Adult Social Care,Adlt u65 Learning Disabilities,LD Direct Payment Scheme,Third Party Payments,Private Contractors,Direct Payments,9/9/2011,581,595.20,Revenue,REDACTED
Adult Social Care,Older People 65&Over inc OP-MH,OP East -Direct Payment Scheme,Third Party Payments,Private Contractors,Direct Payments,9/9/2011,582,"4,429.30",Revenue,REDACTED
Adult Social Care,Adlt u65 Learning Disabilities,LD Direct Payment Scheme,Third Party Payments,Private Contractors,Direct Payments,9/9/2011,583,532.48,Revenue,REDACTED
Adult Social Care,Older People 65&Over inc OP-MH,OP West -Direct Payment Scheme,Third Party Payments,Private Contractors,Direct Payments,9/9/2011,584,555.72,Revenue,REDACTED
Adult Social Care,Adlt u65 Learning Disabilities,LD Direct Payment Scheme,Third Party Payments,Private Contractors,Direct Payments,9/9/2011,585,"1,437.40",Revenue,REDACTED
Adult Social Care,Older People 65&Over inc OP-MH,OP East -Direct Payment Scheme,Third Party Payments,Private Contractors,Direct Payments,9/9/2011,586,913.76,Revenue,REDACTED
Adult Social Care,Adult u65 Phys/Sensory Impair,PD EAST TEAM-Direct Payment,Third Party Payments,Private Contractors,Direct Payments,9/9/2011,587,915.88,Revenue,REDACTED
Adult Social Care,Older People 65&Over inc OP-MH,OP East -Direct Payment Scheme,Third Party Payments,Private Contractors,Direct Payments,9/9/2011,588,"2,103.80",Revenue,REDACTED
Adult Social Care,Older People 65&Over inc OP-MH,OP West -Direct Payment Scheme,Third Party Payments,Private Contractors,Direct Payments,9/9/2011,589,511.20,Revenue,REDACTED
Adult Social Care,Adult u65 Phys/Sensory Impair,PD EAST TEAM-Direct Payment,Third Party Payments,Private Contractors,Direct Payments,9/9/2011,590,532.48,Revenue,REDACTED
Adult Social Care,Adult u65 Mental Health Needs,MH Direct Payment Scheme- West,Third Party Payments,Private Contractors,Direct Payments,9/9/2011,591,718.48,Revenue,REDACTED
Adult Social Care,Adult u65 Phys/Sensory Impair,PD WEST TEAM-Direct Payment,Third Party Payments,Private Contractors,Direct Payments,9/9/2011,592,586.32,Revenue,REDACTED
Adult Social Care,Older People 65&Over inc OP-MH,OP West -Direct Payment Scheme,Third Party Payments,Private Contractors,Direct Payments,9/9/2011,593,591.60,Revenue,REDACTED
Adult Social Care,Older People 65&Over inc OP-MH,OP West -Direct Payment Scheme,Third Party Payments,Private Contractors,Direct Payments,9/9/2011,594,502.56,Revenue,REDACTED
Adult Social Care,Older People 65&Over inc OP-MH,OP West -Direct Payment Scheme,Third Party Payments,Private Contractors,Direct Payments,9/9/2011,595,"1,128.88",Revenue,REDACTED
Adult Social Care,Adlt u65 Learning Disabilities,LD Direct Payment Scheme,Third Party Payments,Private Contractors,Direct Payments,9/9/2011,596,526.00,Revenue,REDACTED
Adult Social Care,Older People 65&Over inc OP-MH,OP East -Direct Payment Scheme,Customer and client receipts,Charges,Bd&Acc-contrib coll by home X,9/9/2011,597,-658.12,Revenue,REDACTED
Adult Social Care,Older People 65&Over inc OP-MH,OP East -Direct Payment Scheme,Third Party Payments,Private Contractors,Direct Payments,9/9/2011,598,756.04,Revenue,REDACTED
Adult Social Care,Adult u65 Mental Health Needs,MH Direct Payment Scheme- West,Third Party Payments,Private Contractors,Direct Payments,9/9/2011,599,838.00,Revenue,REDACTED
Adult Social Care,Adult u65 Phys/Sensory Impair,PD WEST TEAM-Direct Payment,Third Party Payments,Private Contractors,Direct Payments,9/9/2011,600,"1,833.32",Revenue,REDACTED
Adult Social Care,Adult u65 Phys/Sensory Impair,PD EAST TEAM-Direct Payment,Third Party Payments,Private Contractors,Direct Payments,9/9/2011,601,745.48,Revenue,REDACTED
Adult Social Care,Adult u65 Phys/Sensory Impair,PD WEST TEAM-Direct Payment,Third Party Payments,Private Contractors,Direct Payments,9/9/2011,602,711.96,Revenue,REDACTED
Adult Social Care,Older People 65&Over inc OP-MH,OP East -Direct Payment Scheme,Third Party Payments,Private Contractors,Direct Payments,9/9/2011,603,"1,435.44",Revenue,REDACTED
Adult Social Care,Adult u65 Phys/Sensory Impair,PD WEST TEAM-Direct Payment,Third Party Payments,Private Contractors,Direct Payments,9/9/2011,604,565.36,Revenue,REDACTED
Adult Social Care,Older People 65&Over inc OP-MH,OP East -Direct Payment Scheme,Third Party Payments,Private Contractors,Direct Payments,9/9/2011,605,832.16,Revenue,REDACTED
Adult Social Care,Adult u65 Phys/Sensory Impair,PD WEST TEAM-Direct Payment,Third Party Payments,Private Contractors,Direct Payments,9/9/2011,606,"1,244.04",Revenue,REDACTED
Adult Social Care,Older People 65&Over inc OP-MH,OP East -Direct Payment Scheme,Third Party Payments,Private Contractors,Direct Payments,9/9/2011,607,"2,384.16",Revenue,REDACTED
Adult Social Care,Adult u65 Phys/Sensory Impair,PD EAST TEAM-Direct Payment,Third Party Payments,Private Contractors,Direct Payments,9/9/2011,608,"3,077.48",Revenue,REDACTED
Adult Social Care,Older People 65&Over inc OP-MH,OP East -Direct Payment Scheme,Third Party Payments,Private Contractors,Direct Payments,9/9/2011,609,"1,704.00",Revenue,REDACTED
Adult Social Care,Adlt u65 Learning Disabilities,LD Direct Payment Scheme,Third Party Payments,Private Contractors,Direct Payments,9/9/2011,610,533.28,Revenue,REDACTED
Adult Social Care,Adult u65 Phys/Sensory Impair,PD EAST TEAM-Direct Payment,Third Party Payments,Private Contractors,Direct Payments,9/9/2011,611,924.08,Revenue,REDACTED
Adult Social Care,Older People 65&Over inc OP-MH,OP East -Direct Payment Scheme,Third Party Payments,Private Contractors,Direct Payments,9/9/2011,612,833.20,Revenue,REDACTED
Adult Social Care,Adult u65 Phys/Sensory Impair,PD EAST TEAM-Direct Payment,Third Party Payments,Private Contractors,Direct Payments,9/9/2011,613,511.20,Revenue,REDACTED
Adult Social Care,Older People 65&Over inc OP-MH,OP West -Direct Payment Scheme,Third Party Payments,Private Contractors,Direct Payments,9/9/2011,614,894.60,Revenue,REDACTED
Adult Social Care,Older People 65&Over inc OP-MH,OP East -Direct Payment Scheme,Third Party Payments,Private Contractors,Direct Payments,9/9/2011,615,"1,130.76",Revenue,REDACTED
Adult Social Care,Older People 65&Over inc OP-MH,OP West -Direct Payment Scheme,Third Party Payments,Private Contractors,Direct Payments,9/9/2011,616,"1,172.64",Revenue,REDACTED
Adult Social Care,Older People 65&Over inc OP-MH,OP East -Direct Payment Scheme,Third Party Payments,Private Contractors,Direct Payments,9/9/2011,617,521.84,Revenue,REDACTED
Adult Social Care,Older People 65&Over inc OP-MH,OP East -Direct Payment Scheme,Third Party Payments,Private Contractors,Direct Payments,9/9/2011,618,"1,278.00",Revenue,REDACTED
Adult Social Care,Older People 65&Over inc OP-MH,OP Hosp -Direct Payment Scheme,Third Party Payments,Private Contractors,Direct Payments,9/9/2011,619,"4,038.68",Revenue,REDACTED
Adult Social Care,Adult u65 Phys/Sensory Impair,PD WEST TEAM-Direct Payment,Third Party Payments,Private Contractors,Direct Payments,9/9/2011,620,"1,280.00",Revenue,REDACTED
Adult Social Care,Older People 65&Over inc OP-MH,OP East -Direct Payment Scheme,Third Party Payments,Private Contractors,Direct Payments,9/9/2011,621,500.52,Revenue,REDACTED
Adult Social Care,Older People 65&Over inc OP-MH,OP West -Direct Payment Scheme,Third Party Payments,Private Contractors,Direct Payments,9/9/2011,622,745.48,Revenue,REDACTED
Adult Social Care,Older People 65&Over inc OP-MH,OP East -Direct Payment Scheme,Third Party Payments,Private Contractors,Direct Payments,9/9/2011,623,"1,132.72",Revenue,REDACTED
Adult Social Care,Adult u65 Phys/Sensory Impair,PD WEST TEAM-Direct Payment,Third Party Payments,Private Contractors,Direct Payments,9/9/2011,624,"3,444.28",Revenue,REDACTED
Adult Social Care,Adult u65 Phys/Sensory Impair,PD EAST TEAM-Direct Payment,Third Party Payments,Private Contractors,Direct Payments,9/9/2011,625,"1,022.40",Revenue,REDACTED
Adult Social Care,Adult u65 Phys/Sensory Impair,PD EAST TEAM-Direct Payment,Third Party Payments,Private Contractors,Direct Payments,9/9/2011,626,766.80,Revenue,REDACTED
Adult Social Care,Older People 65&Over inc OP-MH,OP East -Direct Payment Scheme,Third Party Payments,Private Contractors,Direct Payments,9/9/2011,627,883.96,Revenue,REDACTED
Adult Social Care,Older People 65&Over inc OP-MH,OP West -Direct Payment Scheme,Third Party Payments,Private Contractors,Direct Payments,9/9/2011,628,"1,045.20",Revenue,REDACTED
Adult Social Care,Adlt u65 Learning Disabilities,LD Direct Payment Scheme,Third Party Payments,Private Contractors,Direct Payments,9/9/2011,629,511.20,Revenue,REDACTED
Adult Social Care,Adult u65 Mental Health Needs,MH Direct Payment Sche -Morden,Third Party Payments,Private Contractors,Direct Payments,9/9/2011,630,"1,192.80",Revenue,REDACTED
Adult Social Care,Adult u65 Phys/Sensory Impair,PD WEST TEAM-Direct Payment,Third Party Payments,Private Contractors,Direct Payments,9/9/2011,631,867.04,Revenue,REDACTED
Adult Social Care,Adlt u65 Learning Disabilities,LD Direct Payment Scheme,Third Party Payments,Private Contractors,Direct Payments,9/9/2011,632,683.56,Revenue,REDACTED
Adult Social Care,Older People 65&Over inc OP-MH,OP West -Direct Payment Scheme,Third Party Payments,Private Contractors,Direct Payments,9/9/2011,633,692.24,Revenue,REDACTED
Adult Social Care,Older People 65&Over inc OP-MH,OP West -Direct Payment Scheme,Third Party Payments,Private Contractors,Direct Payments,9/9/2011,634,"1,295.04",Revenue,REDACTED
Adult Social Care,Adult u65 Phys/Sensory Impair,PD WEST TEAM-Direct Payment,Third Party Payments,Private Contractors,Direct Payments,9/9/2011,635,776.92,Revenue,REDACTED
Adult Social Care,Adult u65 Phys/Sensory Impair,PD WEST TEAM-Direct Payment,Third Party Payments,Private Contractors,Direct Payments,9/9/2011,636,"2,982.00",Revenue,REDACTED
Adult Social Care,Adult u65 Phys/Sensory Impair,PD WEST TEAM-Direct Payment,Third Party Payments,Private Contractors,Direct Payments,9/9/2011,637,"1,661.40",Revenue,REDACTED
Adult Social Care,Adult u65 Phys/Sensory Impair,PD WEST TEAM-Direct Payment,Third Party Payments,Private Contractors,Direct Payments,9/9/2011,638,781.12,Revenue,REDACTED
Adult Social Care,Older People 65&Over inc OP-MH,OP East -Direct Payment Scheme,Third Party Payments,Private Contractors,Direct Payments,9/9/2011,639,884.00,Revenue,REDACTED
Adult Social Care,Older People 65&Over inc OP-MH,OP West -Direct Payment Scheme,Third Party Payments,Private Contractors,Direct Payments,9/9/2011,640,"5,712.00",Revenue,REDACTED
Adult Social Care,Older People 65&Over inc OP-MH,OP West -Direct Payment Scheme,Third Party Payments,Private Contractors,Direct Payments,9/9/2011,641,"1,142.24",Revenue,REDACTED
Adult Social Care,Older People 65&Over inc OP-MH,OP West -Direct Payment Scheme,Third Party Payments,Private Contractors,Direct Payments,9/9/2011,642,617.68,Revenue,REDACTED
Adult Social Care,Older People 65&Over inc OP-MH,OP Hosp -Direct Payment Scheme,Third Party Payments,Private Contractors,Direct Payments,9/9/2011,643,"1,684.16",Revenue,REDACTED
Adult Social Care,Adlt u65 Learning Disabilities,LD Direct Payment Scheme,Third Party Payments,Private Contractors,Direct Payments,9/9/2011,644,724.20,Revenue,REDACTED
Adult Social Care,Adult u65 Phys/Sensory Impair,PD EAST TEAM-Direct Payment,Third Party Payments,Private Contractors,Direct Payments,9/9/2011,645,"1,491.00",Revenue,REDACTED
Adult Social Care,Adult u65 Phys/Sensory Impair,PD EAST TEAM-Direct Payment,Third Party Payments,Private Contractors,Direct Payments,9/9/2011,646,639.00,Revenue,REDACTED
Adult Social Care,Adult u65 Phys/Sensory Impair,PD WEST TEAM-Direct Payment,Third Party Payments,Private Contractors,Direct Payments,9/9/2011,647,"2,790.28",Revenue,REDACTED
Adult Social Care,Adult u65 Phys/Sensory Impair,PD WEST TEAM-Direct Payment,Third Party Payments,Private Contractors,Direct Payments,9/9/2011,648,598.16,Revenue,REDACTED
Adult Social Care,Older People 65&Over inc OP-MH,OP West -Direct Payment Scheme,Third Party Payments,Private Contractors,Direct Payments,9/9/2011,649,"1,219.56",Revenue,REDACTED
Adult Social Care,Older People 65&Over inc OP-MH,OP Hosp -Direct Payment Scheme,Third Party Payments,Private Contractors,Direct Payments,9/9/2011,650,873.28,Revenue,REDACTED
Adult Social Care,Adlt u65 Learning Disabilities,LD Direct Payment Scheme,Third Party Payments,Private Contractors,Direct Payments,9/9/2011,651,"1,170.20",Revenue,REDACTED
Adult Social Care,Older People 65&Over inc OP-MH,OP West -Direct Payment Scheme,Third Party Payments,Private Contractors,Direct Payments,9/9/2011,652,"1,684.48",Revenue,REDACTED
Adult Social Care,Older People 65&Over inc OP-MH,OP East -Direct Payment Scheme,Third Party Payments,Private Contractors,Direct Payments,9/9/2011,653,502.56,Revenue,REDACTED
Adult Social Care,Older People 65&Over inc OP-MH,OP East -Direct Payment Scheme,Third Party Payments,Private Contractors,Direct Payments,9/9/2011,654,774.80,Revenue,REDACTED
Adult Social Care,Older People 65&Over inc OP-MH,OP West -Direct Payment Scheme,Third Party Payments,Private Contractors,Direct Payments,9/9/2011,655,795.12,Revenue,REDACTED
Adult Social Care,Adult u65 Phys/Sensory Impair,PD WEST TEAM-Direct Payment,Third Party Payments,Private Contractors,Direct Payments,9/9/2011,656,"1,778.56",Revenue,REDACTED
Adult Social Care,Adult u65 Phys/Sensory Impair,PD EAST TEAM-Direct Payment,Third Party Payments,Private Contractors,Direct Payments,9/9/2011,657,"1,240.52",Revenue,REDACTED
Adult Social Care,Adult u65 Phys/Sensory Impair,PD EAST TEAM-Direct Payment,Third Party Payments,Private Contractors,Direct Payments,9/9/2011,658,607.04,Revenue,REDACTED
Adult Social Care,Older People 65&Over inc OP-MH,OP East -Direct Payment Scheme,Third Party Payments,Private Contractors,Direct Payments,9/9/2011,659,937.20,Revenue,REDACTED
Adult Social Care,Older People 65&Over inc OP-MH,OP West -Direct Payment Scheme,Third Party Payments,Private Contractors,Direct Payments,9/9/2011,660,858.52,Revenue,REDACTED
Adult Social Care,Older People 65&Over inc OP-MH,OP East -Direct Payment Scheme,Third Party Payments,Private Contractors,Direct Payments,9/9/2011,661,"1,606.64",Revenue,REDACTED
Adult Social Care,Older People 65&Over inc OP-MH,OP Hosp -Direct Payment Scheme,Third Party Payments,Private Contractors,Direct Payments,9/9/2011,662,"1,183.08",Revenue,REDACTED
Adult Social Care,Adult u65 Phys/Sensory Impair,PD EAST TEAM-Direct Payment,Third Party Payments,Private Contractors,Direct Payments,9/9/2011,663,"1,949.08",Revenue,REDACTED
Adult Social Care,Adult u65 Phys/Sensory Impair,PD EAST TEAM-Direct Payment,Third Party Payments,Private Contractors,Direct Payments,9/9/2011,664,894.60,Revenue,REDACTED
Adult Social Care,Adult u65 Phys/Sensory Impair,PD WEST TEAM-Direct Payment,Third Party Payments,Private Contractors,Direct Payments,9/9/2011,665,766.80,Revenue,REDACTED
Adult Social Care,Older People 65&Over inc OP-MH,OP East -Direct Payment Scheme,Third Party Payments,Private Contractors,Direct Payments,9/9/2011,666,"1,137.44",Revenue,REDACTED
Adult Social Care,Older People 65&Over inc OP-MH,OP East -Direct Payment Scheme,Third Party Payments,Private Contractors,Direct Payments,9/9/2011,667,593.60,Revenue,REDACTED
Adult Social Care,Adlt u65 Learning Disabilities,LD Direct Payment Scheme,Third Party Payments,Private Contractors,Direct Payments,9/9/2011,668,894.60,Revenue,REDACTED
Adult Social Care,Adult u65 Phys/Sensory Impair,PD EAST TEAM-Direct Payment,Third Party Payments,Private Contractors,Direct Payments,9/9/2011,669,958.48,Revenue,REDACTED
Adult Social Care,Older People 65&Over inc OP-MH,OP West -Direct Payment Scheme,Third Party Payments,Private Contractors,Direct Payments,9/9/2011,670,"1,565.56",Revenue,REDACTED
Adult Social Care,Adult u65 Phys/Sensory Impair,PD EAST TEAM-Direct Payment,Third Party Payments,Private Contractors,Direct Payments,9/9/2011,671,724.20,Revenue,REDACTED
Adult Social Care,Adlt u65 Learning Disabilities,LD Direct Payment Scheme,Third Party Payments,Private Contractors,Direct Payments,9/9/2011,672,596.80,Revenue,REDACTED
Adult Social Care,Older People 65&Over inc OP-MH,OP East -Direct Payment Scheme,Third Party Payments,Private Contractors,Direct Payments,9/9/2011,673,745.52,Revenue,REDACTED
Adult Social Care,Adult u65 Phys/Sensory Impair,PD WEST TEAM-Direct Payment,Third Party Payments,Private Contractors,Direct Payments,9/9/2011,674,596.40,Revenue,REDACTED
Adult Social Care,Adlt u65 Learning Disabilities,LD Direct Payment Scheme,Third Party Payments,Private Contractors,Direct Payments,9/9/2011,675,"2,635.20",Revenue,REDACTED
Adult Social Care,Adult u65 Phys/Sensory Impair,PD WEST TEAM-Direct Payment,Third Party Payments,Private Contractors,Direct Payments,9/9/2011,676,665.40,Revenue,REDACTED
Adult Social Care,Adult u65 Mental Health Needs,MH Direct Payment Scheme- West,Third Party Payments,Private Contractors,Direct Payments,9/9/2011,677,986.60,Revenue,REDACTED
Adult Social Care,Older People 65&Over inc OP-MH,OP East -Direct Payment Scheme,Third Party Payments,Private Contractors,Direct Payments,9/9/2011,678,596.40,Revenue,REDACTED
Adult Social Care,Adult u65 Phys/Sensory Impair,PD EAST TEAM-Direct Payment,Third Party Payments,Private Contractors,Direct Payments,9/9/2011,679,724.20,Revenue,REDACTED
Adult Social Care,Older People 65&Over inc OP-MH,OP West -Direct Payment Scheme,Third Party Payments,Private Contractors,Direct Payments,9/9/2011,680,"1,119.60",Revenue,REDACTED
Adult Social Care,Older People 65&Over inc OP-MH,OP East -Direct Payment Scheme,Third Party Payments,Private Contractors,Direct Payments,9/9/2011,681,"3,230.76",Revenue,REDACTED
Adult Social Care,Older People 65&Over inc OP-MH,OP West -Direct Payment Scheme,Third Party Payments,Private Contractors,Direct Payments,9/9/2011,682,596.40,Revenue,REDACTED
Adult Social Care,Adult u65 Phys/Sensory Impair,PD EAST TEAM-Direct Payment,Third Party Payments,Private Contractors,Direct Payments,9/9/2011,683,"1,128.88",Revenue,REDACTED
Adult Social Care,Older People 65&Over inc OP-MH,OP Hosp -Direct Payment Scheme,Third Party Payments,Private Contractors,Direct Payments,9/9/2011,684,"1,192.80",Revenue,REDACTED
Adult Social Care,Older People 65&Over inc OP-MH,OP Hosp -Direct Payment Scheme,Third Party Payments,Private Contractors,Direct Payments,9/9/2011,685,"1,661.40",Revenue,REDACTED
Adult Social Care,Older People 65&Over inc OP-MH,OP East -Direct Payment Scheme,Third Party Payments,Private Contractors,Direct Payments,9/9/2011,686,"1,813.40",Revenue,REDACTED
Adult Social Care,Older People 65&Over inc OP-MH,OP East -Direct Payment Scheme,Third Party Payments,Private Contractors,Direct Payments,9/9/2011,687,"1,341.88",Revenue,REDACTED
Adult Social Care,Adlt u65 Learning Disabilities,LD Direct Payment Scheme,Third Party Payments,Private Contractors,Direct Payments,9/9/2011,688,565.04,Revenue,REDACTED
Adult Social Care,Adlt u65 Learning Disabilities,LD Direct Payment Scheme,Third Party Payments,Private Contractors,Direct Payments,9/9/2011,689,646.88,Revenue,REDACTED
Adult Social Care,Adult u65 Phys/Sensory Impair,PD EAST TEAM-Direct Payment,Third Party Payments,Private Contractors,Direct Payments,9/9/2011,690,596.40,Revenue,REDACTED
Childrens & Education Services,Family Support Services,CS Direct Payments,Third Party Payments,Private Contractors,Direct Payments,9/9/2011,691,621.00,Revenue,REDACTED
Adult Social Care,Adlt u65 Learning Disabilities,LD Day Care Agency,Third Party Payments,Private Contractors,Miscellaneous Agency Services,9/12/2011,692,"2,953.44",Revenue,ACT TOO
Adult Social Care,Adlt u65 Learning Disabilities,LD Home Care External,Third Party Payments,Private Contractors,Miscellaneous Agency Services,9/12/2011,693,"9,177.48",Revenue,METROPOLITAN SUPPORT TRUST
Adult Social Care,Adlt u65 Learning Disabilities,LD Home Care External,Third Party Payments,Private Contractors,Miscellaneous Agency Services,9/12/2011,694,"1,124.64",Revenue,ROYAL MENCAP SOCIETY
Adult Social Care,Adlt u65 Learning Disabilities,LD Home Care External,Third Party Payments,Private Contractors,Miscellaneous Agency Services,9/12/2011,695,505.98,Revenue,SOLACE COMMUNITY CARE LTD
Adult Social Care,Adult u65 Phys/Sensory Impair,PD EAST TEAM-Homecare,Third Party Payments,Private Contractors,Miscellaneous Agency Services,9/12/2011,696,608.00,Revenue,SWEET TREE HOME CARE SERVICES
Adult Social Care,Adlt u65 Learning Disabilities,LD Comm -Home Care-Campus Hm,Third Party Payments,Private Contractors,Miscellaneous Agency Services,9/12/2011,697,"8,449.68",Revenue,THE AVENUES TRUST GROUP
Childrens & Education Services,Other Ch's & Family Services,CL Leaving Care/Supp Lodgings,Third Party Payments,Private Contractors,Private Tenant/Landlord,9/12/2011,698,572.28,Revenue,REDACTED
Childrens & Education Services,Other Ch's & Family Services,CL Leaving Care/Supp Lodgings,Third Party Payments,Private Contractors,Private Tenant/Landlord,9/12/2011,699,600.00,Revenue,REDACTED
Adult Social Care,Asylum seekers,AS Child - Res Care (Grant),Third Party Payments,Private Contractors,Miscellaneous Agency Services,9/12/2011,700,800.00,Revenue,KEYA SUPPORT LTD
Adult Social Care,Asylum seekers,AS Child - Res Care (Grant),Third Party Payments,Private Contractors,Miscellaneous Agency Services,9/12/2011,701,800.00,Revenue,KEYA SUPPORT LTD
Childrens & Education Services,Other Ch's & Family Services,CL Leaving Care/Supp Lodgings,Third Party Payments,Private Contractors,Miscellaneous Agency Services,9/12/2011,702,800.00,Revenue,KEYA SUPPORT LTD
Adult Social Care,Asylum seekers,AS Child - Res Care (Grant),Third Party Payments,Private Contractors,Miscellaneous Agency Services,9/12/2011,703,"1,039.00",Revenue,KEYA SUPPORT LTD
Childrens & Education Services,Other Ch's & Family Services,CL Leaving Care/Supp Lodgings,Third Party Payments,Private Contractors,Miscellaneous Agency Services,9/12/2011,704,800.00,Revenue,KEYA SUPPORT LTD
Adult Social Care,Asylum seekers,AS Child - Res Care (Grant),Third Party Payments,Private Contractors,Miscellaneous Agency Services,9/12/2011,705,"1,039.00",Revenue,KEYA SUPPORT LTD
Adult Social Care,Asylum seekers,AS Child - Res Care (Grant),Third Party Payments,Private Contractors,Miscellaneous Agency Services,9/12/2011,706,800.00,Revenue,KEYA SUPPORT LTD
Adult Social Care,Asylum seekers,AS Child - Res Care (Grant),Third Party Payments,Private Contractors,Miscellaneous Agency Services,9/12/2011,707,800.00,Revenue,KEYA SUPPORT LTD
Adult Social Care,Adult u65 Mental Health Needs,MH Other Servs - Mitcham West,Third Party Payments,Private Contractors,Miscellaneous Agency Services,9/12/2011,708,553.88,Revenue,MATRIX PROPERTIES SERVICES LTD
Adult Social Care,Other Adult Services,MH Residential Care Ext- SM&A,Third Party Payments,Private Contractors,Miscellaneous Agency Services,9/12/2011,709,"3,024.00",Revenue,ACTION ON ADDICTION
Adult Social Care,Older People 65&Over inc OP-MH,OP Hosp - Nursing Care,Third Party Payments,Private Contractors,Miscellaneous Agency Services,9/12/2011,710,"2,452.34",Revenue,ASHURST PARK CARE CENTRE
Adult Social Care,Older People 65&Over inc OP-MH,OP Hosp - Residential Care Ext,Third Party Payments,Private Contractors,Miscellaneous Agency Services,9/12/2011,711,"1,941.90",Revenue,ASLOCKTON HALL
Adult Social Care,Older People 65&Over inc OP-MH,OP Hosp - Residential Care Ext,Third Party Payments,Private Contractors,Miscellaneous Agency Services,9/12/2011,712,"4,214.28",Revenue,BEECHWOOD HOUSE
Adult Social Care,Older People 65&Over inc OP-MH,OP Hosp - Nursing Care,Third Party Payments,Private Contractors,Miscellaneous Agency Services,9/12/2011,713,"6,786.75",Revenue,CARE UK
Adult Social Care,Older People 65&Over inc OP-MH,OP East - Nursing Care,Third Party Payments,Private Contractors,Miscellaneous Agency Services,9/12/2011,714,"2,714.70",Revenue,CARE UK
Adult Social Care,Older People 65&Over inc OP-MH,OP East - Nursing Care,Third Party Payments,Private Contractors,Miscellaneous Agency Services,9/12/2011,715,"2,714.70",Revenue,CARE UK
Adult Social Care,Older People 65&Over inc OP-MH,OP West - Nursing Care,Third Party Payments,Private Contractors,Miscellaneous Agency Services,9/12/2011,716,"2,714.70",Revenue,CARE UK
Adult Social Care,Older People 65&Over inc OP-MH,OP Hosp - Nursing Care,Third Party Payments,Private Contractors,Miscellaneous Agency Services,9/12/2011,717,"2,714.70",Revenue,CARE UK
Adult Social Care,Older People 65&Over inc OP-MH,OP Hosp - Nursing Care,Third Party Payments,Private Contractors,Miscellaneous Agency Services,9/12/2011,718,"2,714.70",Revenue,CARE UK
Adult Social Care,Older People 65&Over inc OP-MH,OP Hosp - Nursing Care,Third Party Payments,Private Contractors,Miscellaneous Agency Services,9/12/2011,719,"2,714.70",Revenue,CARE UK
Adult Social Care,Older People 65&Over inc OP-MH,OP Hosp - Nursing Care,Third Party Payments,Private Contractors,Miscellaneous Agency Services,9/12/2011,720,"2,714.70",Revenue,CARE UK
Adult Social Care,Older People 65&Over inc OP-MH,OP East - Nursing Care,Third Party Payments,Private Contractors,Miscellaneous Agency Services,9/12/2011,721,"2,714.70",Revenue,CARE UK
Adult Social Care,Older People 65&Over inc OP-MH,OP East - Nursing Care,Third Party Payments,Private Contractors,Miscellaneous Agency Services,9/12/2011,722,"2,714.70",Revenue,CARE UK
Adult Social Care,Older People 65&Over inc OP-MH,OP Hosp - Nursing Care,Third Party Payments,Private Contractors,Miscellaneous Agency Services,9/12/2011,723,"2,871.30",Revenue,CARE UK
Adult Social Care,Older People 65&Over inc OP-MH,OP Hosp - Nursing Care,Third Party Payments,Private Contractors,Miscellaneous Agency Services,9/12/2011,724,"2,714.70",Revenue,CARE UK
Adult Social Care,Older People 65&Over inc OP-MH,OP East - Nursing Care,Third Party Payments,Private Contractors,Miscellaneous Agency Services,9/12/2011,725,"2,714.70",Revenue,CARE UK
Adult Social Care,Older People 65&Over inc OP-MH,OP Hosp - Nursing Care,Third Party Payments,Private Contractors,Miscellaneous Agency Services,9/12/2011,726,"2,341.84",Revenue,CRNH LTD
Adult Social Care,Older People 65&Over inc OP-MH,OP Hosp - Nursing Care,Third Party Payments,Private Contractors,Miscellaneous Agency Services,9/12/2011,727,"2,341.84",Revenue,CRNH LTD
Adult Social Care,Older People 65&Over inc OP-MH,OP Hosp - Nursing Care,Third Party Payments,Private Contractors,Miscellaneous Agency Services,9/12/2011,728,"2,341.84",Revenue,CRNH LTD
Adult Social Care,Older People 65&Over inc OP-MH,OP Hosp - Nursing Care,Third Party Payments,Private Contractors,Miscellaneous Agency Services,9/12/2011,729,"2,459.89",Revenue,CRNH LTD
Adult Social Care,Older People 65&Over inc OP-MH,OP Hosp - Residential Care Ext,Third Party Payments,Private Contractors,Miscellaneous Agency Services,9/12/2011,730,"1,812.40",Revenue,CRNH LTD
Adult Social Care,Older People 65&Over inc OP-MH,OP Hosp - Nursing Care,Third Party Payments,Private Contractors,Miscellaneous Agency Services,9/12/2011,731,"2,221.84",Revenue,CRNH LTD
Adult Social Care,Adult u65 Mental Health Needs,MH ResidentialCare Ext - Wim,Third Party Payments,Private Contractors,Miscellaneous Agency Services,9/12/2011,732,"3,632.00",Revenue,CARE MANAGEMENT GROUP
Adult Social Care,Adlt u65 Learning Disabilities,LD Residential Care External,Third Party Payments,Private Contractors,Miscellaneous Agency Services,9/19/2011,733,"4,688.88",Revenue,CRAEGMOOR FACILITIES CO LTD
Adult Social Care,Older People 65&Over inc OP-MH,OP West - Residential Care Ext,Third Party Payments,Private Contractors,Miscellaneous Agency Services,9/12/2011,734,"1,825.16",Revenue,DEEPDENE CARE LIMITED
Adult Social Care,Adult u65 Mental Health Needs,MH ResidentialCare Ext - Wim,Third Party Payments,Private Contractors,Miscellaneous Agency Services,9/12/2011,735,"1,825.16",Revenue,DEEPDENE CARE LIMITED
Adult Social Care,Older People 65&Over inc OP-MH,OP West - Nursing Care,Third Party Payments,Private Contractors,Miscellaneous Agency Services,9/12/2011,736,"2,233.68",Revenue,GARTH HOUSE NURSING HOME
Adult Social Care,Older People 65&Over inc OP-MH,OP West - Nursing Care,Customer and client receipts,Charges,Miscellaneous Charges X,9/12/2011,737,-579.76,Revenue,GRACE MANOR NURSING HOME
Adult Social Care,Older People 65&Over inc OP-MH,OP West - Nursing Care,Third Party Payments,Private Contractors,Miscellaneous Agency Services,9/12/2011,738,"2,232.84",Revenue,GRACE MANOR NURSING HOME
Adult Social Care,Older People 65&Over inc OP-MH,OP East - Residential Care Ext,Third Party Payments,Private Contractors,Miscellaneous Agency Services,9/12/2011,739,"3,000.00",Revenue,GREENHIVE
Adult Social Care,Adult u65 Phys/Sensory Impair,PD WEST TEAM-Residential Care,Third Party Payments,Private Contractors,Miscellaneous Agency Services,9/12/2011,740,"4,149.44",Revenue,HOTHFIELD MANOR FSHC
Adult Social Care,Older People 65&Over inc OP-MH,OP West - Residential Care Ext,Third Party Payments,Private Contractors,Miscellaneous Agency Services,9/12/2011,741,"2,746.48",Revenue,LYNCROFT RESIDENTIAL HOME
Adult Social Care,Adlt u65 Learning Disabilities,LD Residential Care External,Customer and client receipts,Charges,Miscellaneous Charges X,9/12/2011,742,-885.00,Revenue,METROPOLITAN SUPPORT TRUST
Adult Social Care,Adlt u65 Learning Disabilities,LD Residential Care External,Third Party Payments,Private Contractors,Miscellaneous Agency Services,9/12/2011,743,"14,971.25",Revenue,METROPOLITAN SUPPORT TRUST
Adult Social Care,Adlt u65 Learning Disabilities,LD Residential Care External,Customer and client receipts,Charges,Miscellaneous Charges X,9/12/2011,744,-837.20,Revenue,TRACESCENT LIMITED
Adult Social Care,Adlt u65 Learning Disabilities,LD Residential Care External,Third Party Payments,Private Contractors,Miscellaneous Agency Services,9/12/2011,745,"9,350.12",Revenue,TRACESCENT LIMITED
Adult Social Care,Older People 65&Over inc OP-MH,OP East - Nursing Care,Third Party Payments,Private Contractors,Miscellaneous Agency Services,9/12/2011,746,"2,255.16",Revenue,FAMILY STAR LTD
Adult Social Care,Older People 65&Over inc OP-MH,OP West - Nursing Care,Third Party Payments,Private Contractors,Miscellaneous Agency Services,9/12/2011,747,"2,314.20",Revenue,FAMILY STAR LTD
Adult Social Care,Other Adult Services,MH Residential Care Ext- SM&A,Third Party Payments,Private Contractors,Miscellaneous Agency Services,9/12/2011,748,"1,263.91",Revenue,TURNING POINT SERVICES LTD
Adult Social Care,Older People 65&Over inc OP-MH,OP West - Nursing Care,Third Party Payments,Private Contractors,Miscellaneous Agency Services,9/14/2011,749,"2,173.96",Revenue,THE WHITE HOUSE NURSING HOME
Adult Social Care,Older People 65&Over inc OP-MH,OP West - Nursing Care,Third Party Payments,Private Contractors,Miscellaneous Agency Services,9/14/2011,750,"2,233.00",Revenue,THE WHITE HOUSE NURSING HOME
Adult Social Care,Older People 65&Over inc OP-MH,OP East - Residential Care Ext,Customer and client receipts,Charges,Miscellaneous Charges X,9/12/2011,751,"-1,162.92",Revenue,WOODLANDS
Adult Social Care,Older People 65&Over inc OP-MH,OP West - Nursing Care,Third Party Payments,Private Contractors,Miscellaneous Agency Services,9/12/2011,752,"7,658.64",Revenue,WOODLANDS
Adult Social Care,Older People 65&Over inc OP-MH,OP Hosp - Residential Care Ext,Third Party Payments,Private Contractors,Miscellaneous Agency Services,9/12/2011,753,"16,200.08",Revenue,WOODLANDS
Adult Social Care,Older People 65&Over inc OP-MH,OP West - Residential Care Ext,Third Party Payments,Private Contractors,Miscellaneous Agency Services,9/12/2011,754,"16,356.48",Revenue,WOODLANDS
Adult Social Care,Older People 65&Over inc OP-MH,OP East - Nursing Care,Third Party Payments,Private Contractors,Miscellaneous Agency Services,9/12/2011,755,"35,251.76",Revenue,WOODLANDS
Adult Social Care,Older People 65&Over inc OP-MH,OP East - Residential Care Ext,Third Party Payments,Private Contractors,Miscellaneous Agency Services,9/12/2011,756,"35,320.88",Revenue,WOODLANDS
Childrens & Education Services,Children Looked After (24hrs+),CL Fostering Services,Supplies and Services,Services,Task Based Fostering,9/13/2011,757,"1,560.88",Revenue,REDACTED
Childrens & Education Services,Children Looked After (24hrs+),CL Fostering Services,Supplies and Services,Services,Task Based Fostering,9/13/2011,758,780.44,Revenue,REDACTED
Childrens & Education Services,Children Looked After (24hrs+),CL Fostering Services,Supplies and Services,Services,Task Based Fostering,9/13/2011,759,"1,502.66",Revenue,REDACTED
Childrens & Education Services,Children Looked After (24hrs+),CL Fostering Services,Supplies and Services,Services,Task Based Fostering,9/13/2011,760,"1,519.64",Revenue,REDACTED
Childrens & Education Services,Children Looked After (24hrs+),CL Fostering Services,Supplies and Services,Services,Task Based Fostering,9/13/2011,761,"2,266.12",Revenue,REDACTED
Childrens & Education Services,Children Looked After (24hrs+),CL Fostering Services,Supplies and Services,Services,Task Based Fostering,9/13/2011,762,780.44,Revenue,REDACTED
Childrens & Education Services,Children Looked After (24hrs+),CL Fostering Services,Supplies and Services,Services,Task Based Fostering,9/13/2011,763,"1,526.92",Revenue,REDACTED
Childrens & Education Services,Children Looked After (24hrs+),CL Fostering Services,Supplies and Services,Services,Task Based Fostering,9/13/2011,764,"2,524.88",Revenue,REDACTED
Childrens & Education Services,Children Looked After (24hrs+),CL Fostering Services,Supplies and Services,Services,Task Based Fostering,9/13/2011,765,"2,324.34",Revenue,REDACTED
Childrens & Education Services,Children Looked After (24hrs+),CL Fostering Services,Supplies and Services,Services,Task Based Fostering,9/13/2011,766,"2,418.10",Revenue,REDACTED
Childrens & Education Services,Children Looked After (24hrs+),CL Fostering Services,Supplies and Services,Services,Task Based Fostering,9/13/2011,767,530.44,Revenue,REDACTED
Childrens & Education Services,Children Looked After (24hrs+),CL Fostering Services,Supplies and Services,Services,Task Based Fostering,9/13/2011,768,"3,269.36",Revenue,REDACTED
Childrens & Education Services,Children Looked After (24hrs+),CL Fostering Services,Supplies and Services,Services,Task Based Fostering,9/13/2011,769,"1,560.88",Revenue,REDACTED
Childrens & Education Services,Children Looked After (24hrs+),CL Fostering Services,Supplies and Services,Services,Task Based Fostering,9/13/2011,770,"2,283.10",Revenue,REDACTED
Childrens & Education Services,Children Looked After (24hrs+),CL Fostering Services,Supplies and Services,Services,Task Based Fostering,9/13/2011,771,739.20,Revenue,REDACTED
Childrens & Education Services,Children Looked After (24hrs+),CL Fostering Services,Supplies and Services,Services,Task Based Fostering,9/13/2011,772,780.44,Revenue,REDACTED
Childrens & Education Services,Children Looked After (24hrs+),CL Fostering Services,Supplies and Services,Services,Task Based Fostering,9/13/2011,773,"2,548.36",Revenue,REDACTED
Childrens & Education Services,Children Looked After (24hrs+),CL Fostering Services,Supplies and Services,Services,Task Based Fostering,9/13/2011,774,"1,543.90",Revenue,REDACTED
Childrens & Education Services,Children Looked After (24hrs+),CL Fostering Services,Supplies and Services,Services,Task Based Fostering,9/13/2011,775,"1,478.40",Revenue,REDACTED
Childrens & Education Services,Children Looked After (24hrs+),CL Fostering Services,Supplies and Services,Services,Task Based Fostering,9/13/2011,776,780.44,Revenue,REDACTED
Childrens & Education Services,Children Looked After (24hrs+),CL Fostering Services,Supplies and Services,Services,Task Based Fostering,9/13/2011,777,"2,241.86",Revenue,REDACTED
Childrens & Education Services,Children Looked After (24hrs+),CL Fostering Services,Supplies and Services,Services,Task Based Fostering,9/13/2011,778,"1,478.40",Revenue,REDACTED
Childrens & Education Services,Children Looked After (24hrs+),CL Fostering Services,Supplies and Services,Services,Task Based Fostering,9/13/2011,779,780.44,Revenue,REDACTED
Childrens & Education Services,Children Looked After (24hrs+),CL Fostering Services,Supplies and Services,Services,Task Based Fostering,9/13/2011,780,739.20,Revenue,REDACTED
Childrens & Education Services,Children Looked After (24hrs+),CL Fostering Services,Supplies and Services,Services,Task Based Fostering,9/13/2011,781,"1,502.66",Revenue,REDACTED
Childrens & Education Services,Children Looked After (24hrs+),CL Fostering Services,Supplies and Services,Services,Task Based Fostering,9/13/2011,782,739.20,Revenue,REDACTED
Childrens & Education Services,Children Looked After (24hrs+),ART Independent Agency Foster,Supplies and Services,Services,Long Term Fostering,9/14/2011,783,"6,272.49",Revenue,ETHELBERT SPECIALIST HOMES LTD
Adult Social Care,Adlt u65 Learning Disabilities,LD Home Care External,Third Party Payments,Private Contractors,Miscellaneous Agency Services,9/14/2011,784,"7,400.40",Revenue,COMMUNITY HOME CARE PROVIDER
Adult Social Care,Older People 65&Over inc OP-MH,OP West - Home Care External,Third Party Payments,Private Contractors,Miscellaneous Agency Services,9/14/2011,785,"1,995.84",Revenue,COMPASSIONATE CARING AGENCY UK
Adult Social Care,Older People 65&Over inc OP-MH,OP West - Home Care External,Third Party Payments,Private Contractors,Miscellaneous Agency Services,9/14/2011,786,"1,276.20",Revenue,COMPASSIONATE CARING AGENCY UK
Adult Social Care,Adult u65 Phys/Sensory Impair,PD WEST TEAM-Homecare,Third Party Payments,Private Contractors,Miscellaneous Agency Services,9/14/2011,787,"1,473.88",Revenue,COMPASSIONATE CARING AGENCY UK
Adult Social Care,Adult u65 Phys/Sensory Impair,PD EAST TEAM-Homecare,Third Party Payments,Private Contractors,Miscellaneous Agency Services,9/14/2011,788,"1,641.60",Revenue,COMPASSIONATE CARING AGENCY UK
Adult Social Care,Older People 65&Over inc OP-MH,OP West - Home Care External,Third Party Payments,Private Contractors,Miscellaneous Agency Services,9/14/2011,789,"2,363.06",Revenue,COMPASSIONATE CARING AGENCY UK
Adult Social Care,Older People 65&Over inc OP-MH,OP Hosp - Home Care External,Third Party Payments,Private Contractors,Miscellaneous Agency Services,9/14/2011,790,539.42,Revenue,COMPASSIONATE CARING AGENCY UK
Adult Social Care,Older People 65&Over inc OP-MH,OP East - Home Care External,Third Party Payments,Private Contractors,Miscellaneous Agency Services,9/14/2011,791,"1,877.12",Revenue,COMPASSIONATE CARING AGENCY UK
Adult Social Care,Adult u65 Phys/Sensory Impair,PD EAST TEAM-Homecare,Third Party Payments,Private Contractors,Miscellaneous Agency Services,9/14/2011,792,911.40,Revenue,COMPASSIONATE CARING AGENCY UK
Adult Social Care,Adult u65 Phys/Sensory Impair,PD EAST TEAM-Homecare,Third Party Payments,Private Contractors,Miscellaneous Agency Services,9/14/2011,793,"1,997.03",Revenue,COMPASSIONATE CARING AGENCY UK
Adult Social Care,Older People 65&Over inc OP-MH,OP West - Home Care External,Third Party Payments,Private Contractors,Miscellaneous Agency Services,9/14/2011,794,"1,954.08",Revenue,COMPASSIONATE CARING AGENCY UK
Adult Social Care,Older People 65&Over inc OP-MH,OP East - Home Care External,Third Party Payments,Private Contractors,Miscellaneous Agency Services,9/14/2011,795,"1,775.12",Revenue,COMPASSIONATE CARING AGENCY UK
Adult Social Care,Older People 65&Over inc OP-MH,OP East - Home Care External,Third Party Payments,Private Contractors,Miscellaneous Agency Services,9/14/2011,796,"2,322.08",Revenue,COMPASSIONATE CARING AGENCY UK
Adult Social Care,Adlt u65 Learning Disabilities,LD Home Care External,Third Party Payments,Private Contractors,Miscellaneous Agency Services,9/14/2011,797,954.90,Revenue,HOUSING21
Adult Social Care,Older People 65&Over inc OP-MH,OP West - Home Care External,Third Party Payments,Private Contractors,Miscellaneous Agency Services,9/14/2011,798,"5,147.30",Revenue,HOUSING21
Adult Social Care,Older People 65&Over inc OP-MH,OP East - Home Care External,Third Party Payments,Private Contractors,Miscellaneous Agency Services,9/14/2011,799,"5,523.76",Revenue,HOUSING21
Adult Social Care,Older People 65&Over inc OP-MH,OP East - Home Care External,Third Party Payments,Private Contractors,Miscellaneous Agency Services,9/14/2011,800,764.25,Revenue,SYNERGY PERSONNEL SOLUTIONS LT
Adult Social Care,Older People 65&Over inc OP-MH,OP East - Home Care External,Third Party Payments,Private Contractors,Miscellaneous Agency Services,9/14/2011,801,764.25,Revenue,SYNERGY PERSONNEL SOLUTIONS LT
Adult Social Care,Older People 65&Over inc OP-MH,OP East - Home Care External,Third Party Payments,Private Contractors,Miscellaneous Agency Services,9/14/2011,802,738.75,Revenue,SYNERGY PERSONNEL SOLUTIONS LT
Adult Social Care,Adlt u65 Learning Disabilities,LD Home Care External,Third Party Payments,Private Contractors,Miscellaneous Agency Services,9/14/2011,803,655.30,Revenue,BEECH HOME CARE SERVICES
Adult Social Care,Other Adult Services,MH Day Care - SM&Alcohol,Third Party Payments,Private Contractors,Miscellaneous Agency Services,9/14/2011,804,"1,235.57",Revenue,MOUNT CARMEL HOSTEL
Adult Social Care,Adlt u65 Learning Disabilities,LD Direct Payment Scheme,Third Party Payments,Private Contractors,Direct Payments,9/14/2011,805,"2,208.30",Revenue,REDACTED
Adult Social Care,Older People 65&Over inc OP-MH,OP East -Direct Payment Scheme,Third Party Payments,Private Contractors,Direct Payments,9/14/2011,806,759.75,Revenue,REDACTED
Adult Social Care,Older People 65&Over inc OP-MH,OP East -Direct Payment Scheme,Third Party Payments,Private Contractors,Direct Payments,9/14/2011,807,815.64,Revenue,REDACTED
Adult Social Care,Adlt u65 Learning Disabilities,LD Residential Care External,Third Party Payments,Private Contractors,Miscellaneous Agency Services,9/14/2011,808,"1,830.80",Revenue,ASRA G.LONDON HOUSING ASS.LTD
Adult Social Care,Older People 65&Over inc OP-MH,OP West - Residential Care Ext,Customer and client receipts,Charges,Miscellaneous Charges X,9/14/2011,809,"-1,008.40",Revenue,CARTER HOUSE
Adult Social Care,Older People 65&Over inc OP-MH,OP East - Nursing Care,Third Party Payments,Private Contractors,Miscellaneous Agency Services,9/14/2011,810,"2,552.88",Revenue,CARTER HOUSE
Adult Social Care,Older People 65&Over inc OP-MH,OP East - Residential Care Ext,Third Party Payments,Private Contractors,Miscellaneous Agency Services,9/14/2011,811,"3,932.72",Revenue,CARTER HOUSE
Adult Social Care,Older People 65&Over inc OP-MH,OP Hosp - Nursing Care,Third Party Payments,Private Contractors,Miscellaneous Agency Services,9/14/2011,812,"8,388.03",Revenue,CARTER HOUSE
Adult Social Care,Older People 65&Over inc OP-MH,OP West - Nursing Care,Third Party Payments,Private Contractors,Miscellaneous Agency Services,9/14/2011,813,"10,211.52",Revenue,CARTER HOUSE
Adult Social Care,Older People 65&Over inc OP-MH,OP Hosp - Residential Care Ext,Third Party Payments,Private Contractors,Miscellaneous Agency Services,9/14/2011,814,"10,222.80",Revenue,CARTER HOUSE
Adult Social Care,Older People 65&Over inc OP-MH,OP West - Residential Care Ext,Third Party Payments,Private Contractors,Miscellaneous Agency Services,9/14/2011,815,"27,862.56",Revenue,CARTER HOUSE
Adult Social Care,Other Adult Services,MH Residential Care Ext- SM&A,Third Party Payments,Private Contractors,Miscellaneous Agency Services,9/14/2011,816,"1,090.70",Revenue,MOUNT CARMEL HOSTEL
Adult Social Care,Adlt u65 Learning Disabilities,LD Residential Care External,Third Party Payments,Private Contractors,Miscellaneous Agency Services,9/14/2011,817,"4,160.00",Revenue,THE REGARD PARTNERSHIP LTD
Adult Social Care,Older People 65&Over inc OP-MH,OP East - Nursing Care,Third Party Payments,Private Contractors,Miscellaneous Agency Services,9/14/2011,818,"2,255.16",Revenue,FAMILY STAR LTD
Adult Social Care,Older People 65&Over inc OP-MH,OP West - Nursing Care,Third Party Payments,Private Contractors,Miscellaneous Agency Services,9/14/2011,819,"2,314.20",Revenue,FAMILY STAR LTD
Adult Social Care,Other Adult Services,MH Residential Care Ext- SM&A,Customer and client receipts,Charges,Bd&Acc-contrib coll by home X,9/14/2011,820,-505.80,Revenue,TURNING POINT SERVICES LTD
Adult Social Care,Other Adult Services,MH Residential Care Ext- SM&A,Third Party Payments,Private Contractors,Miscellaneous Agency Services,9/14/2011,821,"2,334.09",Revenue,TURNING POINT SERVICES LTD
Childrens & Education Services,Family Support Services,CS Direct Payments,Third Party Payments,Private Contractors,Direct Payments,9/14/2011,822,"1,917.00",Revenue,REDACTED
Adult Social Care,Older People 65&Over inc OP-MH,OP East - Residential Care Ext,Third Party Payments,Private Contractors,Miscellaneous Agency Services,9/14/2011,823,"7,221.33",Revenue,CARTER HOUSE
Adult Social Care,Older People 65&Over inc OP-MH,OP East -Direct Payment Scheme,Third Party Payments,Private Contractors,Direct Payments,9/14/2011,824,"5,061.35",Revenue,REDACTED
Adult Social Care,Adult u65 Mental Health Needs,MH Res Care Ext- Mitcham West,Third Party Payments,Private Contractors,Miscellaneous Agency Services,9/14/2011,825,"7,071.60",Revenue,BIBBY FACTORS SLOUGH LTD
Childrens & Education Services,Family Support Services,CS Day Care CWD,Third Party Payments,Private Contractors,Miscellaneous Agency Services,9/14/2011,826,"2,413.95",Revenue,SOUTH THAMES CROSSROADS
Childrens & Education Services,Family Support Services,CS Day Care CWD,Third Party Payments,Private Contractors,Miscellaneous Agency Services,9/14/2011,827,650.00,Revenue,THE GRANGE DAY NURSERY
Childrens & Education Services,Family Support Services,CS Day Care CWD,Third Party Payments,Private Contractors,Miscellaneous Agency Services,9/14/2011,828,780.00,Revenue,THE GRANGE DAY NURSERY
Childrens & Education Services,Family Support Services,CS Day Care CWD,Third Party Payments,Private Contractors,Miscellaneous Agency Services,9/14/2011,829,520.00,Revenue,THE GRANGE DAY NURSERY
Childrens & Education Services,Family Support Services,CS Day Care CWD,Third Party Payments,Private Contractors,Miscellaneous Agency Services,9/14/2011,830,780.00,Revenue,THE GRANGE DAY NURSERY
Childrens & Education Services,Family Support Services,CS Day Care CWD,Third Party Payments,Private Contractors,Miscellaneous Agency Services,9/14/2011,831,650.00,Revenue,THE GRANGE DAY NURSERY
Childrens & Education Services,Family Support Services,CS Day Care CWD,Third Party Payments,Private Contractors,Miscellaneous Agency Services,9/14/2011,832,"1,300.00",Revenue,THE GRANGE DAY NURSERY
Childrens & Education Services,Family Support Services,CS Day Care CWD,Third Party Payments,Private Contractors,Miscellaneous Agency Services,9/14/2011,833,650.00,Revenue,THE GRANGE DAY NURSERY
Adult Social Care,Adlt u65 Learning Disabilities,LD Direct Payment Scheme,Third Party Payments,Private Contractors,Direct Payments,9/14/2011,834,"1,100.00",Revenue,REDACTED
Adult Social Care,Older People 65&Over inc OP-MH,OP East - Residential Care Ext,Third Party Payments,Private Contractors,Miscellaneous Agency Services,9/14/2011,835,"1,812.40",Revenue,ABBEYFIELD PEABODY S.LOND.LTD
Adult Social Care,Older People 65&Over inc OP-MH,OP Hosp - Residential Care Ext,Third Party Payments,Private Contractors,Miscellaneous Agency Services,9/14/2011,836,"2,094.40",Revenue,ABBEYFIELD PEABODY S.LOND.LTD
Adult Social Care,Older People 65&Over inc OP-MH,OP West - Residential Care Ext,Third Party Payments,Private Contractors,Miscellaneous Agency Services,9/14/2011,837,"1,907.04",Revenue,ABBEYFIELD PEABODY S.LOND.LTD
Adult Social Care,Older People 65&Over inc OP-MH,OP West - Residential Care Ext,Third Party Payments,Private Contractors,Miscellaneous Agency Services,9/14/2011,838,"1,020.00",Revenue,ABBEYFIELD PEABODY S.LOND.LTD
Adult Social Care,Older People 65&Over inc OP-MH,OP Hosp - Nursing Care,Customer and client receipts,Charges,Bd&Acc-contrib coll by home X,9/14/2011,839,"-1,224.92",Revenue,AVONMEAD NURSING HOME
Adult Social Care,Older People 65&Over inc OP-MH,OP Hosp - Nursing Care,Third Party Payments,Private Contractors,Miscellaneous Agency Services,9/14/2011,840,"2,374.16",Revenue,AVONMEAD NURSING HOME
Adult Social Care,Older People 65&Over inc OP-MH,OP East - Residential Care Ext,Third Party Payments,Private Contractors,Miscellaneous Agency Services,9/14/2011,841,"2,056.24",Revenue,BOLTERS CORNER CARE HOME
Adult Social Care,Older People 65&Over inc OP-MH,OP East - Residential Care Ext,Third Party Payments,Private Contractors,Miscellaneous Agency Services,9/14/2011,842,"2,056.24",Revenue,BOLTERS CORNER CARE HOME
Adult Social Care,Older People 65&Over inc OP-MH,OP Mitcham-Residential CareExt,Third Party Payments,Private Contractors,Miscellaneous Agency Services,9/14/2011,843,"2,000.00",Revenue,BROOK CARE HOMES LTD
Adult Social Care,Older People 65&Over inc OP-MH,OP East - Residential Care Ext,Third Party Payments,Private Contractors,Miscellaneous Agency Services,9/14/2011,844,"2,086.84",Revenue,CHURCH FARM RESIDENTIAL HOME
Adult Social Care,Older People 65&Over inc OP-MH,OP East - Residential Care Ext,Third Party Payments,Private Contractors,Miscellaneous Agency Services,9/14/2011,845,"1,692.40",Revenue,GENESIS CARE HOME
Adult Social Care,Adult u65 Phys/Sensory Impair,PD WEST TEAM-Nursing,Third Party Payments,Private Contractors,Miscellaneous Agency Services,9/14/2011,846,"4,800.00",Revenue,HAVERING COURT NURSING HOME
Adult Social Care,Adlt u65 Learning Disabilities,LD Home Care External,Third Party Payments,Private Contractors,Miscellaneous Agency Services,9/14/2011,847,"3,234.96",Revenue,H F TRUST LTD
Adult Social Care,Older People 65&Over inc OP-MH,OP Morden - Nursing Care,Third Party Payments,Private Contractors,Miscellaneous Agency Services,9/14/2011,848,"2,341.84",Revenue,KELSTONE COURT NURSING HOME
Adult Social Care,Older People 65&Over inc OP-MH,OP East - Nursing Care,Third Party Payments,Private Contractors,Miscellaneous Agency Services,9/14/2011,849,"2,341.84",Revenue,KELSTONE COURT NURSING HOME
Adult Social Care,Older People 65&Over inc OP-MH,OP Hosp - Nursing Care,Third Party Payments,Private Contractors,Miscellaneous Agency Services,9/14/2011,850,"2,341.84",Revenue,KELSTONE COURT NURSING HOME
Adult Social Care,Older People 65&Over inc OP-MH,OP East - Residential Care Ext,Third Party Payments,Private Contractors,Miscellaneous Agency Services,9/14/2011,851,"1,812.40",Revenue,KELSTONE COURT NURSING HOME
Adult Social Care,Older People 65&Over inc OP-MH,OP West - Nursing Care,Third Party Payments,Private Contractors,Miscellaneous Agency Services,9/14/2011,852,"2,341.84",Revenue,KELSTONE COURT NURSING HOME
Adult Social Care,Older People 65&Over inc OP-MH,OP West - Nursing Care,Third Party Payments,Private Contractors,Miscellaneous Agency Services,9/14/2011,853,"2,134.60",Revenue,KELSTONE COURT NURSING HOME
Adult Social Care,Older People 65&Over inc OP-MH,OP Hosp - Nursing Care,Third Party Payments,Private Contractors,Miscellaneous Agency Services,9/14/2011,854,"2,341.84",Revenue,KELSTONE COURT NURSING HOME
Adult Social Care,Older People 65&Over inc OP-MH,OP Hosp - Nursing Care,Third Party Payments,Private Contractors,Miscellaneous Agency Services,9/14/2011,855,"2,380.00",Revenue,KELSTONE COURT NURSING HOME
Adult Social Care,Older People 65&Over inc OP-MH,OP West - Nursing Care,Third Party Payments,Private Contractors,Miscellaneous Agency Services,9/14/2011,856,"2,341.84",Revenue,KELSTONE COURT NURSING HOME
Adult Social Care,Older People 65&Over inc OP-MH,OP West - Nursing Care,Third Party Payments,Private Contractors,Miscellaneous Agency Services,9/14/2011,857,"2,173.96",Revenue,KELSTONE COURT NURSING HOME
Adult Social Care,Older People 65&Over inc OP-MH,OP Hosp - Nursing Care,Third Party Payments,Private Contractors,Miscellaneous Agency Services,9/14/2011,858,"2,341.84",Revenue,KELSTONE COURT NURSING HOME
Adult Social Care,Adlt u65 Learning Disabilities,LD Residential Care External,Third Party Payments,Private Contractors,Miscellaneous Agency Services,9/14/2011,859,"3,406.60",Revenue,L'ARCHE
Adult Social Care,Adlt u65 Learning Disabilities,LD Residential Care External,Third Party Payments,Private Contractors,Miscellaneous Agency Services,9/14/2011,860,"3,406.60",Revenue,L'ARCHE
Adult Social Care,Adlt u65 Learning Disabilities,LD Residential Care External,Third Party Payments,Private Contractors,Miscellaneous Agency Services,9/14/2011,861,"3,406.60",Revenue,L'ARCHE
Adult Social Care,Older People 65&Over inc OP-MH,OP Hosp - Residential Care Ext,Third Party Payments,Private Contractors,Miscellaneous Agency Services,9/14/2011,862,"2,200.00",Revenue,MAESYFELIN RESIDENTIAL HOME
Adult Social Care,Adlt u65 Learning Disabilities,LD Residential Care External,Third Party Payments,Private Contractors,Miscellaneous Agency Services,9/14/2011,863,"3,241.75",Revenue,THE SONS OF DIVINE PROVIDENCE
Adult Social Care,Adlt u65 Learning Disabilities,LD Residential Care External,Third Party Payments,Private Contractors,Miscellaneous Agency Services,9/14/2011,864,"14,600.00",Revenue,ST LUKE'S HOSPITAL- OLD LEIGH
Adult Social Care,Adlt u65 Learning Disabilities,LD Residential Care External,Third Party Payments,Private Contractors,Miscellaneous Agency Services,9/14/2011,865,"23,905.28",Revenue,ST LUKE'S HOSPITAL- OLD LEIGH
Adult Social Care,Adult u65 Mental Health Needs,MH Adult Placement Cont- NRTPF,Third Party Payments,Private Contractors,Accommodation Based Support,9/15/2011,866,946.52,Revenue,REDACTED
Adult Social Care,Adult u65 Mental Health Needs,HS Adult Placements,Third Party Payments,Private Contractors,Accommodation Based Support,9/15/2011,867,"3,100.76",Revenue,REDACTED
Adult Social Care,Adult u65 Mental Health Needs,MH Adult Placement Cont- NRTPF,Third Party Payments,Private Contractors,Accommodation Based Support,9/16/2011,868,878.16,Revenue,REDACTED
Adult Social Care,Adult u65 Mental Health Needs,MH Adult Placement Cont- NRTPF,Third Party Payments,Private Contractors,Accommodation Based Support,9/15/2011,869,"1,287.40",Revenue,REDACTED
Adult Social Care,Adult u65 Mental Health Needs,HS Adult Placements,Third Party Payments,Private Contractors,Accommodation Based Support,9/16/2011,870,"1,112.00",Revenue,REDACTED
Adult Social Care,Adlt u65 Learning Disabilities,LD AdultPlacementCont,Third Party Payments,Private Contractors,Accommodation Based Support,9/15/2011,871,606.40,Revenue,REDACTED
Adult Social Care,Adult u65 Mental Health Needs,HS Adult Placements,Third Party Payments,Private Contractors,Accommodation Based Support,9/15/2011,872,"1,592.08",Revenue,REDACTED
Adult Social Care,Adult u65 Mental Health Needs,HS Adult Placements,Third Party Payments,Private Contractors,Accommodation Based Support,9/15/2011,873,"1,432.76",Revenue,REDACTED
Childrens & Education Services,Family Support Services,CS DayCare Facilities Children,Third Party Payments,Private Contractors,Daily Childminding,9/16/2011,874,"1,610.00",Revenue,REDACTED
Adult Social Care,Adult u65 Phys/Sensory Impair,PD EAST TEAM-Homecare,Third Party Payments,Private Contractors,Miscellaneous Agency Services,9/15/2011,875,"1,172.15",Revenue,HOME CARE SERVICE PROVIDER
Adult Social Care,Adlt u65 Learning Disabilities,LD Home Care External,Third Party Payments,Private Contractors,Miscellaneous Agency Services,9/15/2011,876,"3,996.00",Revenue,THE REGARD PARTNERSHIP LTD
Adult Social Care,Adlt u65 Learning Disabilities,LD Residential Care External,Third Party Payments,Private Contractors,Miscellaneous Agency Services,9/15/2011,877,"5,880.00",Revenue,BROADHAM CARE LTD
Adult Social Care,Adlt u65 Learning Disabilities,LD Residential Care External,Third Party Payments,Private Contractors,Miscellaneous Agency Services,9/15/2011,878,"6,725.24",Revenue,BROADHAM CARE LTD
Adult Social Care,Adlt u65 Learning Disabilities,LD Residential Care External,Third Party Payments,Private Contractors,Miscellaneous Agency Services,9/15/2011,879,"5,680.00",Revenue,BROADHAM CARE LTD
Adult Social Care,Older People 65&Over inc OP-MH,OP East - Residential Care Ext,Third Party Payments,Private Contractors,Miscellaneous Agency Services,9/15/2011,880,671.13,Revenue,BUPA CARE HOMES
Adult Social Care,Older People 65&Over inc OP-MH,OP Hosp - Residential Care Ext,Third Party Payments,Private Contractors,Miscellaneous Agency Services,9/15/2011,881,"1,618.21",Revenue,CRNH LTD
Adult Social Care,Older People 65&Over inc OP-MH,OP Hosp - Residential Care Ext,Third Party Payments,Private Contractors,Miscellaneous Agency Services,9/15/2011,882,"3,624.80",Revenue,HARTLEY HOUSE
Adult Social Care,Adlt u65 Learning Disabilities,LD Residential Care External,Third Party Payments,Private Contractors,Miscellaneous Agency Services,9/15/2011,883,"3,521.24",Revenue,HAYDON PARK LODGE
Adult Social Care,Adlt u65 Learning Disabilities,LD Residential Care External,Third Party Payments,Private Contractors,Miscellaneous Agency Services,9/15/2011,884,"2,719.32",Revenue,HAYDON PARK LODGE
Adult Social Care,Adlt u65 Learning Disabilities,LD Residential Care External,Third Party Payments,Private Contractors,Miscellaneous Agency Services,9/15/2011,885,"1,975.24",Revenue,HAYDON PARK LODGE
Adult Social Care,Adlt u65 Learning Disabilities,LD Residential Care External,Third Party Payments,Private Contractors,Miscellaneous Agency Services,9/15/2011,886,"3,720.00",Revenue,HAYDON PARK LODGE
Adult Social Care,Adlt u65 Learning Disabilities,LD Residential Care External,Third Party Payments,Private Contractors,Miscellaneous Agency Services,9/15/2011,887,"2,458.36",Revenue,HAYDON PARK LODGE
Adult Social Care,Adlt u65 Learning Disabilities,LD Residential Care External,Third Party Payments,Private Contractors,Miscellaneous Agency Services,9/15/2011,888,"2,816.00",Revenue,HAYDON PARK LODGE
Adult Social Care,Adlt u65 Learning Disabilities,LD Residential Care External,Third Party Payments,Private Contractors,Miscellaneous Agency Services,9/15/2011,889,"3,532.48",Revenue,HAYDON PARK LODGE
Adult Social Care,Adlt u65 Learning Disabilities,LD Residential Care External,Third Party Payments,Private Contractors,Miscellaneous Agency Services,9/15/2011,890,"3,451.00",Revenue,HAYDON PARK LODGE
Adult Social Care,Older People 65&Over inc OP-MH,OP Hosp - Residential Care Ext,Third Party Payments,Private Contractors,Miscellaneous Agency Services,9/15/2011,891,"1,229.84",Revenue,HOLLYMEDE COTTAGE
Adult Social Care,Adult u65 Phys/Sensory Impair,PD EAST TEAM-Residential,Third Party Payments,Private Contractors,Miscellaneous Agency Services,9/16/2011,892,890.00,Revenue,THE ROYAL STAR & GARTER HOME
Adult Social Care,Older People 65&Over inc OP-MH,OP Hosp - Residential Care Ext,Third Party Payments,Private Contractors,Miscellaneous Agency Services,9/15/2011,893,"1,941.86",Revenue,STOKEFIELD CARE HOME
Adult Social Care,Other Adult Services,MH Residential Care Ext- SM&A,Third Party Payments,Private Contractors,Miscellaneous Agency Services,9/15/2011,894,"1,439.74",Revenue,TURNING POINT SERVICES LTD
Adult Social Care,Adlt u65 Learning Disabilities,LD Residential Care External,Third Party Payments,Private Contractors,Miscellaneous Agency Services,9/15/2011,895,"2,074.68",Revenue,EL-SHADDAI
Childrens & Education Services,Family Support Services,CS Day Care CWD,Third Party Payments,Private Contractors,Miscellaneous Agency Services,9/15/2011,896,"2,496.12",Revenue,COMPLETE CARE CENTRE
Childrens & Education Services,Family Support Services,CS Day Care CWD,Third Party Payments,Private Contractors,Playscheme,9/15/2011,897,700.00,Revenue,LITTLE CATERPILLARS PLAYGROUP
Childrens & Education Services,Children Looked After (24hrs+),ART Residential Placements,Third Party Payments,Private Contractors,Miscellaneous Agency Services,9/16/2011,898,"46,249.71",Revenue,ACTION FOR CHILDREN SERV.LTD
Childrens & Education Services,Children Looked After (24hrs+),ART Residential Placements,Third Party Payments,Private Contractors,Miscellaneous Agency Services,9/16/2011,899,"46,249.71",Revenue,ACTION FOR CHILDREN SERV.LTD
Childrens & Education Services,Children Looked After (24hrs+),ART Residential Placements,Third Party Payments,Private Contractors,Miscellaneous Agency Services,9/16/2011,900,"16,221.55",Revenue,CASTLE HOMES CARE LIMITED
Childrens & Education Services,Children Looked After (24hrs+),ART Independent Agency Foster,Supplies and Services,Services,Long Term Fostering,9/16/2011,901,"3,710.92",Revenue,ETHELBERT SPECIALIST HOMES LTD
Childrens & Education Services,Children Looked After (24hrs+),ART Independent Agency Foster,Supplies and Services,Services,Long Term Fostering,9/16/2011,902,"2,973.52",Revenue,FOSTERPLUS LTD
Childrens & Education Services,Children Looked After (24hrs+),ART Independent Agency Foster,Supplies and Services,Services,Long Term Fostering,9/16/2011,903,"2,905.01",Revenue,FOSTER CARE ASSOCIATES LTD
Childrens & Education Services,Children Looked After (24hrs+),ART Independent Agency Foster,Supplies and Services,Services,Long Term Fostering,9/16/2011,904,"1,002.95",Revenue,FOSTER CARE ASSOCIATES LTD
Childrens & Education Services,Children Looked After (24hrs+),ART Independent Agency Foster,Supplies and Services,Services,Task Based Fostering,9/16/2011,905,"7,702.26",Revenue,THE FOSTER CARE AGENCY
Childrens & Education Services,Children Looked After (24hrs+),ART Independent Agency Foster,Supplies and Services,Services,Task Based Fostering,9/16/2011,906,"14,861.28",Revenue,HEATH FARM FAMILY SVS LTD.
Childrens & Education Services,Children Looked After (24hrs+),ART Independent Agency Foster,Supplies and Services,Services,Task Based Fostering,9/16/2011,907,"6,913.62",Revenue,HILLCREST CARE LTD
Childrens & Education Services,Children Looked After (24hrs+),ART Independent Agency Foster,Supplies and Services,Services,Task Based Fostering,9/16/2011,908,"6,913.62",Revenue,HILLCREST CARE LTD
Childrens & Education Services,Children Looked After (24hrs+),ART Independent Agency Foster,Supplies and Services,Services,Long Term Fostering,9/16/2011,909,"3,126.04",Revenue,KINDERCARE FOSTERING
Childrens & Education Services,Children Looked After (24hrs+),ART Independent Agency Foster,Supplies and Services,Services,Task Based Fostering,9/16/2011,910,"6,946.48",Revenue,KINDERCARE FOSTERING
Childrens & Education Services,Children Looked After (24hrs+),ART Independent Agency Foster,Supplies and Services,Services,Task Based Fostering,9/16/2011,911,"6,609.82",Revenue,KINDERCARE FOSTERING
Childrens & Education Services,Children Looked After (24hrs+),ART Independent Agency Foster,Supplies and Services,Services,Task Based Fostering,9/16/2011,912,"6,946.48",Revenue,KINDERCARE FOSTERING
Childrens & Education Services,Children Looked After (24hrs+),ART Independent Agency Foster,Supplies and Services,Services,Long Term Fostering,9/16/2011,913,"3,126.04",Revenue,KINDERCARE FOSTERING
Childrens & Education Services,Children Looked After (24hrs+),ART Independent Agency Foster,Supplies and Services,Services,Task Based Fostering,9/16/2011,914,"6,252.08",Revenue,KINDERCARE FOSTERING
Childrens & Education Services,Children Looked After (24hrs+),ART Independent Agency Foster,Supplies and Services,Services,Task Based Fostering,9/16/2011,915,"6,642.68",Revenue,MOMENTS FOSTERING
Childrens & Education Services,Children Looked After (24hrs+),ART Independent Agency Foster,Supplies and Services,Services,Task Based Fostering,9/16/2011,916,"9,600.00",Revenue,NEXT STEP FOSTERING SERV'S LTD
Childrens & Education Services,Children Looked After (24hrs+),ART Independent Agency Foster,Supplies and Services,Services,Task Based Fostering,9/16/2011,917,"10,185.36",Revenue,OUTLOOK FOSTERING SERVICES LTD
Childrens & Education Services,Children Looked After (24hrs+),ART Independent Agency Foster,Supplies and Services,Services,Task Based Fostering,9/16/2011,918,"6,214.88",Revenue,RAINBOW FOSTERING SERVICES LTD
Childrens & Education Services,Children Looked After (24hrs+),ART Independent Agency Foster,Supplies and Services,Services,Task Based Fostering,9/16/2011,919,"5,943.94",Revenue,RAINBOW FOSTERING SERVICES LTD
Childrens & Education Services,Children Looked After (24hrs+),ART Independent Agency Foster,Supplies and Services,Services,Task Based Fostering,9/16/2011,920,"5,943.94",Revenue,RAINBOW FOSTERING SERVICES LTD
Childrens & Education Services,Children Looked After (24hrs+),ART Independent Agency Foster,Supplies and Services,Services,Task Based Fostering,9/16/2011,921,"5,943.94",Revenue,RAINBOW FOSTERING SERVICES LTD
Childrens & Education Services,Children Looked After (24hrs+),ART Independent Agency Foster,Supplies and Services,Services,Task Based Fostering,9/16/2011,922,"5,943.94",Revenue,RAINBOW FOSTERING SERVICES LTD
Adult Social Care,Older People 65&Over inc OP-MH,OP East - Residential Care Ext,Third Party Payments,Private Contractors,Miscellaneous Agency Services,9/16/2011,923,"1,717.80",Revenue,REDACTED
Adult Social Care,Older People 65&Over inc OP-MH,OP East - Residential Care Ext,Third Party Payments,Private Contractors,Miscellaneous Agency Services,9/16/2011,924,"1,717.80",Revenue,REDACTED
Adult Social Care,Adult u65 Mental Health Needs,MH ResidentialCare Ext - Wim,Third Party Payments,Private Contractors,Miscellaneous Agency Services,9/16/2011,925,"2,756.36",Revenue,ASRA G.LONDON HOUSING ASS.LTD
Adult Social Care,Older People 65&Over inc OP-MH,OP East - Residential Care Ext,Third Party Payments,Private Contractors,Miscellaneous Agency Services,9/16/2011,926,"1,873.20",Revenue,BETHUNE COURT
Adult Social Care,Older People 65&Over inc OP-MH,OP East - Nursing Care,Third Party Payments,Private Contractors,Miscellaneous Agency Services,9/16/2011,927,"2,561.54",Revenue,CLAREMONT CARE SVS LTD
Adult Social Care,Older People 65&Over inc OP-MH,OP Hosp - Nursing Care,Third Party Payments,Private Contractors,Miscellaneous Agency Services,9/16/2011,928,"2,398.39",Revenue,CLAREMONT CARE SVS LTD
Adult Social Care,Adult u65 Mental Health Needs,MH ResidentialCare Ext-Morden,Third Party Payments,Private Contractors,Miscellaneous Agency Services,9/16/2011,929,"2,839.00",Revenue,REDACTED
Adult Social Care,Older People 65&Over inc OP-MH,OP Hosp - Residential Care Ext,Third Party Payments,Private Contractors,Miscellaneous Agency Services,9/16/2011,930,"2,360.00",Revenue,MEADBANK NURSING CENTRE
Adult Social Care,Adult u65 Phys/Sensory Impair,PD WEST TEAM-Nursing,Third Party Payments,Private Contractors,Miscellaneous Agency Services,9/16/2011,931,"2,801.40",Revenue,MEADBANK NURSING CENTRE
Adult Social Care,Older People 65&Over inc OP-MH,OP Hosp - Residential Care Ext,Third Party Payments,Private Contractors,Miscellaneous Agency Services,9/16/2011,932,"1,812.00",Revenue,SWEET HOMES LTD
Adult Social Care,Older People 65&Over inc OP-MH,OP Hosp - Residential Care Ext,Third Party Payments,Private Contractors,Miscellaneous Agency Services,9/16/2011,933,"1,812.40",Revenue,SWEET HOMES LTD
Adult Social Care,Older People 65&Over inc OP-MH,OP Hosp - Nursing Care,Third Party Payments,Private Contractors,Miscellaneous Agency Services,9/16/2011,934,"2,350.80",Revenue,SWEET HOMES LTD
Adult Social Care,Older People 65&Over inc OP-MH,OP West - Nursing Care,Third Party Payments,Private Contractors,Miscellaneous Agency Services,9/16/2011,935,"2,968.48",Revenue,WESTMINSTER HEALTHCARE LTD
Adult Social Care,Older People 65&Over inc OP-MH,OP West - Nursing Care,Third Party Payments,Private Contractors,Miscellaneous Agency Services,9/16/2011,936,"2,760.77",Revenue,WESTMINSTER HEALTHCARE LTD
Adult Social Care,Adult u65 Phys/Sensory Impair,PD EAST TEAM-Homecare,Third Party Payments,Private Contractors,Miscellaneous Agency Services,9/16/2011,937,664.62,Revenue,BELGRAVIA NURS. & CARE BUREAU
Adult Social Care,Older People 65&Over inc OP-MH,OP East - Home Care External,Third Party Payments,Private Contractors,Miscellaneous Agency Services,9/16/2011,938,"2,153.54",Revenue,THE SQUIRRELS DIRECT CARE LTD
Adult Social Care,Older People 65&Over inc OP-MH,OP East - Home Care External,Third Party Payments,Private Contractors,Miscellaneous Agency Services,9/16/2011,939,"2,201.13",Revenue,THE SQUIRRELS DIRECT CARE LTD
Adult Social Care,Older People 65&Over inc OP-MH,OP East - Residential Care Ext,Third Party Payments,Private Contractors,Miscellaneous Agency Services,9/21/2011,940,"1,767.08",Revenue,CENTRAL & CECIL
Adult Social Care,Adlt u65 Learning Disabilities,LD Residential Care External,Third Party Payments,Private Contractors,Miscellaneous Agency Services,9/21/2011,941,"4,707.48",Revenue,THE CHESTNUTS LIMITED
Adult Social Care,Adlt u65 Learning Disabilities,LD Residential Care External,Third Party Payments,Private Contractors,Miscellaneous Agency Services,9/19/2011,942,"3,210.36",Revenue,CRAEGMOOR FACILITIES CO LTD
Adult Social Care,Adlt u65 Learning Disabilities,LD Residential Care External,Third Party Payments,Private Contractors,Miscellaneous Agency Services,9/19/2011,943,"3,210.36",Revenue,CRAEGMOOR FACILITIES CO LTD
Adult Social Care,Adlt u65 Learning Disabilities,LD Residential Care External,Third Party Payments,Private Contractors,Miscellaneous Agency Services,9/19/2011,944,"3,210.36",Revenue,CRAEGMOOR FACILITIES CO LTD
Adult Social Care,Adlt u65 Learning Disabilities,LD Residential Care External,Third Party Payments,Private Contractors,Miscellaneous Agency Services,9/19/2011,945,"3,210.36",Revenue,CRAEGMOOR FACILITIES CO LTD
Adult Social Care,Other Adult Services,MH Residential Care Ext- SM&A,Third Party Payments,Private Contractors,Miscellaneous Agency Services,9/19/2011,946,"2,590.00",Revenue,CRANSTOUN DRUG SERVICES
Adult Social Care,Older People 65&Over inc OP-MH,OP East - Nursing Care,Third Party Payments,Private Contractors,Miscellaneous Agency Services,9/19/2011,947,"2,332.36",Revenue,ELMWOOD
Adult Social Care,Older People 65&Over inc OP-MH,OP East - Nursing Care,Third Party Payments,Private Contractors,Miscellaneous Agency Services,9/19/2011,948,"2,406.60",Revenue,HERITAGE CARE CENTRE
Adult Social Care,Adlt u65 Learning Disabilities,LD Residential Care External,Third Party Payments,Private Contractors,Miscellaneous Agency Services,9/21/2011,949,"5,931.68",Revenue,THE LEO TRUST
Adult Social Care,Older People 65&Over inc OP-MH,OP East - Nursing Care,Third Party Payments,Private Contractors,Miscellaneous Agency Services,9/19/2011,950,"2,577.00",Revenue,SOUTHERN CROSS HEALTHCARE
Adult Social Care,Adlt u65 Learning Disabilities,LD Home Care External,Third Party Payments,Private Contractors,Miscellaneous Agency Services,9/19/2011,951,"4,186.88",Revenue,ROYAL MENCAP SOCIETY
Adult Social Care,Older People 65&Over inc OP-MH,OP East - Nursing Care,Third Party Payments,Private Contractors,Miscellaneous Agency Services,9/19/2011,952,"2,341.84",Revenue,FOUR SEASONS LTD T/A UPLANDS
Adult Social Care,Adlt u65 Learning Disabilities,LD Comm -Residential-Orch Hill,Third Party Payments,Private Contractors,Miscellaneous Agency Services,9/19/2011,953,"5,984.08",Revenue,PROSPECT HOUSING & SUPPORT SER
Adult Social Care,Older People 65&Over inc OP-MH,OP East - Residential Care Ext,Third Party Payments,Private Contractors,Miscellaneous Agency Services,9/19/2011,954,"2,000.00",Revenue,SOUTHERN CROSS HEALTHCARE LTD
Adult Social Care,Older People 65&Over inc OP-MH,OP East - Residential Care Ext,Third Party Payments,Private Contractors,Miscellaneous Agency Services,9/19/2011,955,"1,878.52",Revenue,SOUTHERN CROSS HEALTHCARE LTD
Adult Social Care,Older People 65&Over inc OP-MH,OP Hosp - Residential Care Ext,Third Party Payments,Private Contractors,Miscellaneous Agency Services,9/19/2011,956,"1,878.52",Revenue,SOUTHERN CROSS HEALTHCARE LTD
Adult Social Care,Older People 65&Over inc OP-MH,OP Hosp - Residential Care Ext,Third Party Payments,Private Contractors,Miscellaneous Agency Services,9/19/2011,957,"1,878.52",Revenue,SOUTHERN CROSS HEALTHCARE LTD
Adult Social Care,Older People 65&Over inc OP-MH,OP Hosp - Residential Care Ext,Third Party Payments,Private Contractors,Miscellaneous Agency Services,9/19/2011,958,"1,878.52",Revenue,SOUTHERN CROSS HEALTHCARE LTD
Adult Social Care,Older People 65&Over inc OP-MH,OP East - Nursing Care,Third Party Payments,Private Contractors,Miscellaneous Agency Services,9/19/2011,959,"2,237.64",Revenue,SOUTHERN CROSS HEALTHCARE LTD
Adult Social Care,Adult u65 Phys/Sensory Impair,PD EAST TEAM-Nursing,Third Party Payments,Private Contractors,Miscellaneous Agency Services,9/19/2011,960,"3,096.00",Revenue,SOUTHERN CROSS HEALTHCARE LTD
Adult Social Care,Older People 65&Over inc OP-MH,OP East - Nursing Care,Third Party Payments,Private Contractors,Miscellaneous Agency Services,9/19/2011,961,"2,237.64",Revenue,SOUTHERN CROSS HEALTHCARE LTD
Adult Social Care,Older People 65&Over inc OP-MH,OP Hosp - Nursing Care,Third Party Payments,Private Contractors,Miscellaneous Agency Services,9/19/2011,962,"2,237.64",Revenue,SOUTHERN CROSS HEALTHCARE LTD
Adult Social Care,Older People 65&Over inc OP-MH,OP East - Residential Care Ext,Third Party Payments,Private Contractors,Miscellaneous Agency Services,9/19/2011,963,"1,878.52",Revenue,SOUTHERN CROSS HEALTHCARE LTD
Adult Social Care,Older People 65&Over inc OP-MH,OP Hosp - Residential Care Ext,Third Party Payments,Private Contractors,Miscellaneous Agency Services,9/19/2011,964,"2,840.00",Revenue,SOUTHERN CROSS HEALTHCARE LTD
Adult Social Care,Older People 65&Over inc OP-MH,OP Hosp - Residential Care Ext,Third Party Payments,Private Contractors,Miscellaneous Agency Services,9/19/2011,965,"1,878.52",Revenue,SOUTHERN CROSS HEALTHCARE LTD
Adult Social Care,Older People 65&Over inc OP-MH,OP East - Residential Care Ext,Third Party Payments,Private Contractors,Miscellaneous Agency Services,9/19/2011,966,"1,878.52",Revenue,SOUTHERN CROSS HEALTHCARE LTD
Adult Social Care,Older People 65&Over inc OP-MH,OP Hosp - Residential Care Ext,Third Party Payments,Private Contractors,Miscellaneous Agency Services,9/19/2011,967,"1,878.52",Revenue,SOUTHERN CROSS HEALTHCARE LTD
Adult Social Care,Older People 65&Over inc OP-MH,OP East - Nursing Care,Third Party Payments,Private Contractors,Miscellaneous Agency Services,9/19/2011,968,"2,237.64",Revenue,SOUTHERN CROSS HEALTHCARE LTD
Adult Social Care,Older People 65&Over inc OP-MH,OP East - Residential Care Ext,Third Party Payments,Private Contractors,Miscellaneous Agency Services,9/19/2011,969,"1,878.52",Revenue,SOUTHERN CROSS HEALTHCARE LTD
Adult Social Care,Older People 65&Over inc OP-MH,OP East - Residential Care Ext,Third Party Payments,Private Contractors,Miscellaneous Agency Services,9/19/2011,970,"2,000.00",Revenue,SOUTHERN CROSS HEALTHCARE LTD
Adult Social Care,Older People 65&Over inc OP-MH,OP Hosp - Residential Care Ext,Third Party Payments,Private Contractors,Miscellaneous Agency Services,9/19/2011,971,"2,000.00",Revenue,SOUTHERN CROSS HEALTHCARE LTD
Adult Social Care,Older People 65&Over inc OP-MH,OP East - Residential Care Ext,Third Party Payments,Private Contractors,Miscellaneous Agency Services,9/19/2011,972,"1,878.52",Revenue,SOUTHERN CROSS HEALTHCARE LTD
Adult Social Care,Older People 65&Over inc OP-MH,OP West - Nursing Care,Third Party Payments,Private Contractors,Miscellaneous Agency Services,9/19/2011,973,"2,431.96",Revenue,SOUTHERN CROSS HEALTHCARE LTD
Adult Social Care,Older People 65&Over inc OP-MH,OP West - Nursing Care,Third Party Payments,Private Contractors,Miscellaneous Agency Services,9/19/2011,974,"2,593.00",Revenue,SOUTHERN CROSS HEALTHCARE LTD
Adult Social Care,Older People 65&Over inc OP-MH,OP Hosp - Nursing Care,Third Party Payments,Private Contractors,Miscellaneous Agency Services,9/19/2011,975,"2,717.76",Revenue,SOUTHERN CROSS HEALTHCARE LTD
Adult Social Care,Older People 65&Over inc OP-MH,OP Hosp - Nursing Care,Third Party Payments,Private Contractors,Miscellaneous Agency Services,9/19/2011,976,"2,341.84",Revenue,SOUTHERN CROSS HEALTHCARE LTD
Adult Social Care,Adult u65 Mental Health Needs,MH ResidentialCare Ext-Morden,Third Party Payments,Private Contractors,Miscellaneous Agency Services,9/19/2011,977,"1,043.96",Revenue,SOUTHPARK RESIDENTIAL HOME
Adult Social Care,Older People 65&Over inc OP-MH,OP East - Residential Care Ext,Third Party Payments,Private Contractors,Miscellaneous Agency Services,9/19/2011,978,"1,044.00",Revenue,SOUTHPARK RESIDENTIAL HOME
Adult Social Care,Older People 65&Over inc OP-MH,OP West - Residential Care Ext,Third Party Payments,Private Contractors,Miscellaneous Agency Services,9/19/2011,979,"1,784.20",Revenue,SOUTHPARK RESIDENTIAL HOME
Adult Social Care,Older People 65&Over inc OP-MH,OP West - Residential Care Ext,Third Party Payments,Private Contractors,Miscellaneous Agency Services,9/19/2011,980,"2,000.00",Revenue,SOUTHPARK RESIDENTIAL HOME
Adult Social Care,Older People 65&Over inc OP-MH,OP West - Residential Care Ext,Third Party Payments,Private Contractors,Miscellaneous Agency Services,9/19/2011,981,"1,812.40",Revenue,SOUTHPARK RESIDENTIAL HOME
Adult Social Care,Older People 65&Over inc OP-MH,OP West - Residential Care Ext,Third Party Payments,Private Contractors,Miscellaneous Agency Services,9/19/2011,982,"1,812.40",Revenue,SOUTHPARK RESIDENTIAL HOME
Adult Social Care,Older People 65&Over inc OP-MH,OP East - Residential Care Ext,Third Party Payments,Private Contractors,Miscellaneous Agency Services,9/19/2011,983,"1,703.44",Revenue,SOUTHPARK RESIDENTIAL HOME
Adult Social Care,Adlt u65 Learning Disabilities,LD Residential Care External,Third Party Payments,Private Contractors,Miscellaneous Agency Services,9/19/2011,984,"1,438.44",Revenue,EL-SHADDAI
Adult Social Care,Adlt u65 Learning Disabilities,LD Residential Care External,Third Party Payments,Private Contractors,Miscellaneous Agency Services,9/19/2011,985,"1,438.44",Revenue,EL-SHADDAI
Adult Social Care,Older People 65&Over inc OP-MH,OP East - Residential Care Ext,Third Party Payments,Private Contractors,Miscellaneous Agency Services,9/19/2011,986,"1,386.08",Revenue,EL-SHADDAI
Adult Social Care,Older People 65&Over inc OP-MH,OP Hosp - Nursing Care,Third Party Payments,Private Contractors,Miscellaneous Agency Services,9/19/2011,987,"2,800.00",Revenue,WILLOW LODGE
Adult Social Care,Asylum seekers,AS Child Res Care  (No Grant),Third Party Payments,Private Contractors,Private Tenant/Landlord,9/19/2011,988,600.00,Revenue,REDACTED
Childrens & Education Services,Other Ch's & Family Services,CL Leaving Care/Supp Lodgings,Third Party Payments,Private Contractors,Supported Lodgings,9/19/2011,989,600.00,Revenue,REDACTED
Adult Social Care,Adult u65 Mental Health Needs,MH Adult Placement Cont-Morden,Third Party Payments,Private Contractors,Accommodation Based Support,9/19/2011,990,848.96,Revenue,EL-SHADDAI
Adult Social Care,Adult u65 Mental Health Needs,MH Adult PlacementCont-MitWest,Third Party Payments,Private Contractors,Accommodation Based Support,9/19/2011,991,848.96,Revenue,EL-SHADDAI
Adult Social Care,Adult u65 Mental Health Needs,MH Home Care External - Wim,Third Party Payments,Private Contractors,Miscellaneous Agency Services,9/19/2011,992,578.64,Revenue,NAS SERVICES LIMITED
Adult Social Care,Adlt u65 Learning Disabilities,LD Comm -Home Care-Surrey Oak,Third Party Payments,Private Contractors,Miscellaneous Agency Services,9/19/2011,993,"7,200.00",Revenue,PRECIOUS HOMES LTD
Adult Social Care,Adlt u65 Learning Disabilities,LD Home Care External,Third Party Payments,Private Contractors,Miscellaneous Agency Services,9/19/2011,994,"7,714.29",Revenue,PRECIOUS HOMES LTD
Adult Social Care,Adlt u65 Learning Disabilities,LD Home Care External,Third Party Payments,Private Contractors,Miscellaneous Agency Services,9/19/2011,995,624.80,Revenue,ROYAL MENCAP SOCIETY
Adult Social Care,Adlt u65 Learning Disabilities,LD Home Care External,Third Party Payments,Private Contractors,Miscellaneous Agency Services,9/19/2011,996,"1,835.12",Revenue,ROYAL MENCAP SOCIETY
Adult Social Care,Adlt u65 Learning Disabilities,LD Home Care External,Third Party Payments,Private Contractors,Miscellaneous Agency Services,9/19/2011,997,"1,906.56",Revenue,ROYAL MENCAP SOCIETY
Adult Social Care,Adlt u65 Learning Disabilities,LD Home Care External,Third Party Payments,Private Contractors,Miscellaneous Agency Services,9/19/2011,998,"2,120.96",Revenue,ROYAL MENCAP SOCIETY
Adult Social Care,Older People 65&Over inc OP-MH,OP East - Home Care External,Third Party Payments,Private Contractors,Miscellaneous Agency Services,9/19/2011,999,960.80,Revenue,ROYAL MENCAP SOCIETY
Adult Social Care,Older People 65&Over inc OP-MH,OP East - Daycare,Third Party Payments,Private Contractors,Miscellaneous Agency Services,9/19/2011,1000,740.43,Revenue,SOLACE COMMUNITY CARE LTD
Childrens & Education Services,Family Support Services,CS Children in Need Section 17,Transfer Payments,Adult Soc Servs Clients,Childr Act 1989 S17,9/19/2011,1001,"3,000.00",Revenue,ABLONZO(UK)
Childrens & Education Services,Family Support Services,CL Travel E-Parent Visiting T1,Third Party Payments,Private Contractors,Miscellaneous Agency Services,9/19/2011,1002,926.78,Revenue,REDACTED
Childrens & Education Services,Other Ch's & Family Services,CL Leaving Care/Supp Lodgings,Third Party Payments,Private Contractors,Supported Lodgings,9/20/2011,1003,600.00,Revenue,REDACTED
Childrens & Education Services,Other Ch's & Family Services,CL Leaving Care/Supp Lodgings,Third Party Payments,Private Contractors,Supported Lodgings,9/20/2011,1004,600.00,Revenue,REDACTED
Adult Social Care,Adult u65 Mental Health Needs,MH Other Servs - Mitcham West,Third Party Payments,Private Contractors,Miscellaneous Agency Services,9/21/2011,1005,919.60,Revenue,RNID
Adult Social Care,Adult u65 Mental Health Needs,MH Hostels/B & B - NRTPF,Third Party Payments,Private Contractors,Miscellaneous Agency Services,9/20/2011,1006,"1,380.40",Revenue,ASTRA HOMES
Adult Social Care,Adult u65 Mental Health Needs,MH Hostels/B & B- Mitcham West,Third Party Payments,Private Contractors,Miscellaneous Agency Services,9/20/2011,1007,"1,000.00",Revenue,ASTRA HOMES
Adult Social Care,Adult u65 Mental Health Needs,MH Hostels/ B & B - Wim,Third Party Payments,Private Contractors,Miscellaneous Agency Services,9/20/2011,1008,"1,222.04",Revenue,ASTRA HOMES
Adult Social Care,Adult u65 Mental Health Needs,MH Hostels/ B & B - Wim,Third Party Payments,Private Contractors,Miscellaneous Agency Services,9/20/2011,1009,763.24,Revenue,ASTRA HOMES
Adult Social Care,Adlt u65 Learning Disabilities,LD Supported Housing,Third Party Payments,Private Contractors,Miscellaneous Agency Services,9/20/2011,1010,965.68,Revenue,ASTRA HOMES
Adult Social Care,Adlt u65 Learning Disabilities,LD Supported Housing,Third Party Payments,Private Contractors,Miscellaneous Agency Services,9/20/2011,1011,"1,287.68",Revenue,ASTRA HOMES
Adult Social Care,Older People 65&Over inc OP-MH,OP East - Residential Care Ext,Third Party Payments,Private Contractors,Miscellaneous Agency Services,9/20/2011,1012,"3,860.00",Revenue,ATHOL HOUSE
Adult Social Care,Older People 65&Over inc OP-MH,OP West - Residential Care Ext,Third Party Payments,Private Contractors,Miscellaneous Agency Services,9/20/2011,1013,"2,600.00",Revenue,BARONS LODGE NURSING HOME
Adult Social Care,Adlt u65 Learning Disabilities,LD Nursing Care,Third Party Payments,Private Contractors,Miscellaneous Agency Services,9/20/2011,1014,"3,696.32",Revenue,BARONS LODGE NURSING HOME
Adult Social Care,Adlt u65 Learning Disabilities,LD Residential Care External,Third Party Payments,Private Contractors,Miscellaneous Agency Services,9/20/2011,1015,"2,600.00",Revenue,BARONS LODGE NURSING HOME
Adult Social Care,Older People 65&Over inc OP-MH,OP Hosp - Residential Care Ext,Third Party Payments,Private Contractors,Miscellaneous Agency Services,9/20/2011,1016,"2,000.00",Revenue,BEECHWOOD HOUSE
Adult Social Care,Older People 65&Over inc OP-MH,OP East - Residential Care Ext,Third Party Payments,Private Contractors,Miscellaneous Agency Services,9/20/2011,1017,"1,680.00",Revenue,BELL MEMORIAL HOME
Adult Social Care,Adult u65 Phys/Sensory Impair,PD EAST TEAM-Nursing,Third Party Payments,Private Contractors,Miscellaneous Agency Services,9/20/2011,1018,"7,561.44",Revenue,BUPA CARE SERVICES BACS RECEIP
Adult Social Care,Adlt u65 Learning Disabilities,LD Comm-Residential-Surrey Oak,Third Party Payments,Private Contractors,Miscellaneous Agency Services,9/20/2011,1019,"4,610.56",Revenue,COTTISBRAINE HOUSE
Adult Social Care,Adult u65 Phys/Sensory Impair,PD EAST TEAM-Residential,Third Party Payments,Private Contractors,Miscellaneous Agency Services,9/20/2011,1020,"4,226.28",Revenue,THE DISABILITIES TRUST
Adult Social Care,Older People 65&Over inc OP-MH,OP East - Nursing Care,Third Party Payments,Private Contractors,Miscellaneous Agency Services,9/21/2011,1021,"2,268.72",Revenue,JESMUND NURSING HOME
Adult Social Care,Older People 65&Over inc OP-MH,OP East - Residential Care Ext,Third Party Payments,Private Contractors,Miscellaneous Agency Services,9/20/2011,1022,"1,664.60",Revenue,KINGSDALE NURSING HOME
Adult Social Care,Adult u65 Phys/Sensory Impair,PD WEST TEAM-Nursing,Customer and client receipts,Charges,Miscellaneous Charges X,9/20/2011,1023,-786.00,Revenue,REDACTED
Adult Social Care,Adult u65 Phys/Sensory Impair,PD WEST TEAM-Nursing,Third Party Payments,Private Contractors,Miscellaneous Agency Services,9/20/2011,1024,"4,254.28",Revenue,REDACTED
Adult Social Care,Adult u65 Mental Health Needs,MH ResidentialCare Ext-Morden,Third Party Payments,Private Contractors,Miscellaneous Agency Services,9/20/2011,1025,"4,000.00",Revenue,LONA LODGE
Adult Social Care,Older People 65&Over inc OP-MH,OP East - Residential Care Ext,Third Party Payments,Private Contractors,Miscellaneous Agency Services,9/20/2011,1026,"2,280.60",Revenue,MANOR HOUSE RESIDENTIAL HOME
Adult Social Care,Older People 65&Over inc OP-MH,OP West - Residential Care Ext,Third Party Payments,Private Contractors,Miscellaneous Agency Services,9/20/2011,1027,"2,200.00",Revenue,MANOR HOUSE RESIDENTIAL HOME
Adult Social Care,Older People 65&Over inc OP-MH,OP Hosp - Residential Care Ext,Third Party Payments,Private Contractors,Miscellaneous Agency Services,9/20/2011,1028,"2,030.00",Revenue,MANOR HOUSE RESIDENTIAL HOME
Adult Social Care,Older People 65&Over inc OP-MH,OP East - Residential Care Ext,Third Party Payments,Private Contractors,Miscellaneous Agency Services,9/20/2011,1029,"2,028.00",Revenue,MANOR HOUSE RESIDENTIAL HOME
Adult Social Care,Older People 65&Over inc OP-MH,OP Hosp - Residential Care Ext,Third Party Payments,Private Contractors,Miscellaneous Agency Services,9/20/2011,1030,"2,080.00",Revenue,MANOR HOUSE RESIDENTIAL HOME
Adult Social Care,Older People 65&Over inc OP-MH,OP East - Residential Care Ext,Third Party Payments,Private Contractors,Miscellaneous Agency Services,9/20/2011,1031,"1,675.60",Revenue,MANOR HOUSE RESIDENTIAL HOME
Adult Social Care,Older People 65&Over inc OP-MH,OP East - Residential Care Ext,Third Party Payments,Private Contractors,Miscellaneous Agency Services,9/21/2011,1032,"1,386.08",Revenue,REDACTED
Adult Social Care,Adlt u65 Learning Disabilities,LD Residential Care External,Third Party Payments,Private Contractors,Miscellaneous Agency Services,9/20/2011,1033,"5,022.82",Revenue,SURREY & BORDERS PARTNERSHIP
Adult Social Care,Adlt u65 Learning Disabilities,LD Residential Care External,Customer and client receipts,Charges,Miscellaneous Charges X,9/20/2011,1034,"-1,639.00",Revenue,UNITED RESPONSE
Adult Social Care,Adlt u65 Learning Disabilities,LD Residential Care External,Third Party Payments,Private Contractors,Miscellaneous Agency Services,9/20/2011,1035,"26,279.04",Revenue,UNITED RESPONSE
Adult Social Care,Adlt u65 Learning Disabilities,LD Residential Care External,Customer and client receipts,Charges,Miscellaneous Charges X,9/20/2011,1036,"-2,412.64",Revenue,UNITED RESPONSE
Adult Social Care,Adlt u65 Learning Disabilities,LD Comm -Residential-Orch Hill,Third Party Payments,Private Contractors,Miscellaneous Agency Services,9/20/2011,1037,"4,359.44",Revenue,UNITED RESPONSE
Adult Social Care,Adlt u65 Learning Disabilities,LD Residential Care External,Third Party Payments,Private Contractors,Miscellaneous Agency Services,9/20/2011,1038,"21,797.20",Revenue,UNITED RESPONSE
Adult Social Care,Older People 65&Over inc OP-MH,OP West - Nursing Care,Third Party Payments,Private Contractors,Miscellaneous Agency Services,9/20/2011,1039,"3,440.00",Revenue,WIMBLEDON GUILD
Adult Social Care,Older People 65&Over inc OP-MH,OP West - Nursing Care,Third Party Payments,Private Contractors,Miscellaneous Agency Services,9/20/2011,1040,"2,996.00",Revenue,WIMBLEDON GUILD
Adult Social Care,Adult u65 Phys/Sensory Impair,PD WEST TEAM-Homecare,Third Party Payments,Private Contractors,Miscellaneous Agency Services,9/20/2011,1041,850.00,Revenue,BELGRAVIA NURS. & CARE BUREAU
Adult Social Care,Adult u65 Mental Health Needs,MH Home Care External-MitWest,Third Party Payments,Private Contractors,Miscellaneous Agency Services,9/20/2011,1042,871.36,Revenue,COMFORT CARE SERVICES (UK) LTD
Adult Social Care,Adlt u65 Learning Disabilities,LD Comm -Home Care-Orch Hill,Third Party Payments,Private Contractors,Miscellaneous Agency Services,9/20/2011,1043,848.05,Revenue,UNITED RESPONSE
Adult Social Care,Adlt u65 Learning Disabilities,LD Day Care Agency,Third Party Payments,Private Contractors,Miscellaneous Agency Services,9/20/2011,1044,646.56,Revenue,UNITED RESPONSE
Adult Social Care,Adlt u65 Learning Disabilities,LD Day Care Agency,Third Party Payments,Private Contractors,Miscellaneous Agency Services,9/20/2011,1045,696.28,Revenue,UNITED RESPONSE
Adult Social Care,Adult u65 Mental Health Needs,HS Adult Placements,Third Party Payments,Private Contractors,Accommodation Based Support,9/20/2011,1046,960.49,Revenue,REDACTED
Adult Social Care,Adult u65 Phys/Sensory Impair,PD EAST TEAM-Direct Payment,Third Party Payments,Private Contractors,Direct Payments,9/20/2011,1047,"2,627.50",Revenue,REDACTED
Adult Social Care,Older People 65&Over inc OP-MH,OP East -Direct Payment Scheme,Third Party Payments,Private Contractors,Direct Payments,9/20/2011,1048,729.00,Revenue,REDACTED
Childrens & Education Services,Children Looked After (24hrs+),CL Fostering Services,Supplies and Services,Services,Task Based Fostering,9/20/2011,1049,"1,560.88",Revenue,REDACTED
